Workbook

Sheet 説明
B2: 【目次】
B3: 項 目 | H3: 計算ツールの場所（シート名） | N3: 参 照
N4: 「漁港・漁場の施設の設計参考図書」
N5: ページ
B6: 直立壁に作用する波力の算定① （換算沖波波高 Ho', 周期 T, 海底勾配を入力値とする場合） | H6: 4.2.1 直立壁に作用する波力① | N6: 84-91
B8: 直立壁に作用する波力の算定② （波圧の計算に用いる波高 λ0Hd 及び波長 L を入力値とする場合） | H8: 4.2.1 直立壁に作用する波力②
B10: 消波工で被覆された直立壁に作用する波力の算定① （換算沖波波高 Ho', 周期 T, 海底勾配を入力値とする場合） | H10: 4.2.2 消波工で被覆された直立壁に作用する波力① | N10: 92
B12: 消波工で被覆された直立壁に作用する波力の算定② （波圧の計算に用いる波高 λ0Hd 及び波長 L を入力値とする場合） | H12: 4.2.2 消波工で被覆された直立壁に作用する波力②
B14: 直立消波ブロック堤に作用する波力の算定① （換算沖波波高 Ho', 周期 T, 海底勾配を入力値とする場合） | H14: 4.2.5 直立消波ブロック堤に作用する波力① | N14: 94-95
B16: 直立消波ブロック堤に作用する波力の算定② （波圧の計算に用いる波高 λ0Hd 及び波長 L を入力値とする場合） | H16: 4.2.5 直立消波ブロック堤に作用する波力②
B18: 波力に対するブロック等の安定質量の算定 | H18: 4.4 ブロック等の安定質量 | N18: 97-98
H19: ※下線部分をクリックすると各計算ツールの場所に移動します
B21: 【使用方法】
B22: 計算ツール内の黄色のセルに各パラメータを入力すると、算定値が出力されます。

Sheet 4.2.1 直立壁に作用する波力①
B2: 直立壁に作用する波力の算定① (pp.84-91)
C3: [使用方法]
C4: ・ 黄色のセルに算定条件を入力すると、波圧および波圧合力等が算定されます。
C5: ・ 海底勾配は 1/10、 1/15、 1/20、 1/30、 1/50、 1/100 から選択してください。
C6: ・ λ0の算定図は「λ0算定図の更新」ボタンを押すと更新されます。
C7: エラーが発生した場合は、再度更新ボタンを押してください。
E9: Ho' (m) | F9: T (sec) | G9: 海底勾配 | H9: β (°) | I9: h (m) | J9: d (m) | K9: h' (m) | L9: hc (m) | M9: B (m) | N9: ρ0 (t/m3)
E10: 5 | F10: 10 | G10: 0.05 | H10: 20 | I10: 8 | J10: 4.5 | K10: 5.2 | L10: 5.1 | M10: 10 | N10: 1.03
C13: １．波圧の計算に用いる波高 λ0Hd 及び波長 L の算定
E14: Ho'/Lo | F14: L (m)
E15: =ROUND(E10/(1.56*F10^2),3) -> 0.032 | F15: =ROUND(WAVEL(I10,F10),2) -> 83.77
D17: (1) 壁体前面位置
E18: h (m) | F18: H (m) | G18: h/Ho' | H18: H/Ho' | I18: λ0 (h) | J18: λ0 (h)H (m)
E19: =I10 -> 8 | F19: =ROUND(H19*E10,3) -> 4.995 | G19: =ROUND(I10/E10,2) -> 1.6 | H19: =ROUND(合田H13算定(1/G10, E15, G19),3) -> 0.999 | I19: =ROUND(合田Hmax算定(1/G10,E15,G19)/H19,2) -> 1.43 | J19: =ROUND(I19*F19,3) -> 7.143
D21: (2) 壁体前面から沖側へ有義波高の5倍の距離の地点
E22: hb (m) | F22: H5H (m) | G22: hb/Ho' | H22: H5H/Ho' | I22: λ0 (5H) | J22: λ0 (5H)H5H (m)
E23: =ROUND((5*F19*G10)+I10,2) -> 9.25 | F23: =ROUND(H23*E10,3) -> 5.04 | G23: =ROUND(E23/E10,2) -> 1.85 | H23: =ROUND(合田H13算定(1/G10, E15, G23),3) -> 1.008 | I23: =ROUND(合田Hmax算定(1/G10,E15,G23)/H23,2) -> 1.56 | J23: =ROUND(I23*F23,3) -> 7.862
D25: (3) 壁体前面から5波高沖までの区間のλ0Hd最大値の地点
E26: h (m) | F26: Hd (m) | G26: h/Ho' | H26: Hd/Ho' | I26: λ0 | J26: λ0Hd (m)
E27: =IF(J28>J23,E28,E23) -> 9.2 | F27: =IF(J28>J23,F28,F23) -> 5.045 | G27: =IF(J28>J23,G28,G23) -> 1.84 | H27: =IF(J28>J23,H28,H23) -> 1.009 | I27: =IF(J28>J23,I28,I23) -> 1.56 | J27: =IF(J28>J23,J28,J23) -> 7.87
E28: =ROUND(G28*E10,2) -> 9.2 | F28: =ROUND(H28*E10,3) -> 5.045 | G28: =ROUND(Ramda0H_h_Ho(1/G10,E15,G19,G23),2) -> 1.84 | H28: =ROUND(合田H13算定(1/G10, E15, G28),3) -> 1.009 | I28: =ROUND(Ramda0H_Ramda0(1/G10,E15,G19,G23),2) -> 1.56 | J28: =ROUND(I28*F28,3) -> 7.87
P36: η* | Q36: ： 静水面上で波圧強度が0となる高さ (m)
P37: p1 | Q37: ： 静水面における波圧強度 (kN/m2)
P38: p2 | Q38: ： 海底面における波圧強度 (kN/m2)
P39: p3 | Q39: ： 直立壁の底面における波圧強度 (kN/m2)
P40: ρ0 | Q40: ： 海水の密度 （通常は、1.030t/m3)
P41: g | Q41: ： 重力加速度 (9.81m/s2)
P42: β | Q42: ： 波の主方向から±15°の範囲で最も危険な方向と直立壁の法線の垂線が成す角度 (°)
C43: 図 a 補正係数λ0の算定図 （壁体前面位置） | P43: λ1 | Q43: ： 波圧の補正係数
P44: λ2 | Q44: ： 波圧の補正係数
P45: h | Q45: ： 直立壁の前面における水深 (m)
P46: L | Q46: ： 水深hにおける波長 (m)
P47: Hd | Q47: ： 設計で用いる進行波としての有義波高 (m)
P48: λ0 | Q48: ： 波高の補正係数
P49: λ0Hd | Q49: ： 波圧の計算に用いる波高 (m)
Q50: （砕波の影響を受ける領域では壁体前面から5波高沖までの区間のλ0Hdの最大値、
Q51: 砕波の影響を受けない領域では壁体前面位置におけるλ0Hdの値とする）
P52: α1 | Q52: ： ( p.85, 式 2-4-5 ) によって表される数値
P53: α2 | Q53: ： ( p.85, 式 2-4-6 ) によって表される数値
P54: α3 | Q54: ： ( p.85, 式 2-4-7 ) によって表される数値
P55: hb | Q55: ： 直立壁の前面から沖側へ有義波高の5倍の距離の地点における水深 (m)
P56: d | Q56: ： マウンド上の根固め工又は被覆ブロックの天端のうち、いずれか浅い水深 (m)
P57: h' | Q57: ： 直立壁の底面の水深 (m)
C58: 図 b 補正係数λ0の算定図 （壁体前面から5波高沖までの区間のλ0Hd最大値の地点） | P58: pu | Q58: ： 直立壁の底面の前趾に作用する揚圧力強度 (kN/m2)
P59: λ3 | Q59: ： 揚圧力の補正係数
P60: pn | Q60: ： 一様部における波圧強度 (kN/m2)
C61: ２．波圧の補正係数 λ1, λ2, λ3 の算定 | P61: H0' | Q61: ： 換算沖波波高 (m)
D62: （pp.88-91、「4.2.1(4) 波圧及び揚圧力の計算に用いる波高及び補正係数λ1,2,3」 参照） | P62: L0 | Q62: ： 沖波波長 (m)
E63: λ1 | F63: λ2 | G63: λ3 | P63: H | Q63: ： 堤体前面位置における進行波としての有義波高 (m)
E64: =ROUND(IF(G19<=1,0.4*G19+1,IF(G19<=2,-0.4*G19+1.8,IF(G19>2,1,""))),2) -> 1.16 | F64: 1 | G64: 1 | P64: hc | Q64: ： 静水面上天端高 (m)
P65: B | Q65: ： 堤体幅 (m)
C67: ３．波圧及び波圧合力の算定
C68: ① 壁面に波の山がある場合
E69: α1 | F69: α2 | G69: α3
E70: =ROUND(0.6+0.5*(((4*PI()*I10/F15)/(SINH(4*PI()*I10/F15)))^2),3) -> 0.916 | F70: =ROUND(MIN(((E23-J10)/(3*E23))*((I27*F27/J10)^2),2*J10/(I27*F27)),3) -> 0.524 | G70: =ROUND(1-K10/I10*(1-1/COSH(2*PI()*I10/F15)),3) -> 0.898
D72: a) 直立壁の前面の波圧 (式 2-4-1、 式 2-4-2、 式 2-4-3、 式 2-4-4)
E73: η* | F73: p1 | G73: p2 | H73: p3 | I73: p天端 | J73: 前面波圧合力
J74: PI
E75: (m) | F75: (kN/m2) | G75: (kN/m2) | H75: (kN/m2) | I75: (kN/m2) | J75: (kN/m)
E76: =ROUND(0.75*(1+COS(RADIANS(H10)))*E64*I27*F27,3) -> 13.281 | F76: =ROUND(0.5*(1+COS(RADIANS(H10)))*(E70*E64+F70*F64*(COS(RADIANS(H10))^2))*N10*9.81*I27*F27,3) -> 117.636 | G76: =ROUND(F76/COSH(2*PI()*I10/F15),3) -> 99.23 | H76: =ROUND(G70*F76,3) -> 105.637 | I76: =ROUND((E76-MIN(E76,$L$10))/E76*F76,3) -> 72.463 | J76: =ROUND(0.5*(F76+H76)*$K$10+0.5*(F76+I76)*MIN(E76,$L$10),3) -> 1065.262
D78: b) 直立壁の底面の前面の揚圧力 (式 2-4-8)
E79: pu | F79: 揚圧力合力
F80: PU
E81: (kN/m2) | F81: (kN/m)
E82: =ROUND(0.5*(1+COS(RADIANS(H10)))*E70*G70*G64*N10*9.81*I27*F27,3) -> 63.441 | F82: =ROUND(0.5*E82*$M$10,3) -> 317.205
C85: ② 壁面に波の谷がある場合
D86: a) 壁前面における負圧 (式 2-4-9)
E87: pn | F87: 前面波圧合力
F88: PI
E89: (kN/m2) | F89: (kN/m)
E90: =ROUND(0.5*N10*9.81*I27*F27,3) -> 39.761 | F90: =ROUND(0.5*E90*0.5*I27*F27+E90*(K10-0.5*I27*F27),3) -> 128.525
D92: b) 底面に作用する負の揚圧力 (式 2-4-9)
E93: pn | F93: 揚圧力合力
F94: PU
E95: (kN/m2) | F95: (kN/m)
E96: =ROUND(0.5*N10*9.81*I27*F27,3) -> 39.761 | F96: =ROUND(0.5*E96*$M$10,3) -> 198.805

Sheet 4.2.1 直立壁に作用する波力②
B2: 直立壁に作用する波力の算定② (pp.84-91)
C3: [使用方法]
C4: ・ 黄色のセルに算定条件を入力すると、波圧および波圧合力等が算定されます。
E6: β (°) | F6: h (m) | G6: d (m) | H6: h' (m) | I6: hc (m) | J6: B (m) | K6: ρ0 (t/m3)
E7: 20 | F7: 8 | G7: 4.5 | H7: 5.2 | I7: 5.1 | J7: 10 | K7: 1.03
C10: １．波圧の計算に用いる波高 λ0Hd 及び波長 L の設定 （入力）
E11: L (m)
E12: 83.77
D14: (1) 壁体前面位置
E15: h/Ho'
E16: 1.6
D18: (2) 壁体前面から沖側へ有義波高の5倍の距離の地点
E19: hb (m)
E20: 9.25
D22: (3) 壁体前面から5波高沖までの区間のλ0Hd最大値の地点
E23: Hd (m) | F23: λ0
E24: 5.045 | F24: 1.56
C27: ２．波圧の補正係数 λ1, λ2, λ3 の算定
D28: （pp.88-91、「4.2.1(4) 波圧及び揚圧力の計算に用いる波高及び補正係数λ1,2,3」 参照）
E29: λ1 | F29: λ2 | G29: λ3
E30: =ROUND(IF(E16<=1,0.4*E16+1,IF(E16<=2,-0.4*E16+1.8,IF(E16>2,1,""))),2) -> 1.16 | F30: 1 | G30: 1
C33: ３．波圧及び波圧合力の算定
C34: ① 壁面に波の山がある場合
E35: α1 | F35: α2 | G35: α3
E36: =ROUND(0.6+0.5*(((4*PI()*F7/E12)/(SINH(4*PI()*F7/E12)))^2),3) -> 0.916 | F36: =ROUND(MIN(((E20-G7)/(3*E20))*((F24*E24/G7)^2),2*G7/(F24*E24)),3) -> 0.524 | G36: =ROUND(1-H7/F7*(1-1/COSH(2*PI()*F7/E12)),3) -> 0.898 | P36: η* | Q36: ： 静水面上で波圧強度が0となる高さ (m)
P37: p1 | Q37: ： 静水面における波圧強度 (kN/m2)
D38: a) 直立壁の前面の波圧 (式 2-4-1、 式 2-4-2、 式 2-4-3、 式 2-4-4) | P38: p2 | Q38: ： 海底面における波圧強度 (kN/m2)
E39: η* | F39: p1 | G39: p2 | H39: p3 | I39: p天端 | J39: 前面波圧合力 | P39: p3 | Q39: ： 直立壁の底面における波圧強度 (kN/m2)
J40: PI | P40: ρ0 | Q40: ： 海水の密度 （通常は、1.030t/m3)
E41: (m) | F41: (kN/m2) | G41: (kN/m2) | H41: (kN/m2) | I41: (kN/m2) | J41: (kN/m) | P41: g | Q41: ： 重力加速度 (9.81m/s2)
E42: =ROUND(0.75*(1+COS(RADIANS(E7)))*E30*F24*E24,3) -> 13.281 | F42: =ROUND(0.5*(1+COS(RADIANS(E7)))*(E36*E30+F36*F30*(COS(RADIANS(E7))^2))*K7*9.81*F24*E24,3) -> 117.636 | G42: =ROUND(F42/COSH(2*PI()*F7/E12),3) -> 99.23 | H42: =ROUND(G36*F42,3) -> 105.637 | I42: =ROUND((E42-MIN(E42,$I$7))/E42*F42,3) -> 72.463 | J42: =ROUND(0.5*(F42+H42)*$H$7+0.5*(F42+I42)*MIN(E42,$I$7),3) -> 1065.262 | P42: β | Q42: ： 波の主方向から±15°の範囲で最も危険な方向と直立壁の法線の垂線が成す角度 (°)
P43: λ1 | Q43: ： 波圧の補正係数
D44: b) 直立壁の底面の前面の揚圧力 (式 2-4-8) | P44: λ2 | Q44: ： 波圧の補正係数
E45: pu | F45: 揚圧力合力 | P45: h | Q45: ： 直立壁の前面における水深 (m)
F46: PU | P46: L | Q46: ： 水深hにおける波長 (m)
E47: (kN/m2) | F47: (kN/m) | P47: Hd | Q47: ： 設計で用いる進行波としての有義波高 (m)
E48: =ROUND(0.5*(1+COS(RADIANS(E7)))*E36*G36*G30*K7*9.81*F24*E24,3) -> 63.441 | F48: =ROUND(0.5*E48*$J$7,3) -> 317.205 | P48: λ0 | Q48: ： 波高の補正係数
P49: λ0Hd | Q49: ： 波圧の計算に用いる波高 (m)
Q50: （砕波の影響を受ける領域では壁体前面から5波高沖までの区間のλ0Hdの最大値、
C51: ② 壁面に波の谷がある場合 | Q51: 砕波の影響を受けない領域では壁体前面位置におけるλ0Hdの値とする）
D52: a) 壁前面における負圧 (式 2-4-9) | P52: α1 | Q52: ： ( p.85, 式 2-4-5 ) によって表される数値
E53: pn | F53: 前面波圧合力 | P53: α2 | Q53: ： ( p.85, 式 2-4-6 ) によって表される数値
F54: PI | P54: α3 | Q54: ： ( p.85, 式 2-4-7 ) によって表される数値
E55: (kN/m2) | F55: (kN/m) | P55: hb | Q55: ： 直立壁の前面から沖側へ有義波高の5倍の距離の地点における水深 (m)
E56: =ROUND(0.5*K7*9.81*F24*E24,3) -> 39.761 | F56: =ROUND(0.5*E56*0.5*F24*E24+E56*(H7-0.5*F24*E24),3) -> 128.525 | P56: d | Q56: ： マウンド上の根固め工又は被覆ブロックの天端のうち、いずれか浅い水深 (m)
P57: h' | Q57: ： 直立壁の底面の水深 (m)
D58: b) 底面に作用する負の揚圧力 (式 2-4-9) | P58: pu | Q58: ： 直立壁の底面の前趾に作用する揚圧力強度 (kN/m2)
E59: pn | F59: 揚圧力合力 | P59: λ3 | Q59: ： 揚圧力の補正係数
F60: PU | P60: pn | Q60: ： 一様部における波圧強度 (kN/m2)
E61: (kN/m2) | F61: (kN/m) | P61: H0' | Q61: ： 換算沖波波高 (m)
E62: =ROUND(0.5*K7*9.81*F24*E24,3) -> 39.761 | F62: =ROUND(0.5*E62*$J$7,3) -> 198.805 | P62: L0 | Q62: ： 沖波波長 (m)
P63: H | Q63: ： 堤体前面位置における進行波としての有義波高 (m)
P64: hc | Q64: ： 静水面上天端高 (m)
P65: B | Q65: ： 堤体幅 (m)

Sheet 4.2.2 消波工で被覆された直立壁に作用する波力①
B2: 消波工で被覆された直立壁に作用する波力の算定① (p.92)
C3: [使用方法]
C4: ・ 黄色のセルに算定条件を入力すると、波圧および波圧合力等が算定されます。
C5: ・ 海底勾配は 1/10、 1/15、 1/20、 1/30、 1/50、 1/100 から選択してください。
C6: ・ λ0の算定図は「λ0算定図の更新」ボタンを押すと更新されます。
C7: エラーが発生した場合は、再度更新ボタンを押してください。
E9: Ho' (m) | F9: T (sec) | G9: 海底勾配 | H9: β (°) | I9: h (m) | J9: d (m) | K9: h' (m) | L9: hc (m) | M9: B (m) | N9: ρ0 (t/m3)
E10: 5 | F10: 10 | G10: 0.05 | H10: 20 | I10: 8 | J10: 4.5 | K10: 5.2 | L10: 5.1 | M10: 10 | N10: 1.03
C13: １．波圧の計算に用いる波高 λ0Hd 及び波長 L の算定
E14: Ho'/Lo | F14: L (m)
E15: =ROUND(E10/(1.56*F10^2),3) -> 0.032 | F15: =ROUND(WAVEL(I10,F10),2) -> 83.77 | P15: η* | Q15: ： 静水面上で波圧強度が0となる高さ (m)
P16: p1 | Q16: ： 静水面における波圧強度 (kN/m2)
D17: (1) 壁体前面位置 | P17: p2 | Q17: ： 海底面における波圧強度 (kN/m2)
E18: h (m) | F18: H (m) | G18: h/Ho' | H18: H/Ho' | I18: λ0 (h) | J18: λ0 (h)H (m) | P18: p3 | Q18: ： 直立壁の底面における波圧強度 (kN/m2)
E19: =I10 -> 8 | F19: =ROUND(H19*E10,3) -> 4.995 | G19: =ROUND(I10/E10,2) -> 1.6 | H19: =ROUND(合田H13算定(1/G10, E15, G19),3) -> 0.999 | I19: =ROUND(合田Hmax算定(1/G10,E15,G19)/H19,2) -> 1.43 | J19: =ROUND(I19*F19,3) -> 7.143 | P19: ρ0 | Q19: ： 海水の密度 （通常は、1.030t/m3)
P20: g | Q20: ： 重力加速度 (9.81m/s2)
D21: (2) 壁体前面から沖側へ有義波高の5倍の距離の地点 | P21: β | Q21: ： 波の主方向から±15°の範囲で最も危険な方向と直立壁の法線の垂線が成す角度 (°)
E22: hb (m) | F22: H5H (m) | G22: hb/Ho' | H22: H5H/Ho' | I22: λ0 (5H) | J22: λ0 (5H)H5H (m) | P22: λ1 | Q22: ： 波圧の補正係数
E23: =ROUND((5*F19*G10)+I10,2) -> 9.25 | F23: =ROUND(H23*E10,3) -> 5.04 | G23: =ROUND(E23/E10,2) -> 1.85 | H23: =ROUND(合田H13算定(1/G10, E15, G23),3) -> 1.008 | I23: =ROUND(合田Hmax算定(1/G10,E15,G23)/H23,2) -> 1.56 | J23: =ROUND(I23*F23,3) -> 7.862 | P23: λ2 | Q23: ： 波圧の補正係数
P24: h | Q24: ： 直立壁の前面における水深 (m)
D25: (3) 壁体前面から5波高沖までの区間のλ0Hd最大値の地点 | P25: L | Q25: ： 水深hにおける波長 (m)
E26: h (m) | F26: Hd (m) | G26: h/Ho' | H26: Hd/Ho' | I26: λ0 | J26: λ0Hd (m) | P26: Hd | Q26: ： 設計で用いる進行波としての有義波高 (m)
E27: =IF(J28>J23,E28,E23) -> 9.2 | F27: =IF(J28>J23,F28,F23) -> 5.045 | G27: =IF(J28>J23,G28,G23) -> 1.84 | H27: =IF(J28>J23,H28,H23) -> 1.009 | I27: =IF(J28>J23,I28,I23) -> 1.56 | J27: =IF(J28>J23,J28,J23) -> 7.87 | P27: λ0 | Q27: ： 波高の補正係数
E28: =ROUND(G28*E10,2) -> 9.2 | F28: =ROUND(H28*E10,3) -> 5.045 | G28: =ROUND(Ramda0H_h_Ho(1/G10,E15,G19,G23),2) -> 1.84 | H28: =ROUND(合田H13算定(1/G10, E15, G28),3) -> 1.009 | I28: =ROUND(Ramda0H_Ramda0(1/G10,E15,G19,G23),2) -> 1.56 | J28: =ROUND(I28*F28,3) -> 7.87 | P28: λ0Hd | Q28: ： 波圧の計算に用いる波高 (m)
Q29: （砕波の影響を受ける領域では壁体前面から5波高沖までの区間のλ0Hdの最大値、
Q30: 砕波の影響を受けない領域では壁体前面位置におけるλ0Hdの値とする）
P31: α1 | Q31: ： ( p.85, 式 2-4-5 ) によって表される数値
P32: α2 | Q32: ： ( p.85, 式 2-4-6 ) によって表される数値
P33: α3 | Q33: ： ( p.85, 式 2-4-7 ) によって表される数値
P34: hb | Q34: ： 直立壁の前面から沖側へ有義波高の5倍の距離の地点における水深 (m)
P35: d | Q35: ： マウンド上の根固め工又は被覆ブロックの天端のうち、いずれか浅い水深 (m)
P36: h' | Q36: ： 直立壁の底面の水深 (m)
P37: pu | Q37: ： 直立壁の底面の前趾に作用する揚圧力強度 (kN/m2)
P38: λ3 | Q38: ： 揚圧力の補正係数
P39: pn | Q39: ： 一様部における波圧強度 (kN/m2)
P40: H0' | Q40: ： 換算沖波波高 (m)
P41: L0 | Q41: ： 沖波波長 (m)
P42: H | Q42: ： 堤体前面位置における進行波としての有義波高 (m)
C43: 図 a 補正係数λ0の算定図 （壁体前面位置） | P43: hc | Q43: ： 静水面上天端高 (m)
P44: B | Q44: ： 堤体幅 (m)
P45: B0 | Q45: ： 静水面における消波工の天端幅 (m)
C58: 図 b 補正係数λ0の算定図 （壁体前面から5波高沖までの区間のλ0Hd最大値の地点）
C61: ２．波圧の補正係数 λ1, λ2, λ3 の算定 (式 2-4-11)
E62: λ1 | F62: λ2 | G62: λ3
E63: =ROUND(IF(G19<=1,1,IF(G19<=2,-0.2*G19+1.2,IF(G19<=3,0.8,IF(G19<=5.5,0.08*G19+0.56,IF(G19>5.5,1,""))))),2) -> 0.88 | F63: 0 | G63: =ROUND(E63,2) -> 0.88
C66: ３．波圧及び波圧合力の算定
C67: ① 壁面に波の山がある場合
E68: α1 | F68: α2 | G68: α3
E69: =ROUND(0.6+0.5*(((4*PI()*I10/F15)/(SINH(4*PI()*I10/F15)))^2),3) -> 0.916 | F69: =ROUND(MIN(((E23-J10)/(3*E23))*((I27*F27/J10)^2),2*J10/(I27*F27)),3) -> 0.524 | G69: =ROUND(1-K10/I10*(1-1/COSH(2*PI()*I10/F15)),3) -> 0.898
D71: a) 直立壁の前面の波圧 (式 2-4-1、 式 2-4-2、 式 2-4-3、 式 2-4-4)
E72: η* | F72: p1 | G72: p2 | H72: p3 | I72: p天端 | J72: 前面波圧合力
J73: PI
E74: (m) | F74: (kN/m2) | G74: (kN/m2) | H74: (kN/m2) | I74: (kN/m2) | J74: (kN/m)
E75: =ROUND(0.75*(1+COS(RADIANS(H10)))*E63*I27*F27,3) -> 10.075 | F75: =ROUND(0.5*(1+COS(RADIANS(H10)))*(E69*E63+F69*F63*(COS(RADIANS(H10))^2))*N10*9.81*I27*F27,3) -> 62.169 | G75: =ROUND(F75/COSH(2*PI()*I10/F15),3) -> 52.442 | H75: =ROUND(G69*F75,3) -> 55.828 | I75: =ROUND((E75-MIN(E75,$L$10))/E75*F75,3) -> 30.699 | J75: =ROUND(0.5*(F75+H75)*$K$10+0.5*(F75+I75)*MIN(E75,$L$10),3) -> 543.606
D77: b) 直立壁の底面の前面の揚圧力 (式 2-4-8)
E78: pu | F78: 揚圧力合力
F79: PU
E80: (kN/m2) | F80: (kN/m)
E81: =ROUND(0.5*(1+COS(RADIANS(H10)))*E69*G69*G63*N10*9.81*I27*F27,3) -> 55.828 | F81: =ROUND(0.5*E81*$M$10,3) -> 279.14
C84: ② 壁面に波の谷がある場合
D85: a) 壁前面における負圧 (式 2-4-9)
E86: pn | F86: 前面波圧合力
F87: PI
E88: (kN/m2) | F88: (kN/m)
E89: =ROUND(0.5*N10*9.81*I27*F27,3) -> 39.761 | F89: =ROUND(0.5*E89*0.5*I27*F27+E89*(K10-0.5*I27*F27),3) -> 128.525
D91: b) 底面に作用する負の揚圧力 (式 2-4-9)
E92: pn | F92: 揚圧力合力
F93: PU
E94: (kN/m2) | F94: (kN/m)
E95: =ROUND(0.5*N10*9.81*I27*F27,3) -> 39.761 | F95: =ROUND(0.5*E95*$M$10,3) -> 198.805

Sheet 4.2.2 消波工で被覆された直立壁に作用する波力②
B2: 消波工で被覆された直立壁に作用する波力の算定② (p.92)
C3: [使用方法]
C4: ・ 黄色のセルに算定条件を入力すると、波圧および波圧合力等が算定されます。
E6: β (°) | F6: h (m) | G6: d (m) | H6: h' (m) | I6: hc (m) | J6: B (m) | K6: ρ0 (t/m3)
E7: 20 | F7: 8 | G7: 4.5 | H7: 5.2 | I7: 5.1 | J7: 10 | K7: 1.03
C10: １．波圧の計算に用いる波高 λ0Hd 及び波長 L の設定 （入力）
E11: L (m)
E12: 83.77
D14: (1) 壁体前面位置
E15: h/Ho' | P15: η* | Q15: ： 静水面上で波圧強度が0となる高さ (m)
E16: 1.6 | P16: p1 | Q16: ： 静水面における波圧強度 (kN/m2)
P17: p2 | Q17: ： 海底面における波圧強度 (kN/m2)
D18: (2) 壁体前面から沖側へ有義波高の5倍の距離の地点 | P18: p3 | Q18: ： 直立壁の底面における波圧強度 (kN/m2)
E19: hb (m) | P19: ρ0 | Q19: ： 海水の密度 （通常は、1.030t/m3)
E20: 9.25 | P20: g | Q20: ： 重力加速度 (9.81m/s2)
P21: β | Q21: ： 波の主方向から±15°の範囲で最も危険な方向と直立壁の法線の垂線が成す角度 (°)
D22: (3) 壁体前面から5波高沖までの区間のλ0Hd最大値の地点 | P22: λ1 | Q22: ： 波圧の補正係数
E23: Hd (m) | F23: λ0 | P23: λ2 | Q23: ： 波圧の補正係数
E24: 5.045 | F24: 1.56 | P24: h | Q24: ： 直立壁の前面における水深 (m)
P25: L | Q25: ： 水深hにおける波長 (m)
P26: Hd | Q26: ： 設計で用いる進行波としての有義波高 (m)
C27: ２．波圧の補正係数 λ1, λ2, λ3 の算定 (式 2-4-11) | P27: λ0 | Q27: ： 波高の補正係数
E28: λ1 | F28: λ2 | G28: λ3 | P28: λ0Hd | Q28: ： 波圧の計算に用いる波高 (m)
E29: =ROUND(IF(E16<=1,1,IF(E16<=2,-0.2*E16+1.2,IF(E16<=3,0.8,IF(E16<=5.5,0.08*E16+0.56,IF(E16>5.5,1,""))))),2) -> 0.88 | F29: 0 | G29: =ROUND(E29,2) -> 0.88 | Q29: （砕波の影響を受ける領域では壁体前面から5波高沖までの区間のλ0Hdの最大値、
Q30: 砕波の影響を受けない領域では壁体前面位置におけるλ0Hdの値とする）
P31: α1 | Q31: ： ( p.85, 式 2-4-5 ) によって表される数値
C32: ３．波圧及び波圧合力の算定 | P32: α2 | Q32: ： ( p.85, 式 2-4-6 ) によって表される数値
C33: ① 壁面に波の山がある場合 | P33: α3 | Q33: ： ( p.85, 式 2-4-7 ) によって表される数値
E34: α1 | F34: α2 | G34: α3 | P34: hb | Q34: ： 直立壁の前面から沖側へ有義波高の5倍の距離の地点における水深 (m)
E35: =ROUND(0.6+0.5*(((4*PI()*F7/E12)/(SINH(4*PI()*F7/E12)))^2),3) -> 0.916 | F35: =ROUND(MIN(((E20-G7)/(3*E20))*((F24*E24/G7)^2),2*G7/(F24*E24)),3) -> 0.524 | G35: =ROUND(1-H7/F7*(1-1/COSH(2*PI()*F7/E12)),3) -> 0.898 | P35: d | Q35: ： マウンド上の根固め工又は被覆ブロックの天端のうち、いずれか浅い水深 (m)
P36: h' | Q36: ： 直立壁の底面の水深 (m)
D37: a) 直立壁の前面の波圧 (式 2-4-1、 式 2-4-2、 式 2-4-3、 式 2-4-4) | P37: pu | Q37: ： 直立壁の底面の前趾に作用する揚圧力強度 (kN/m2)
E38: η* | F38: p1 | G38: p2 | H38: p3 | I38: p天端 | J38: 前面波圧合力 | P38: λ3 | Q38: ： 揚圧力の補正係数
J39: PI | P39: pn | Q39: ： 一様部における波圧強度 (kN/m2)
E40: (m) | F40: (kN/m2) | G40: (kN/m2) | H40: (kN/m2) | I40: (kN/m2) | J40: (kN/m) | P40: H0' | Q40: ： 換算沖波波高 (m)
E41: =ROUND(0.75*(1+COS(RADIANS(E7)))*E29*F24*E24,3) -> 10.075 | F41: =ROUND(0.5*(1+COS(RADIANS(E7)))*(E35*E29+F35*F29*(COS(RADIANS(E7))^2))*K7*9.81*F24*E24,3) -> 62.169 | G41: =ROUND(F41/COSH(2*PI()*F7/E12),3) -> 52.442 | H41: =ROUND(G35*F41,3) -> 55.828 | I41: =ROUND((E41-MIN(E41,$I$7))/E41*F41,3) -> 30.699 | J41: =ROUND(0.5*(F41+H41)*$H$7+0.5*(F41+I41)*MIN(E41,$I$7),3) -> 543.606 | P41: L0 | Q41: ： 沖波波長 (m)
P42: H | Q42: ： 堤体前面位置における進行波としての有義波高 (m)
D43: b) 直立壁の底面の前面の揚圧力 (式 2-4-8) | P43: hc | Q43: ： 静水面上天端高 (m)
E44: pu | F44: 揚圧力合力 | P44: B | Q44: ： 堤体幅 (m)
F45: PU | P45: B0 | Q45: ： 静水面における消波工の天端幅 (m)
E46: (kN/m2) | F46: (kN/m)
E47: =ROUND(0.5*(1+COS(RADIANS(E7)))*E35*G35*G29*K7*9.81*F24*E24,3) -> 55.828 | F47: =ROUND(0.5*E47*$J$7,3) -> 279.14
C50: ② 壁面に波の谷がある場合
D51: a) 壁前面における負圧 (式 2-4-9)
E52: pn | F52: 前面波圧合力
F53: PI
E54: (kN/m2) | F54: (kN/m)
E55: =ROUND(0.5*K7*9.81*F24*E24,3) -> 39.761 | F55: =ROUND(0.5*E55*0.5*F24*E24+E55*(H7-0.5*F24*E24),3) -> 128.525
D57: b) 底面に作用する負の揚圧力 (式 2-4-9)
E58: pn | F58: 揚圧力合力
F59: PU
E60: (kN/m2) | F60: (kN/m)
E61: =ROUND(0.5*K7*9.81*F24*E24,3) -> 39.761 | F61: =ROUND(0.5*E61*$J$7,3) -> 198.805

Sheet 4.2.5 直立消波ブロック堤に作用する波力①
B2: 直立消波ブロック堤に作用する波力の算定① (pp.94-95)
C3: [使用方法]
C4: ・ 黄色のセルに算定条件を入力すると、波圧および波圧合力等が算定されます。
C5: ・ 海底勾配は 1/10、 1/15、 1/20、 1/30、 1/50、 1/100 から選択してください。
C6: ・ λ0の算定図は「λ0算定図の更新」ボタンを押すと更新されます。
C7: エラーが発生した場合は、再度更新ボタンを押してください。 | P7: η* | Q7: ： 静水面上で波圧強度が0となる高さ (m)
P8: p1 | Q8: ： 静水面における波圧強度 (kN/m2)
E9: Ho' (m) | F9: T (sec) | G9: 海底勾配 | H9: β (°) | I9: h (m) | J9: d (m) | K9: h' (m) | L9: hc (m) | M9: B (m) | N9: ρ0 (t/m3) | P9: p2 | Q9: ： 海底面における波圧強度 (kN/m2)
E10: 5 | F10: 10 | G10: 0.05 | H10: 20 | I10: 8 | J10: 4.5 | K10: 5.2 | L10: 5.1 | M10: 10 | N10: 1.03 | P10: p3 | Q10: ： 直立壁の底面における波圧強度 (kN/m2)
P11: ρ0 | Q11: ： 海水の密度 （通常は、1.030t/m3)
P12: g | Q12: ： 重力加速度 (9.81m/s2)
C13: １．波圧の計算に用いる波高 λ0Hd 及び波長 L の算定 | P13: β | Q13: ： 波の主方向から±15°の範囲で最も危険な方向と直立壁の法線の垂線が成す角度 (°)
E14: Ho'/Lo | F14: L (m) | P14: λ1 | Q14: ： 波圧の補正係数
E15: =ROUND(E10/(1.56*F10^2),3) -> 0.032 | F15: =ROUND(WAVEL(I10,F10),2) -> 83.77 | P15: λ2 | Q15: ： 波圧の補正係数
P16: h | Q16: ： 直立壁の前面における水深 (m)
D17: (1) 壁体前面位置 | P17: L | Q17: ： 水深hにおける波長 (m)
E18: h (m) | F18: H (m) | G18: h/Ho' | H18: H/Ho' | I18: λ0 (h) | J18: λ0 (h)H (m) | P18: Hd | Q18: ： 設計で用いる進行波としての有義波高 (m)
E19: =I10 -> 8 | F19: =ROUND(H19*E10,3) -> 4.995 | G19: =ROUND(I10/E10,2) -> 1.6 | H19: =ROUND(合田H13算定(1/G10, E15, G19),3) -> 0.999 | I19: =ROUND(合田Hmax算定(1/G10,E15,G19)/H19,2) -> 1.43 | J19: =ROUND(I19*F19,3) -> 7.143 | P19: λ0 | Q19: ： 波高の補正係数
P20: λ0Hd | Q20: ： 波圧の計算に用いる波高 (m)
D21: (2) 壁体前面から沖側へ有義波高の5倍の距離の地点 | Q21: （砕波の影響を受ける領域では壁体前面から5波高沖までの区間のλ0Hdの最大値、
E22: hb (m) | F22: H5H (m) | G22: hb/Ho' | H22: H5H/Ho' | I22: λ0 (5H) | J22: λ0 (5H)H5H (m) | Q22: 砕波の影響を受けない領域では壁体前面位置におけるλ0Hdの値とする）
E23: =ROUND((5*F19*G10)+I10,2) -> 9.25 | F23: =ROUND(H23*E10,3) -> 5.04 | G23: =ROUND(E23/E10,2) -> 1.85 | H23: =ROUND(合田H13算定(1/G10, E15, G23),3) -> 1.008 | I23: =ROUND(合田Hmax算定(1/G10,E15,G23)/H23,2) -> 1.56 | J23: =ROUND(I23*F23,3) -> 7.862 | P23: α1 | Q23: ： ( p.85, 式 2-4-5 ) によって表される数値
P24: α2 | Q24: ： ( p.85, 式 2-4-6 ) によって表される数値
D25: (3) 壁体前面から5波高沖までの区間のλ0Hd最大値の地点 | P25: α3 | Q25: ： ( p.85, 式 2-4-7 ) によって表される数値
E26: h (m) | F26: Hd (m) | G26: h/Ho' | H26: Hd/Ho' | I26: λ0 | J26: λ0Hd (m) | P26: hb | Q26: ： 直立壁の前面から沖側へ有義波高の5倍の距離の地点における水深 (m)
E27: =IF(J28>J23,E28,E23) -> 9.2 | F27: =IF(J28>J23,F28,F23) -> 5.045 | G27: =IF(J28>J23,G28,G23) -> 1.84 | H27: =IF(J28>J23,H28,H23) -> 1.009 | I27: =IF(J28>J23,I28,I23) -> 1.56 | J27: =IF(J28>J23,J28,J23) -> 7.87 | P27: d | Q27: ： マウンド上の根固め工又は被覆ブロックの天端のうち、いずれか浅い水深 (m)
E28: =ROUND(G28*E10,2) -> 9.2 | F28: =ROUND(H28*E10,3) -> 5.045 | G28: =ROUND(Ramda0H_h_Ho(1/G10,E15,G19,G23),2) -> 1.84 | H28: =ROUND(合田H13算定(1/G10, E15, G28),3) -> 1.009 | I28: =ROUND(Ramda0H_Ramda0(1/G10,E15,G19,G23),2) -> 1.56 | J28: =ROUND(I28*F28,3) -> 7.87 | P28: h' | Q28: ： 直立壁の底面の水深 (m)
P29: pu | Q29: ： 直立壁の底面の前趾に作用する揚圧力強度 (kN/m2)
P30: λ3 | Q30: ： 揚圧力の補正係数
P31: pn | Q31: ： 一様部における波圧強度 (kN/m2)
P32: H0' | Q32: ： 換算沖波波高 (m)
P33: L0 | Q33: ： 沖波波長 (m)
P34: H | Q34: ： 堤体前面位置における進行波としての有義波高 (m)
P35: hc | Q35: ： 静水面上天端高 (m)
P36: B | Q36: ： 堤体幅 (m)
C43: 図 a 補正係数λ0の算定図 （壁体前面位置）
C58: 図 b 補正係数λ0の算定図 （壁体前面から5波高沖までの区間のλ0Hd最大値の地点）
C61: ２．波圧の補正係数 λ1, λ2, λ3 の算定 (式 2-4-12)
E62: λ1 | F62: λ2 | G62: λ3
E63: 1 | F63: 0 | G63: 1
C66: ３．波圧及び波圧合力の算定
C67: ① 壁面に波の山がある場合
E68: α1 | F68: α2 | G68: α3
E69: =ROUND(0.6+0.5*(((4*PI()*I10/F15)/(SINH(4*PI()*I10/F15)))^2),3) -> 0.916 | F69: =ROUND(MIN(((E23-J10)/(3*E23))*((I27*F27/J10)^2),2*J10/(I27*F27)),3) -> 0.524 | G69: =ROUND(1-K10/I10*(1-1/COSH(2*PI()*I10/F15)),3) -> 0.898
D71: a) 直立壁の前面の波圧 (式 2-4-1、 式 2-4-2、 式 2-4-3、 式 2-4-4)
E72: η* | F72: p1 | G72: p2 | H72: p3 | I72: p天端 | J72: 前面波圧合力
J73: PI
E74: (m) | F74: (kN/m2) | G74: (kN/m2) | H74: (kN/m2) | I74: (kN/m2) | J74: (kN/m)
E75: =ROUND(0.75*(1+COS(RADIANS(H10)))*E63*I27*F27,3) -> 11.449 | F75: =ROUND(0.5*(1+COS(RADIANS(H10)))*(E69*E63+F69*F63*(COS(RADIANS(H10))^2))*N10*9.81*I27*F27,3) -> 70.646 | G75: =ROUND(F75/COSH(2*PI()*I10/F15),3) -> 59.592 | H75: =ROUND(G69*F75,3) -> 63.44 | I75: =ROUND((E75-MIN(E75,$L$10))/E75*F75,3) -> 39.176 | J75: =ROUND(0.5*(F75+H75)*$K$10+0.5*(F75+I75)*MIN(E75,$L$10),3) -> 628.67
D77: b) 直立壁の底面の前面の揚圧力 (式 2-4-8)
E78: pu | F78: 揚圧力合力
F79: PU
E80: (kN/m2) | F80: (kN/m)
E81: =ROUND(0.5*(1+COS(RADIANS(H10)))*E69*G69*G63*N10*9.81*I27*F27,3) -> 63.441 | F81: =ROUND(0.5*E81*$M$10,3) -> 317.205
C84: ② 壁面に波の谷がある場合
D85: a) 壁前面における負圧 (式 2-4-9)
E86: pn | F86: 前面波圧合力
F87: PI
E88: (kN/m2) | F88: (kN/m)
E89: =ROUND(0.5*N10*9.81*I27*F27,3) -> 39.761 | F89: =ROUND(0.5*E89*0.5*I27*F27+E89*(K10-0.5*I27*F27),3) -> 128.525
D91: b) 底面に作用する負の揚圧力 (式 2-4-9)
E92: pn | F92: 揚圧力合力
F93: PU
E94: (kN/m2) | F94: (kN/m)
E95: =ROUND(0.5*N10*9.81*I27*F27,3) -> 39.761 | F95: =ROUND(0.5*E95*$M$10,3) -> 198.805

Sheet 4.2.5 直立消波ブロック堤に作用する波力②
B2: 直立消波ブロック堤に作用する波力の算定② (pp.94-95)
C3: [使用方法]
C4: ・ 黄色のセルに算定条件を入力すると、波圧および波圧合力等が算定されます。
E6: β (°) | F6: h (m) | G6: d (m) | H6: h' (m) | I6: hc (m) | J6: B (m) | K6: ρ0 (t/m3)
E7: 20 | F7: 8 | G7: 4.5 | H7: 5.2 | I7: 5.1 | J7: 10 | K7: 1.03 | P7: η* | Q7: ： 静水面上で波圧強度が0となる高さ (m)
P8: p1 | Q8: ： 静水面における波圧強度 (kN/m2)
P9: p2 | Q9: ： 海底面における波圧強度 (kN/m2)
C10: １．波圧の計算に用いる波高 λ0Hd 及び波長 L の設定 （入力） | P10: p3 | Q10: ： 直立壁の底面における波圧強度 (kN/m2)
E11: L (m) | P11: ρ0 | Q11: ： 海水の密度 （通常は、1.030t/m3)
E12: 83.77 | P12: g | Q12: ： 重力加速度 (9.81m/s2)
P13: β | Q13: ： 波の主方向から±15°の範囲で最も危険な方向と直立壁の法線の垂線が成す角度 (°)
D14: (1) 壁体前面位置 | P14: λ1 | Q14: ： 波圧の補正係数
E15: h/Ho' | P15: λ2 | Q15: ： 波圧の補正係数
E16: 1.6 | P16: h | Q16: ： 直立壁の前面における水深 (m)
P17: L | Q17: ： 水深hにおける波長 (m)
D18: (2) 壁体前面から沖側へ有義波高の5倍の距離の地点 | P18: Hd | Q18: ： 設計で用いる進行波としての有義波高 (m)
E19: hb (m) | P19: λ0 | Q19: ： 波高の補正係数
E20: 9.25 | P20: λ0Hd | Q20: ： 波圧の計算に用いる波高 (m)
Q21: （砕波の影響を受ける領域では壁体前面から5波高沖までの区間のλ0Hdの最大値、
D22: (3) 壁体前面から5波高沖までの区間のλ0Hd最大値の地点 | Q22: 砕波の影響を受けない領域では壁体前面位置におけるλ0Hdの値とする）
E23: Hd (m) | F23: λ0 | P23: α1 | Q23: ： ( p.85, 式 2-4-5 ) によって表される数値
E24: 5.045 | F24: 1.56 | P24: α2 | Q24: ： ( p.85, 式 2-4-6 ) によって表される数値
P25: α3 | Q25: ： ( p.85, 式 2-4-7 ) によって表される数値
P26: hb | Q26: ： 直立壁の前面から沖側へ有義波高の5倍の距離の地点における水深 (m)
C27: ２．波圧の補正係数 λ1, λ2, λ3 の算定 (式 2-4-12) | P27: d | Q27: ： マウンド上の根固め工又は被覆ブロックの天端のうち、いずれか浅い水深 (m)
E28: λ1 | F28: λ2 | G28: λ3 | P28: h' | Q28: ： 直立壁の底面の水深 (m)
E29: 1 | F29: 0 | G29: 1 | P29: pu | Q29: ： 直立壁の底面の前趾に作用する揚圧力強度 (kN/m2)
P30: λ3 | Q30: ： 揚圧力の補正係数
P31: pn | Q31: ： 一様部における波圧強度 (kN/m2)
C32: ３．波圧及び波圧合力の算定 | P32: H0' | Q32: ： 換算沖波波高 (m)
C33: ① 壁面に波の山がある場合 | P33: L0 | Q33: ： 沖波波長 (m)
E34: α1 | F34: α2 | G34: α3 | P34: H | Q34: ： 堤体前面位置における進行波としての有義波高 (m)
E35: =ROUND(0.6+0.5*(((4*PI()*F7/E12)/(SINH(4*PI()*F7/E12)))^2),3) -> 0.916 | F35: =ROUND(MIN(((E20-G7)/(3*E20))*((F24*E24/G7)^2),2*G7/(F24*E24)),3) -> 0.524 | G35: =ROUND(1-H7/F7*(1-1/COSH(2*PI()*F7/E12)),3) -> 0.898 | P35: hc | Q35: ： 静水面上天端高 (m)
P36: B | Q36: ： 堤体幅 (m)
D37: a) 直立壁の前面の波圧 (式 2-4-1、 式 2-4-2、 式 2-4-3、 式 2-4-4)
E38: η* | F38: p1 | G38: p2 | H38: p3 | I38: p天端 | J38: 前面波圧合力
J39: PI
E40: (m) | F40: (kN/m2) | G40: (kN/m2) | H40: (kN/m2) | I40: (kN/m2) | J40: (kN/m)
E41: =ROUND(0.75*(1+COS(RADIANS(E7)))*E29*F24*E24,3) -> 11.449 | F41: =ROUND(0.5*(1+COS(RADIANS(E7)))*(E35*E29+F35*F29*(COS(RADIANS(E7))^2))*K7*9.81*F24*E24,3) -> 70.646 | G41: =ROUND(F41/COSH(2*PI()*F7/E12),3) -> 59.592 | H41: =ROUND(G35*F41,3) -> 63.44 | I41: =ROUND((E41-MIN(E41,$I$7))/E41*F41,3) -> 39.176 | J41: =ROUND(0.5*(F41+H41)*$H$7+0.5*(F41+I41)*MIN(E41,$I$7),3) -> 628.67
D43: b) 直立壁の底面の前面の揚圧力 (式 2-4-8)
E44: pu | F44: 揚圧力合力
F45: PU
E46: (kN/m2) | F46: (kN/m)
E47: =ROUND(0.5*(1+COS(RADIANS(E7)))*E35*G35*G29*K7*9.81*F24*E24,3) -> 63.441 | F47: =ROUND(0.5*E47*$J$7,3) -> 317.205
C50: ② 壁面に波の谷がある場合
D51: a) 壁前面における負圧 (式 2-4-9)
E52: pn | F52: 前面波圧合力
F53: PI
E54: (kN/m2) | F54: (kN/m)
E55: =ROUND(0.5*K7*9.81*F24*E24,3) -> 39.761 | F55: =ROUND(0.5*E55*0.5*F24*E24+E55*(H7-0.5*F24*E24),3) -> 128.525
D57: b) 底面に作用する負の揚圧力 (式 2-4-9)
E58: pn | F58: 揚圧力合力
F59: PU
E60: (kN/m2) | F60: (kN/m)
E61: =ROUND(0.5*K7*9.81*F24*E24,3) -> 39.761 | F61: =ROUND(0.5*E61*$J$7,3) -> 198.805

Sheet 4.4 ブロック等の安定質量
B2: 波力に対するブロック等の安定質量の算定 （pp.97-98、式 2-4-13、式 2-4-14）
C3: [使用方法]
C4: ・ 黄色のセルに算定条件を入力すると、安定質量 W が算定されます。
D7: H (m) | E7: n | F7: ρr (t/m3) | G7: ρ0 (t/m3)
D8: 3.8 | E8: 3 | F8: 2.3 | G8: 1.03
C10: ハドソン式
D11: KD | E11: W (t)
D12: 4.5 | E12: =ROUND(F8*D8^3/(D12*E8*(F8/G8-1)^3),3) -> 4.987 | J12: =IF(OR(I12="",I12=0),"",I12) -> 
C14: ブレブナー・ドネリー式
D15: NS | E15: W (t)
D16: 1.5 | E16: =ROUND(F8*D8^3/(D16^3*(F8/G8-1)^3),3) -> 19.948
C19: W | D19: ： ブロック等の安定質量 (t)
C20: H | D20: ： ブロック等の法先水深における進行波としての有義波高 (m)
C21: ρr | D21: ： ブロック等の密度 (t/m3)
C22: ρ0 | D22: ： 海水の密度 (t/m3)
C23: n | D23: ： 法勾配 1：n
C24: KD | D24: ： ブロック等の安定数
C25: NS | D25: ： ブロック等の安定数

Sheet 直立堤λ0data (hidden)
A1: 合田 | J1: 合田 | S1: 合田 | AB1: 合田 | AK1: 合田 | AT1: 合田 | BC1: グラフ表示用
B2: Ho/Lo=0.005 | C2: Ho/Lo=0.01 | D2: Ho/Lo=0.02 | E2: Ho/Lo=0.03 | F2: Ho/Lo=0.04 | G2: Ho/Lo=0.05 | K2: Ho/Lo=0.005 | L2: Ho/Lo=0.01 | M2: Ho/Lo=0.02 | N2: Ho/Lo=0.03 | O2: Ho/Lo=0.04 | P2: Ho/Lo=0.05 | T2: Ho/Lo=0.005 | U2: Ho/Lo=0.01 | V2: Ho/Lo=0.02 | W2: Ho/Lo=0.03 | X2: Ho/Lo=0.04 | Y2: Ho/Lo=0.05 | AC2: Ho/Lo=0.005 | AD2: Ho/Lo=0.01 | AE2: Ho/Lo=0.02 | AF2: Ho/Lo=0.03 | AG2: Ho/Lo=0.04 | AH2: Ho/Lo=0.05 | AL2: Ho/Lo=0.005 | AM2: Ho/Lo=0.01 | AN2: Ho/Lo=0.02 | AO2: Ho/Lo=0.03 | AP2: Ho/Lo=0.04 | AQ2: Ho/Lo=0.05 | AU2: Ho/Lo=0.005 | AV2: Ho/Lo=0.01 | AW2: Ho/Lo=0.02 | AX2: Ho/Lo=0.03 | AY2: Ho/Lo=0.04 | AZ2: Ho/Lo=0.05 | BC2: Ho'/Lo = | BD2: ='4.2.1 直立壁に作用する波力①'!E15 -> 0.032 | BF2: 海底勾配1/10 （壁体前面） | BQ2: 海底勾配1/10 （5波高沖までのλoHdの最大値）
A3: 海底勾配逆数 | B3: 10 | C3: 10 | D3: 10 | E3: 10 | F3: 10 | G3: 10 | J3: 海底勾配逆数 | K3: 15 | L3: 15 | M3: 15 | N3: 15 | O3: 15 | P3: 15 | S3: 海底勾配逆数 | T3: 20 | U3: 20 | V3: 20 | W3: 20 | X3: 20 | Y3: 20 | AB3: 海底勾配逆数 | AC3: 30 | AD3: 30 | AE3: 30 | AF3: 30 | AG3: 30 | AH3: 30 | AK3: 海底勾配逆数 | AL3: 50 | AM3: 50 | AN3: 50 | AO3: 50 | AP3: 50 | AQ3: 50 | AT3: 海底勾配逆数 | AU3: 100 | AV3: 100 | AW3: 100 | AX3: 100 | AY3: 100 | AZ3: 100
A4: Ho'/Lo | B4: 0.005 | C4: 0.01 | D4: 0.02 | E4: 0.03 | F4: 0.04 | G4: 0.05 | J4: Ho'/Lo | K4: 0.005 | L4: 0.01 | M4: 0.02 | N4: 0.03 | O4: 0.04 | P4: 0.05 | S4: Ho'/Lo | T4: 0.005 | U4: 0.01 | V4: 0.02 | W4: 0.03 | X4: 0.04 | Y4: 0.05 | AB4: Ho'/Lo | AC4: 0.005 | AD4: 0.01 | AE4: 0.02 | AF4: 0.03 | AG4: 0.04 | AH4: 0.05 | AK4: Ho'/Lo | AL4: 0.005 | AM4: 0.01 | AN4: 0.02 | AO4: 0.03 | AP4: 0.04 | AQ4: 0.05 | AT4: Ho'/Lo | AU4: 0.005 | AV4: 0.01 | AW4: 0.02 | AX4: 0.03 | AY4: 0.04 | AZ4: 0.05 | BC4: ①壁体前面
A5: h/Ho' | B5: H/Ho' | J5: h/Ho' | K5: H/Ho' | S5: h/Ho' | T5: H/Ho' | AB5: h/Ho' | AC5: H/Ho' | AK5: h/Ho' | AL5: H/Ho' | AT5: h/Ho' | AU5: H/Ho' | BC5: h/Ho' | BD5: λo
A6: 4 | B6: 1.799551234 | C6: 1.799815498 | D6: 1.799373041 | E6: 1.799349241 | F6: 1.799781182 | G6: 1.799782372 | J6: 4 | K6: 1.799401198 | L6: 1.79797048 | M6: 1.798328109 | N6: 1.799349241 | O6: 1.799781182 | P6: 1.798694233 | S6: 4 | T6: 1.799401198 | U6: 1.799630656 | V6: 1.79916318 | W6: 1.798264642 | X6: 1.79868709 | Y6: 1.798694233 | AB6: 4 | AC6: 1.798652695 | AD6: 1.798707295 | AE6: 1.79916318 | AF6: 1.798264642 | AG6: 1.79868709 | AH6: 1.797606094 | AK6: 4 | AL6: 1.797155689 | AM6: 1.798707295 | AN6: 1.79916318 | AO6: 1.800217155 | AP6: 1.79868709 | AQ6: 1.795429815 | AT6: 4 | AU6: 1.796254682 | AV6: 1.798707295 | AW6: 1.79916318 | AX6: 1.800217155 | AY6: 1.797592998 | AZ6: 1.793253536 | BC6: 0 | BD6: ='4.2.1 直立壁に作用する波力①'!I19 -> 1.43
A7: 3.95 | B7: 1.798812175 | C7: 1.799632353 | D7: 1.798748697 | E7: 1.798483207 | F7: 1.799781182 | G7: 1.798694233 | J7: 3.95 | K7: 1.799405646 | L7: 1.799448022 | M7: 1.798538622 | N7: 1.798483207 | O7: 1.799781182 | P7: 1.79956427 | S7: 3.95 | T7: 1.798662704 | U7: 1.799448022 | V7: 1.798538622 | W7: 1.799349241 | X7: 1.79868709 | Y7: 1.79956427 | AB7: 3.95 | AC7: 1.799256506 | AD7: 1.798528059 | AE7: 1.800417973 | AF7: 1.799349241 | AG7: 1.79868709 | AH7: 1.798474946 | AK7: 3.95 | AL7: 1.797026022 | AM7: 1.798528059 | AN7: 1.799373041 | AO7: 1.799349241 | AP7: 1.79868709 | AQ7: 1.796296296 | AT7: 3.95 | AU7: 1.794795539 | AV7: 1.799263352 | AW7: 1.799373041 | AX7: 1.799349241 | AY7: 1.797592998 | AZ7: 1.794117647 | BC7: ='4.2.1 直立壁に作用する波力①'!G19 -> 1.6 | BD7: ='4.2.1 直立壁に作用する波力①'!I19 -> 1.43
A8: 3.9 | B8: 1.798820929 | C8: 1.799450549 | D8: 1.798958333 | E8: 1.798701299 | F8: 1.799781182 | G8: 1.79956427 | J8: 3.9 | K8: 1.798672566 | L8: 1.799266728 | M8: 1.799791449 | N8: 1.799566631 | O8: 1.799781182 | P8: 1.798474946 | S8: 3.9 | T8: 1.8 | U8: 1.799266728 | V8: 1.799791449 | W8: 1.799566631 | X8: 1.79868709 | Y8: 1.798474946 | AB8: 3.9 | AC8: 1.798523985 | AD8: 1.798350137 | AE8: 1.798748697 | AF8: 1.798483207 | AG8: 1.79868709 | AH8: 1.797385621 | AK8: 3.9 | AL8: 1.796309963 | AM8: 1.8 | AN8: 1.798748697 | AO8: 1.798483207 | AP8: 1.797592998 | AQ8: 1.794117647 | AT8: 3.9 | AU8: 1.791881919 | AV8: 1.799082569 | AW8: 1.798748697 | AX8: 1.798483207 | AY8: 1.797592998 | AZ8: 1.79389313 | BC8: ='4.2.1 直立壁に作用する波力①'!G19 -> 1.6 | BD8: 1
A9: 3.85 | B9: 1.798829554 | C9: 1.799270073 | D9: 1.798336798 | E9: 1.79978355 | F9: 1.799781182 | G9: 1.798474946 | J9: 3.85 | K9: 1.799414348 | L9: 1.799086758 | M9: 1.799167534 | N9: 1.798701299 | O9: 1.799781182 | P9: 1.799345692 | S9: 3.85 | T9: 1.798682284 | U9: 1.799086758 | V9: 1.798126951 | W9: 1.798701299 | X9: 1.79868709 | Y9: 1.799345692 | AB9: 3.85 | AC9: 1.798534799 | AD9: 1.798173516 | AE9: 1.8 | AF9: 1.798701299 | AG9: 1.79868709 | AH9: 1.797164667 | AK9: 3.85 | AL9: 1.794871795 | AM9: 1.799817185 | AN9: 1.8 | AO9: 1.799566631 | AP9: 1.797592998 | AQ9: 1.794983642 | AT9: 3.85 | AU9: 1.78974359 | AV9: 1.799817185 | AW9: 1.798958333 | AX9: 1.799566631 | AY9: 1.797592998 | AZ9: 1.791712105
A10: 3.8 | B10: 1.79956427 | C10: 1.799090909 | D10: 1.799584631 | E10: 1.798918919 | F10: 1.797814208 | G10: 1.799345692 | J10: 3.8 | K10: 1.798838054 | L10: 1.799818016 | M10: 1.8004158 | N10: 1.798918919 | O10: 1.799781182 | P10: 1.79825518 | S10: 3.8 | T10: 1.799418605 | U10: 1.798908098 | V10: 1.799376299 | W10: 1.797837838 | X10: 1.799781182 | Y10: 1.79825518 | AB10: 3.8 | AC10: 1.797238372 | AD10: 1.798908098 | AE10: 1.799376299 | AF10: 1.79978355 | AG10: 1.79868709 | AH10: 1.796074155 | AK10: 3.8 | AL10: 1.792877907 | AM10: 1.799635701 | AN10: 1.798336798 | AO10: 1.79978355 | AP10: 1.797592998 | AQ10: 1.795851528 | AT10: 3.8 | AU10: 1.786909091 | AV10: 1.799635701 | AW10: 1.798336798 | AX10: 1.798701299 | AY10: 1.797592998 | AZ10: 1.792576419 | BC10: ②5波高沖までのλoHdの最大値
A11: 3.75 | B11: 1.799711816 | C11: 1.798913043 | D11: 1.797927461 | E11: 1.799136069 | F11: 1.798907104 | G11: 1.79825518 | J11: 3.75 | K11: 1.798270893 | L11: 1.799637353 | M11: 1.798755187 | N11: 1.8 | O11: 1.799781182 | P11: 1.800218341 | S11: 3.75 | T11: 1.798846431 | U11: 1.798730734 | V11: 1.798755187 | W11: 1.8 | X11: 1.799781182 | Y11: 1.799126638 | AB11: 3.75 | AC11: 1.79668349 | AD11: 1.798730734 | AE11: 1.798755187 | AF11: 1.798918919 | AG11: 1.79868709 | AH11: 1.796943231 | AK11: 3.75 | AL11: 1.790764791 | AM11: 1.798730734 | AN11: 1.799584631 | AO11: 1.798918919 | AP11: 1.79868709 | AQ11: 1.793668122 | AT11: 3.75 | AU11: 1.782106782 | AV11: 1.799455535 | AW11: 1.799584631 | AX11: 1.798918919 | AY11: 1.797592998 | AZ11: 1.790393013 | BC11: h/Ho' | BD11: λo
A12: 3.7 | B12: 1.798571429 | C12: 1.799638989 | D12: 1.799171843 | E12: 1.798274002 | F12: 1.798907104 | G12: 1.799126638 | J12: 3.7 | K12: 1.799142244 | L12: 1.798736462 | M12: 1.798136646 | N12: 1.800215983 | O12: 1.797814208 | P12: 1.799126638 | S12: 3.7 | T12: 1.797712652 | U12: 1.799457995 | V12: 1.8 | W12: 1.799136069 | X12: 1.799781182 | Y12: 1.798034934 | AB12: 3.7 | AC12: 1.795422031 | AD12: 1.799457995 | AE12: 1.8 | AF12: 1.799136069 | AG12: 1.79868709 | AH12: 1.795851528 | AK12: 3.7 | AL12: 1.78683834 | AM12: 1.798554652 | AN12: 1.798963731 | AO12: 1.799136069 | AP12: 1.79868709 | AQ12: 1.792576419 | AT12: 3.7 | AU12: 1.775948461 | AV12: 1.79765131 | AW12: 1.798963731 | AX12: 1.798056156 | AY12: 1.796498906 | AZ12: 1.790163934 | BC12: 0 | BD12: ='4.2.1 直立壁に作用する波力①'!I27 -> 1.56
A13: 3.65 | B13: 1.799433026 | C13: 1.798742138 | D13: 1.798553719 | E13: 1.798491379 | F13: 1.798907104 | G13: 1.799126638 | J13: 3.65 | K13: 1.798724309 | L13: 1.798561151 | M13: 1.799379524 | N13: 1.799352751 | O13: 1.798907104 | P13: 1.798034934 | S13: 3.65 | T13: 1.79858156 | U13: 1.798561151 | V13: 1.799379524 | W13: 1.799352751 | X13: 1.797814208 | Y13: 1.798907104 | AB13: 3.65 | AC13: 1.793617021 | AD13: 1.799279928 | AE13: 1.799379524 | AF13: 1.798274002 | AG13: 1.799781182 | AH13: 1.796721311 | AK13: 3.65 | AL13: 1.782824698 | AM13: 1.799279928 | AN13: 1.798345398 | AO13: 1.798274002 | AP13: 1.79868709 | AQ13: 1.792349727 | AT13: 3.65 | AU13: 1.769176136 | AV13: 1.798379838 | AW13: 1.798345398 | AX13: 1.798274002 | AY13: 1.796498906 | AZ13: 1.787978142 | BC13: ='4.2.1 直立壁に作用する波力①'!G27 -> 1.84 | BD13: ='4.2.1 直立壁に作用する波力①'!I27 -> 1.56
A14: 3.6 | B14: 1.798455056 | C14: 1.798567592 | D14: 1.797938144 | E14: 1.797631862 | F14: 1.8 | G14: 1.8 | J14: 3.6 | K14: 1.799016163 | L14: 1.799283154 | M14: 1.79876161 | N14: 1.799568966 | O14: 1.798907104 | P14: 1.798907104 | S14: 3.6 | T14: 1.796907941 | U14: 1.799283154 | V14: 1.79876161 | W14: 1.798491379 | X14: 1.798907104 | Y14: 1.797814208 | AB14: 3.6 | AC14: 1.791139241 | AD14: 1.798387097 | AE14: 1.79876161 | AF14: 1.798491379 | AG14: 1.797814208 | AH14: 1.795628415 | AK14: 3.6 | AL14: 1.776213934 | AM14: 1.799103139 | AN14: 1.797729618 | AO14: 1.798491379 | AP14: 1.796721311 | AQ14: 1.791256831 | AT14: 3.6 | AU14: 1.759859155 | AV14: 1.798206278 | AW14: 1.799586777 | AX14: 1.797413793 | AY14: 1.796498906 | AZ14: 1.78579235 | BC14: ='4.2.1 直立壁に作用する波力①'!G27 -> 1.84 | BD14: 1
A15: 3.55 | B15: 1.799442897 | C15: 1.798573975 | D15: 1.800205973 | E15: 1.799784715 | F15: 1.8 | G15: 1.798907104 | J15: 3.55 | K15: 1.798050139 | L15: 1.799286351 | M15: 1.799176107 | N15: 1.798708288 | O15: 1.798907104 | P15: 1.798907104 | S15: 3.55 | T15: 1.797212544 | U15: 1.799286351 | V15: 1.798146241 | W15: 1.798708288 | X15: 1.798907104 | Y15: 1.796721311 | AB15: 3.55 | AC15: 1.788005579 | AD15: 1.798394291 | AE15: 1.8 | AF15: 1.798708288 | AG15: 1.797814208 | AH15: 1.794535519 | AK15: 3.55 | AL15: 1.76901605 | AM15: 1.799107143 | AN15: 1.798969072 | AO15: 1.797631862 | AP15: 1.796721311 | AQ15: 1.791028446 | AT15: 3.55 | AU15: 1.749825297 | AV15: 1.797321429 | AW15: 1.798969072 | AX15: 1.797631862 | AY15: 1.794535519 | AZ15: 1.785557987
A16: 3.5 | B16: 1.799861974 | C16: 1.799467613 | D16: 1.7995889 | E16: 1.8 | F16: 1.799126638 | G16: 1.798907104 | J16: 3.5 | K16: 1.798481712 | L16: 1.80017762 | M16: 1.798561151 | N16: 1.798924731 | O16: 1.798034934 | P16: 1.797814208 | S16: 3.5 | T16: 1.79558011 | U16: 1.79928952 | V16: 1.800411523 | W16: 1.798924731 | X16: 1.8 | Y16: 1.79868709 | AB16: 3.5 | AC16: 1.782999309 | AD16: 1.798401421 | AE16: 1.799382716 | AF16: 1.798924731 | AG16: 1.798907104 | AH16: 1.794310722 | AK16: 3.5 | AL16: 1.760553633 | AM16: 1.797513321 | AN16: 1.799382716 | AO16: 1.797849462 | AP16: 1.796721311 | AQ16: 1.788840263 | AT16: 3.5 | AU16: 1.737352737 | AV16: 1.795737123 | AW16: 1.798353909 | AX16: 1.796774194 | AY16: 1.794535519 | AZ16: 1.782275711
A17: 3.45 | B17: 1.799043062 | C17: 1.798764342 | D17: 1.798974359 | E17: 1.798283262 | F17: 1.799126638 | G17: 1.797814208 | J17: 3.45 | K17: 1.798221614 | L17: 1.799469965 | M17: 1.797948718 | N17: 1.799140709 | O17: 1.799126638 | P17: 1.79868709 | S17: 3.45 | T17: 1.792749658 | U17: 1.798586572 | V17: 1.799794661 | W17: 1.799140709 | X17: 1.798034934 | Y17: 1.797592998 | AB17: 3.45 | AC17: 1.776712329 | AD17: 1.79770318 | AE17: 1.799794661 | AF17: 1.798066595 | AG17: 1.796943231 | AH17: 1.79321663 | AK17: 3.45 | AL17: 1.748285322 | AM17: 1.798408488 | AN17: 1.798767967 | AO17: 1.798066595 | AP17: 1.796721311 | AQ17: 1.786652079 | AT17: 3.45 | AU17: 1.72233677 | AV17: 1.795755968 | AW17: 1.797741273 | AX17: 1.796992481 | AY17: 1.793442623 | AZ17: 1.78203724
A18: 3.4 | B18: 1.798916723 | C18: 1.798946444 | D18: 1.799385875 | E18: 1.798499464 | F18: 1.79825518 | G18: 1.799781182 | J18: 3.4 | K18: 1.798102981 | L18: 1.799648506 | M18: 1.798362334 | N18: 1.799356223 | O18: 1.799126638 | P18: 1.79868709 | S18: 3.4 | T18: 1.7899729 | U18: 1.798769772 | V18: 1.799180328 | W18: 1.799356223 | X18: 1.799126638 | Y18: 1.796498906 | AB18: 3.4 | AC18: 1.76797829 | AD18: 1.797891037 | AE18: 1.799180328 | AF18: 1.798283262 | AG18: 1.798034934 | AH18: 1.792122538 | AK18: 3.4 | AL18: 1.734874235 | AM18: 1.796833773 | AN18: 1.798155738 | AO18: 1.7972103 | AP18: 1.794759825 | AQ18: 1.786418401 | AT18: 3.4 | AU18: 1.706203136 | AV18: 1.793315743 | AW18: 1.797131148 | AX18: 1.796137339 | AY18: 1.791484716 | AZ18: 1.778751369
A19: 3.35 | B19: 1.798927614 | C19: 1.799126638 | D19: 1.798774259 | E19: 1.798715203 | F19: 1.799345692 | G19: 1.799781182 | J19: 3.35 | K19: 1.796780684 | L19: 1.798253275 | M19: 1.797752809 | N19: 1.799571275 | O19: 1.79825518 | P19: 1.797592998 | S19: 3.35 | T19: 1.786577181 | U19: 1.799825175 | V19: 1.799591002 | W19: 1.799571275 | X19: 1.79825518 | Y19: 1.795404814 | AB19: 3.35 | AC19: 1.757392473 | AD19: 1.798076923 | AE19: 1.799591002 | AF19: 1.798499464 | AG19: 1.798034934 | AH19: 1.789934354 | AK19: 3.35 | AL19: 1.720161834 | AM19: 1.795454545 | AN19: 1.798568507 | AO19: 1.797427653 | AP19: 1.794759825 | AQ19: 1.78422782 | AT19: 3.35 | AU19: 1.688768606 | AV19: 1.79020979 | AW19: 1.797546012 | AX19: 1.79528403 | AY19: 1.790393013 | AZ19: 1.775465498
A20: 3.3 | B20: 1.798938288 | C20: 1.799479167 | D20: 1.799184506 | E20: 1.798930481 | F20: 1.800436205 | G20: 1.79868709 | J20: 3.3 | K20: 1.794820717 | L20: 1.799304952 | M20: 1.798165138 | N20: 1.797860963 | O20: 1.799345692 | P20: 1.797592998 | S20: 3.3 | T20: 1.780730897 | U20: 1.799304952 | V20: 1.8 | W20: 1.799785867 | X20: 1.79825518 | Y20: 1.795404814 | AB20: 3.3 | AC20: 1.745006658 | AD20: 1.797567333 | AE20: 1.798979592 | AF20: 1.798715203 | AG20: 1.796074155 | AH20: 1.790799562 | AK20: 3.3 | AL20: 1.702540107 | AM20: 1.793223284 | AN20: 1.797959184 | AO20: 1.79764454 | AP20: 1.792802617 | AQ20: 1.78094195 | AT20: 3.3 | AU20: 1.669576897 | AV20: 1.788695652 | AW20: 1.796938776 | AX20: 1.795503212 | AY20: 1.787350055 | AZ20: 1.771084337
A21: 3.25 | B21: 1.798424163 | C21: 1.799827437 | D21: 1.799593082 | E21: 1.799145299 | F21: 1.798474946 | G21: 1.79868709 | J21: 3.25 | K21: 1.792378449 | L21: 1.798964625 | M21: 1.798575788 | N21: 1.799145299 | O21: 1.798474946 | P21: 1.797592998 | S21: 3.25 | T21: 1.773684211 | U21: 1.799654577 | V21: 1.800407332 | W21: 1.798076923 | X21: 1.797385621 | Y21: 1.794310722 | AB21: 3.25 | AC21: 1.730870712 | AD21: 1.797063903 | AE21: 1.799389002 | AF21: 1.797008547 | AG21: 1.797164667 | AH21: 1.788608981 | AK21: 3.25 | AL21: 1.684350133 | AM21: 1.791018998 | AN21: 1.798370672 | AO21: 1.797860963 | AP21: 1.792802617 | AQ21: 1.777656079 | AT21: 3.25 | AU21: 1.648666667 | AV21: 1.783923941 | AW21: 1.796334012 | AX21: 1.794652406 | AY21: 1.786259542 | AZ21: 1.769736842
A22: 3.2 | B22: 1.7985705 | C22: 1.798628963 | D22: 1.798174442 | E22: 1.798507463 | F22: 1.798694233 | G22: 1.79868709 | J22: 3.2 | K22: 1.788686606 | L22: 1.799313894 | M22: 1.8 | N22: 1.799359658 | O22: 1.79956427 | P22: 1.796498906 | S22: 3.2 | T22: 1.763671875 | U22: 1.798456261 | V22: 1.798984772 | W22: 1.799359658 | X22: 1.798474946 | Y22: 1.795180723 | AB22: 3.2 | AC22: 1.71372549 | AD22: 1.795025729 | AE22: 1.797969543 | AF22: 1.798292423 | AG22: 1.795206972 | AH22: 1.787513691 | AK22: 3.2 | AL22: 1.663815789 | AM22: 1.788841202 | AN22: 1.796954315 | AO22: 1.795090715 | AP22: 1.789760349 | AQ22: 1.774370208 | AT22: 3.2 | AU22: 1.626075447 | AV22: 1.777682403 | AW22: 1.793908629 | AX22: 1.791889007 | AY22: 1.785169029 | AZ22: 1.765350877
A23: 3.15 | B23: 1.798200514 | C23: 1.799148936 | D23: 1.798989899 | E23: 1.798722045 | F23: 1.799782372 | G23: 1.79868709 | J23: 3.15 | K23: 1.783279743 | L23: 1.799829642 | M23: 1.797979798 | N23: 1.798722045 | O23: 1.798694233 | P23: 1.796498906 | S23: 3.15 | T23: 1.75128866 | U23: 1.798126065 | V23: 1.799797776 | W23: 1.799573561 | X23: 1.797606094 | Y23: 1.794085433 | AB23: 3.15 | AC23: 1.696046662 | AD23: 1.793867121 | AE23: 1.798786653 | AF23: 1.798507463 | AG23: 1.794341676 | AH23: 1.785323111 | AK23: 3.15 | AL23: 1.640992167 | AM23: 1.784313725 | AN23: 1.796764408 | AO23: 1.795309168 | AP23: 1.788671024 | AQ23: 1.773026316 | AT23: 3.15 | AU23: 1.604605263 | AV23: 1.7721843 | AW23: 1.792719919 | AX23: 1.791044776 | AY23: 1.781045752 | AZ23: 1.759868421
A24: 3.1 | B24: 1.797331639 | C24: 1.798141892 | D24: 1.79798995 | E24: 1.8 | F24: 1.798913043 | G24: 1.79868709 | J24: 3.1 | K24: 1.776717557 | L24: 1.798816568 | M24: 1.799798793 | N24: 1.79893617 | O24: 1.797826087 | P24: 1.796498906 | S24: 3.1 | T24: 1.73771538 | U24: 1.797125951 | V24: 1.798792757 | W24: 1.79893617 | X24: 1.798694233 | Y24: 1.792990142 | AB24: 3.1 | AC24: 1.674373796 | AD24: 1.791878173 | AE24: 1.79778672 | AF24: 1.796808511 | AG24: 1.794341676 | AH24: 1.78203724 | AK24: 3.1 | AL24: 1.618677043 | AM24: 1.77749577 | AN24: 1.793762575 | AO24: 1.792553191 | AP24: 1.785636561 | AQ24: 1.768640351 | AT24: 3.1 | AU24: 1.581806283 | AV24: 1.762066046 | AW24: 1.791540785 | AX24: 1.78913738 | AY24: 1.776931447 | AZ24: 1.754385965
A25: 3.05 | B25: 1.797110553 | C25: 1.798826488 | D25: 1.7997998 | E25: 1.798301486 | F25: 1.798045603 | G25: 1.79868709 | J25: 3.05 | K25: 1.767778477 | L25: 1.798657718 | M25: 1.798798799 | N25: 1.798301486 | O25: 1.798913043 | P25: 1.795404814 | S25: 3.05 | T25: 1.720151611 | U25: 1.79614094 | V25: 1.797797798 | W25: 1.799149841 | X25: 1.797826087 | Y25: 1.791894852 | AB25: 3.05 | AC25: 1.651592357 | AD25: 1.788413098 | AE25: 1.79759519 | AF25: 1.797024442 | AG25: 1.792391304 | AH25: 1.779846659 | AK25: 3.05 | AL25: 1.595360825 | AM25: 1.771428571 | AN25: 1.793587174 | AO25: 1.791710946 | AP25: 1.782608696 | AQ25: 1.764254386 | AT25: 3.05 | AU25: 1.55859375 | AV25: 1.752733389 | AW25: 1.78757515 | AX25: 1.78533475 | AY25: 1.774755169 | AZ25: 1.750823271
A26: 3 | B26: 1.795779019 | C26: 1.799500832 | D26: 1.798804781 | E26: 1.799575822 | F26: 1.800217155 | G26: 1.79868709 | J26: 3 | K26: 1.755444928 | L26: 1.797836938 | M26: 1.799601196 | N26: 1.799575822 | O26: 1.799131379 | P26: 1.795404814 | S26: 3 | T26: 1.700437774 | U26: 1.796003331 | V26: 1.798604187 | W26: 1.798515376 | X26: 1.796959826 | Y26: 1.788840263 | AB26: 3 | AC26: 1.628318584 | AD26: 1.782681099 | AE26: 1.796610169 | AF26: 1.79533404 | AG26: 1.790445168 | AH26: 1.776560789 | AK26: 3 | AL26: 1.572435897 | AM26: 1.76146789 | AN26: 1.790628116 | AO26: 1.790870488 | AP26: 1.781521739 | AQ26: 1.759868421 | AT26: 3 | AU26: 1.535667964 | AV26: 1.741019215 | AW26: 1.784431138 | AX26: 1.78343949 | AY26: 1.769565217 | AZ26: 1.744237102
A27: 2.95 | B27: 1.793378296 | C27: 1.79950495 | D27: 1.798810704 | E27: 1.798941799 | F27: 1.799349241 | G27: 1.799781182 | J27: 2.95 | K27: 1.740923077 | L27: 1.797854785 | M27: 1.799603175 | N27: 1.798941799 | O27: 1.798264642 | P27: 1.795404814 | S27: 2.95 | T27: 1.678018576 | U27: 1.793559042 | V27: 1.798611111 | W27: 1.796825397 | X27: 1.796095445 | Y27: 1.787746171 | AB27: 2.95 | AC27: 1.604519774 | AD27: 1.776859504 | AE27: 1.794642857 | AF27: 1.795550847 | AG27: 1.787418655 | AH27: 1.773274918 | AK27: 2.95 | AL27: 1.548469388 | AM27: 1.750827815 | AN27: 1.788480636 | AO27: 1.787076271 | AP27: 1.776330076 | AQ27: 1.754385965 | AT27: 2.95 | AU27: 1.514877102 | AV27: 1.725538972 | AW27: 1.779543198 | AX27: 1.778601695 | AY27: 1.765217391 | AZ27: 1.736553238 | BF27: 海底勾配1/15 （壁体前面） | BQ27: 海底勾配1/15 （5波高沖までのλoHdの最大値）
A28: 2.9 | B28: 1.790430042 | C28: 1.798855274 | D28: 1.799605133 | E28: 1.798310454 | F28: 1.799566631 | G28: 1.797814208 | J28: 2.9 | K28: 1.723067559 | L28: 1.79787234 | M28: 1.798617966 | N28: 1.800211416 | O28: 1.798483207 | P28: 1.794310722 | S28: 2.9 | T28: 1.655003069 | U28: 1.789689034 | V28: 1.7976308 | W28: 1.798097252 | X28: 1.794149512 | Y28: 1.785557987 | AB28: 2.9 | AC28: 1.580162196 | AD28: 1.768852459 | AE28: 1.792694965 | AF28: 1.792811839 | AG28: 1.787418655 | AH28: 1.768893757 | AK28: 2.9 | AL28: 1.527018436 | AM28: 1.736453202 | AN28: 1.78458498 | AO28: 1.783298097 | AP28: 1.772234273 | AQ28: 1.747807018 | AT28: 2.9 | AU28: 1.494512589 | AV28: 1.708641975 | AW28: 1.772727273 | AX28: 1.774603175 | AY28: 1.758957655 | AZ28: 1.728869374
A29: 2.85 | B29: 1.784688995 | C29: 1.799027553 | D29: 1.799607073 | E29: 1.798735511 | F29: 1.79978355 | G29: 1.797814208 | J29: 2.85 | K29: 1.702588802 | L29: 1.795786062 | M29: 1.798624754 | N29: 1.799578059 | O29: 1.797619048 | P29: 1.792349727 | S29: 2.85 | T29: 1.630553865 | U29: 1.785888078 | V29: 1.797642436 | W29: 1.797468354 | X29: 1.793290043 | Y29: 1.784463895 | AB29: 2.85 | AC29: 1.555831266 | AD29: 1.757108042 | AE29: 1.790766208 | AF29: 1.791139241 | AG29: 1.783315276 | AH29: 1.764512596 | AK29: 2.85 | AL29: 1.505389981 | AM29: 1.721271394 | AN29: 1.778761062 | AO29: 1.780359029 | AP29: 1.767063922 | AQ29: 1.74122807 | AT29: 2.85 | AU29: 1.475483871 | AV29: 1.690106296 | AW29: 1.766732283 | AX29: 1.767687434 | AY29: 1.751626898 | AZ29: 1.723076923
A30: 2.8 | B30: 1.776859504 | C30: 1.798555377 | D30: 1.798828125 | E30: 1.8 | F30: 1.8 | G30: 1.798907104 | J30: 2.8 | K30: 1.678975581 | L30: 1.79437751 | M30: 1.798631476 | N30: 1.798947368 | O30: 1.797837838 | P30: 1.792349727 | S30: 2.8 | T30: 1.605072464 | U30: 1.779742765 | V30: 1.796676442 | W30: 1.795789474 | X30: 1.792432432 | Y30: 1.782275711 | AB30: 2.8 | AC30: 1.532427424 | AD30: 1.743961353 | AE30: 1.787878788 | AF30: 1.788421053 | AG30: 1.78030303 | AH30: 1.760131435 | AK30: 2.8 | AL30: 1.484177215 | AM30: 1.702506063 | AN30: 1.772994129 | AO30: 1.775553214 | AP30: 1.762730228 | AQ30: 1.733552632 | AT30: 2.8 | AU30: 1.457069077 | AV30: 1.668831169 | AW30: 1.757100881 | AX30: 1.762658228 | AY30: 1.745119306 | AZ30: 1.713186813
A31: 2.75 | B31: 1.766317016 | C31: 1.799682035 | D31: 1.798833819 | E31: 1.799369748 | F31: 1.798274002 | G31: 1.798034934 | J31: 2.75 | K31: 1.654277286 | L31: 1.790937997 | M31: 1.799610895 | N31: 1.798319328 | O31: 1.796976242 | P31: 1.791256831 | S31: 2.75 | T31: 1.579484103 | U31: 1.771496815 | V31: 1.795719844 | W31: 1.795168067 | X31: 1.79049676 | Y31: 1.77704918 | AB31: 2.75 | AC31: 1.509236453 | AD31: 1.727853152 | AE31: 1.78307393 | AF31: 1.786540484 | AG31: 1.776216216 | AH31: 1.754654984 | AK31: 2.75 | AL31: 1.465189873 | AM31: 1.682182986 | AN31: 1.76436222 | AO31: 1.769716088 | AP31: 1.755411255 | AQ31: 1.727771679 | AT31: 2.75 | AU31: 1.439844761 | AV31: 1.647580645 | AW31: 1.747317073 | AX31: 1.753684211 | AY31: 1.735644637 | AZ31: 1.703296703
A32: 2.7 | B32: 1.752156412 | C32: 1.797955975 | D32: 1.799806576 | E32: 1.799790356 | F32: 1.798491379 | G32: 1.798034934 | J32: 2.7 | K32: 1.627703098 | L32: 1.786782061 | M32: 1.79787234 | N32: 1.79769392 | O32: 1.796116505 | P32: 1.788209607 | S32: 2.7 | T32: 1.553369112 | U32: 1.75965327 | V32: 1.793804453 | W32: 1.793501048 | X32: 1.788565264 | Y32: 1.773770492 | AB32: 2.7 | AC32: 1.488314883 | AD32: 1.711005542 | AE32: 1.778315586 | AF32: 1.782791186 | AG32: 1.771058315 | AH32: 1.746170678 | AK32: 2.7 | AL32: 1.446768061 | AM32: 1.659235669 | AN32: 1.756547042 | AO32: 1.764705882 | AP32: 1.747027027 | AQ32: 1.717892426 | AT32: 2.7 | AU32: 1.423476005 | AV32: 1.623397436 | AW32: 1.733980583 | AX32: 1.74553102 | AY32: 1.728060672 | AZ32: 1.694169417
A33: 2.65 | B33: 1.734809767 | C33: 1.79844358 | D33: 1.798076923 | E33: 1.800209205 | F33: 1.798708288 | G33: 1.797164667 | J33: 2.65 | K33: 1.60057971 | L33: 1.781152648 | M33: 1.797882579 | N33: 1.798117155 | O33: 1.794402583 | P33: 1.787117904 | S33: 2.65 | T33: 1.528503563 | U33: 1.7470726 | V33: 1.791145332 | W33: 1.791841004 | X33: 1.785560345 | Y33: 1.770491803 | AB33: 2.65 | AC33: 1.467117394 | AD33: 1.689952904 | AE33: 1.771676301 | AF33: 1.778010471 | AG33: 1.764832794 | AH33: 1.738512035 | AK33: 2.65 | AL33: 1.429479034 | AM33: 1.636867089 | AN33: 1.745173745 | AO33: 1.755765199 | AP33: 1.737580994 | AQ33: 1.708013172 | AT33: 2.65 | AU33: 1.408469055 | AV33: 1.599203187 | AW33: 1.721470019 | AX33: 1.735571878 | AY33: 1.716450216 | AZ33: 1.683168317
A34: 2.6 | B34: 1.712443946 | C34: 1.797692308 | D34: 1.799043062 | E34: 1.798748697 | F34: 1.8 | G34: 1.79825518 | J34: 2.6 | K34: 1.571921749 | L34: 1.771956857 | M34: 1.796172249 | N34: 1.797494781 | O34: 1.793548387 | P34: 1.782988004 | S34: 2.6 | T34: 1.504440497 | U34: 1.729520866 | V34: 1.788314176 | W34: 1.790187891 | X34: 1.780645161 | Y34: 1.76419214 | AB34: 2.6 | AC34: 1.448 | AD34: 1.66614786 | AE34: 1.764141898 | AF34: 1.772204807 | AG34: 1.75862069 | AH34: 1.730853392 | AK34: 2.6 | AL34: 1.414167198 | AM34: 1.61163522 | AN34: 1.731988473 | AO34: 1.746861925 | AP34: 1.730021598 | AQ34: 1.697036224 | AT34: 2.6 | AU34: 1.395150721 | AV34: 1.574940523 | AW34: 1.706165703 | AX34: 1.724318658 | AY34: 1.705627706 | AZ34: 1.671806167
A35: 2.55 | B35: 1.687707641 | C35: 1.796197719 | D35: 1.79923882 | E35: 1.799584631 | F35: 1.798283262 | G35: 1.796296296 | J35: 2.55 | K35: 1.545194508 | L35: 1.760091394 | M35: 1.794481446 | N35: 1.795430945 | O35: 1.792696026 | P35: 1.781897492 | S35: 2.55 | T35: 1.48108747 | U35: 1.710022953 | V35: 1.782857143 | W35: 1.786902287 | X35: 1.777658432 | Y35: 1.758733624 | AB35: 2.55 | AC35: 1.429981493 | AD35: 1.641698842 | AE35: 1.754770992 | AF35: 1.764828304 | AG35: 1.751345533 | AH35: 1.722100656 | AK35: 2.55 | AL35: 1.398973701 | AM35: 1.587177482 | AN35: 1.718660287 | AO35: 1.736183525 | AP35: 1.718446602 | AQ35: 1.687912088 | AT35: 2.55 | AU35: 1.381926121 | AV35: 1.550552923 | AW35: 1.689059501 | AX35: 1.711598746 | AY35: 1.693722944 | AZ35: 1.660418964
A36: 2.5 | B36: 1.658643326 | C36: 1.794139745 | D36: 1.798486282 | E36: 1.797729618 | F36: 1.799571275 | G36: 1.795429815 | J36: 2.5 | K36: 1.519088319 | L36: 1.746043708 | M36: 1.793560606 | N36: 1.794421488 | O36: 1.789924973 | P36: 1.776688453 | S36: 2.5 | T36: 1.459219858 | U36: 1.686363636 | V36: 1.776515152 | W36: 1.780991736 | X36: 1.77360515 | Y36: 1.751363141 | AB36: 2.5 | AC36: 1.413258984 | AD36: 1.615797546 | AE36: 1.742640076 | AF36: 1.754658385 | AG36: 1.741935484 | AH36: 1.712253829 | AK36: 2.5 | AL36: 1.385409942 | AM36: 1.561089494 | AN36: 1.70257388 | AO36: 1.720954357 | AP36: 1.707659115 | AQ36: 1.674725275 | AT36: 2.5 | AU36: 1.371257485 | AV36: 1.527186761 | AW36: 1.670813397 | AX36: 1.695109261 | AY36: 1.678918919 | AZ36: 1.64790287
A37: 2.45 | B37: 1.629669735 | C37: 1.790801187 | D37: 1.797932331 | E37: 1.798767967 | F37: 1.797860963 | G37: 1.794565217 | J37: 2.45 | K37: 1.494318182 | L37: 1.727272727 | M37: 1.789275635 | N37: 1.790554415 | O37: 1.786096257 | P37: 1.771490751 | S37: 2.45 | T37: 1.439905269 | U37: 1.661411411 | V37: 1.768361582 | W37: 1.775950668 | X37: 1.765524625 | Y37: 1.743729553 | AB37: 2.45 | AC37: 1.398753894 | AD37: 1.587966489 | AE37: 1.727101039 | AF37: 1.742533471 | AG37: 1.731471536 | AH37: 1.70131291 | AK37: 2.45 | AL37: 1.374348958 | AM37: 1.535658915 | AN37: 1.683111954 | AO37: 1.705578512 | AP37: 1.693965517 | AQ37: 1.663366337 | AT37: 2.45 | AU37: 1.360644728 | AV37: 1.503540519 | AW37: 1.650142993 | AX37: 1.678423237 | AY37: 1.666666667 | AZ37: 1.634254144
A38: 2.4 | B38: 1.598927614 | C38: 1.784040996 | D38: 1.798319328 | E38: 1.797959184 | F38: 1.797225187 | G38: 1.793702497 | J38: 2.4 | K38: 1.471323112 | L38: 1.70449521 | M38: 1.785046729 | N38: 1.788559755 | O38: 1.783119658 | P38: 1.766304348 | S38: 2.4 | T38: 1.421865716 | U38: 1.633928571 | V38: 1.759363296 | W38: 1.768916155 | X38: 1.759358289 | Y38: 1.734204793 | AB38: 2.4 | AC38: 1.385194479 | AD38: 1.560606061 | AE38: 1.711466165 | AF38: 1.729508197 | AG38: 1.719957082 | AH38: 1.689277899 | AK38: 2.4 | AL38: 1.363337714 | AM38: 1.510440835 | AN38: 1.664461248 | AO38: 1.688271605 | AP38: 1.681034483 | AQ38: 1.649779736 | AT38: 2.4 | AU38: 1.351424695 | AV38: 1.480345912 | AW38: 1.630228137 | AX38: 1.658057851 | AY38: 1.651515152 | AZ38: 1.619469027
A39: 2.35 | B39: 1.568085106 | C39: 1.776011561 | D39: 1.797961075 | E39: 1.797160243 | F39: 1.796592119 | G39: 1.79175705 | J39: 2.35 | K39: 1.45 | L39: 1.678571429 | M39: 1.779220779 | N39: 1.783756345 | O39: 1.778251599 | P39: 1.761956522 | S39: 2.35 | T39: 1.405970149 | U39: 1.606351551 | V39: 1.74535316 | W39: 1.758130081 | X39: 1.752136752 | Y39: 1.725490196 | AB39: 2.35 | AC39: 1.374050633 | AD39: 1.534339623 | AE39: 1.692523364 | AF39: 1.714285714 | AG39: 1.707395498 | AH39: 1.677984666 | AK39: 2.35 | AL39: 1.354581673 | AM39: 1.486862442 | AN39: 1.641580433 | AO39: 1.670769231 | AP39: 1.665948276 | AQ39: 1.636163175 | AT39: 2.35 | AU39: 1.34478022 | AV39: 1.459055118 | AW39: 1.607582938 | AX39: 1.639175258 | AY39: 1.634199134 | AZ39: 1.606430155
A40: 2.3 | B40: 1.538054968 | C40: 1.762651461 | D40: 1.796875 | E40: 1.796370968 | F40: 1.794899044 | G40: 1.789815818 | J40: 2.3 | K40: 1.430769231 | L40: 1.65007215 | M40: 1.771639042 | N40: 1.778002018 | O40: 1.772340426 | P40: 1.753528773 | S40: 2.3 | T40: 1.39266386 | U40: 1.576669112 | V40: 1.730378578 | W40: 1.746208291 | X40: 1.740938166 | Y40: 1.715686275 | AB40: 2.3 | AC40: 1.363578275 | AD40: 1.508283133 | AE40: 1.671003717 | AF40: 1.698170732 | AG40: 1.694533762 | AH40: 1.663745893 | AK40: 2.3 | AL40: 1.347446237 | AM40: 1.462905719 | AN40: 1.618556701 | AO40: 1.651329243 | AP40: 1.649784483 | AQ40: 1.620309051 | AT40: 2.3 | AU40: 1.337273992 | AV40: 1.43804262 | AW40: 1.584120983 | AX40: 1.618312757 | AY40: 1.618634886 | AZ40: 1.591111111
A41: 2.25 | B41: 1.51 | C41: 1.746132208 | D41: 1.795081967 | E41: 1.796593186 | F41: 1.794273595 | G41: 1.787878788 | J41: 2.25 | K41: 1.412707499 | L41: 1.620443174 | M41: 1.759817352 | N41: 1.769307924 | O41: 1.767268863 | P41: 1.745119306 | S41: 2.25 | T41: 1.378787879 | U41: 1.547045952 | V41: 1.71127406 | W41: 1.733400402 | X41: 1.73056443 | Y41: 1.701849837 | AB41: 2.25 | AC41: 1.354005168 | AD41: 1.483458647 | AE41: 1.646950092 | AF41: 1.679149798 | AG41: 1.678800857 | AH41: 1.650219298 | AK41: 2.25 | AL41: 1.340367597 | AM41: 1.442292796 | AN41: 1.595327103 | AO41: 1.629969419 | AP41: 1.634304207 | AQ41: 1.60441989 | AT41: 2.25 | AU41: 1.33145275 | AV41: 1.419175911 | AW41: 1.560377358 | AX41: 1.59650924 | AY41: 1.602605863 | AZ41: 1.575723831
A42: 2.2 | B42: 1.483193277 | C42: 1.723994452 | D42: 1.792418773 | E42: 1.794820717 | F42: 1.791974657 | G42: 1.784017279 | J42: 2.2 | K42: 1.397694524 | L42: 1.588944011 | M42: 1.74479638 | N42: 1.761477046 | O42: 1.757671958 | P42: 1.735644637 | S42: 2.2 | T42: 1.368034293 | U42: 1.519622093 | V42: 1.689717925 | W42: 1.717717718 | X42: 1.71656051 | Y42: 1.689880305 | AB42: 2.2 | AC42: 1.346204188 | AD42: 1.460496614 | AE42: 1.622815087 | AF42: 1.658266129 | AG42: 1.661324786 | AH42: 1.635565313 | AK42: 2.2 | AL42: 1.333333333 | AM42: 1.423794712 | AN42: 1.570363467 | AO42: 1.608341811 | AP42: 1.615301724 | AQ42: 1.589147287 | AT42: 2.2 | AU42: 1.326413744 | AV42: 1.402390438 | AW42: 1.536286522 | AX42: 1.575384615 | AY42: 1.583061889 | AZ42: 1.560893855
A43: 2.15 | B43: 1.459800315 | C43: 1.696990424 | D43: 1.789097408 | E43: 1.792284866 | F43: 1.790136411 | G43: 1.781014024 | J43: 2.15 | K43: 1.384079024 | L43: 1.55915493 | M43: 1.726457399 | N43: 1.749007937 | O43: 1.746315789 | P43: 1.725893824 | S43: 2.15 | T43: 1.358513932 | U43: 1.493836113 | V43: 1.665763324 | W43: 1.699203187 | X43: 1.700845666 | Y43: 1.675734494 | AB43: 2.15 | AC43: 1.339747843 | AD43: 1.439668175 | AE43: 1.597069597 | AF43: 1.63718593 | AG43: 1.641107561 | AH43: 1.618681319 | AK43: 2.15 | AL43: 1.328661528 | AM43: 1.406567631 | AN43: 1.543680297 | AO43: 1.586382114 | AP43: 1.594187298 | AQ43: 1.574444444 | AT43: 2.15 | AU43: 1.323144105 | AV43: 1.38875502 | AW43: 1.511299435 | AX43: 1.553846154 | AY43: 1.561822126 | AZ43: 1.544843049
A44: 2.1 | B44: 1.438125329 | C44: 1.668243243 | D44: 1.783377542 | E44: 1.789577188 | F44: 1.786235662 | G44: 1.775026911 | J44: 2.1 | K44: 1.372652582 | L44: 1.52908199 | M44: 1.704888889 | N44: 1.734714004 | O44: 1.731171548 | P44: 1.713203463 | S44: 2.1 | T44: 1.350690088 | U44: 1.468115942 | V44: 1.640035907 | W44: 1.679563492 | X44: 1.680336488 | Y44: 1.661220044 | AB44: 2.1 | AC44: 1.334006734 | AD44: 1.420454545 | AE44: 1.570255474 | AF44: 1.614844534 | AG44: 1.620616366 | AH44: 1.603524229 | AK44: 2.1 | AL44: 1.324074074 | AM44: 1.390551181 | AN44: 1.519034355 | AO44: 1.56504065 | AP44: 1.57311828 | AQ44: 1.556792873 | AT44: 2.1 | AU44: 1.319763138 | AV44: 1.375202593 | AW44: 1.488218662 | AX44: 1.531827515 | AY44: 1.541802389 | AZ44: 1.528683915
A45: 2.05 | B45: 1.418518519 | C45: 1.634846462 | D45: 1.773601399 | E45: 1.784179688 | F45: 1.78134715 | G45: 1.769892473 | J45: 2.05 | K45: 1.362232779 | L45: 1.5 | M45: 1.680176211 | N45: 1.718351325 | O45: 1.715920916 | P45: 1.698378378 | S45: 2.05 | T45: 1.342875318 | U45: 1.445170661 | V45: 1.611953613 | W45: 1.658102767 | X45: 1.661425577 | Y45: 1.644880174 | AB45: 2.05 | AC45: 1.329226557 | AD45: 1.402439024 | AE45: 1.54322111 | AF45: 1.590590591 | AG45: 1.598091198 | AH45: 1.584343991 | AK45: 2.05 | AL45: 1.321014493 | AM45: 1.376788553 | AN45: 1.49535316 | AO45: 1.541666667 | AP45: 1.550537634 | AQ45: 1.542505593 | AT45: 2.05 | AU45: 1.316503391 | AV45: 1.362817363 | AW45: 1.467863894 | AX45: 1.510288066 | AY45: 1.520652174 | AZ45: 1.514705882
A46: 2 | B46: 1.401704848 | C46: 1.599075297 | D46: 1.759930915 | E46: 1.776915616 | F46: 1.772633745 | G46: 1.761802575 | J46: 2 | K46: 1.353188929 | L46: 1.473133287 | M46: 1.652401747 | N46: 1.697560976 | O46: 1.697722567 | P46: 1.684324324 | S46: 2 | T46: 1.336563307 | U46: 1.423469388 | V46: 1.581560284 | W46: 1.63546798 | X46: 1.637787056 | Y46: 1.628135224 | AB46: 2 | AC46: 1.324286708 | AD46: 1.385560676 | AE46: 1.515894641 | AF46: 1.568568569 | AG46: 1.575211864 | AH46: 1.568584071 | AK46: 2 | AL46: 1.317343173 | AM46: 1.363855422 | AN46: 1.471627907 | AO46: 1.520366599 | AP46: 1.527956989 | AQ46: 1.524130191 | AT46: 2 | AU46: 1.313123561 | AV46: 1.351575456 | AW46: 1.44549763 | AX46: 1.491735537 | AY46: 1.5 | AZ46: 1.497727273
A47: 1.95 | B47: 1.387634409 | C47: 1.563850688 | D47: 1.742320819 | E47: 1.768046198 | F47: 1.764826176 | G47: 1.752136752 | J47: 1.95 | K47: 1.346764347 | L47: 1.447938505 | M47: 1.622183709 | N47: 1.676699029 | O47: 1.678350515 | P47: 1.667745415 | S47: 1.95 | T47: 1.333114323 | U47: 1.404988995 | V47: 1.553003534 | W47: 1.609421001 | X47: 1.615625 | Y47: 1.607843137 | AB47: 1.95 | AC47: 1.321757619 | AD47: 1.371605896 | AE47: 1.490463215 | AF47: 1.543 | AG47: 1.552966102 | AH47: 1.548172757 | AK47: 1.95 | AL47: 1.316027088 | AM47: 1.353132628 | AN47: 1.450046685 | AO47: 1.497959184 | AP47: 1.507543103 | AQ47: 1.505630631 | AT47: 1.95 | AU47: 1.312451057 | AV47: 1.342304458 | AW47: 1.426120114 | AX47: 1.469430052 | AY47: 1.479781421 | AZ47: 1.479452055
A48: 1.9 | B48: 1.376291463 | C48: 1.529947917 | D48: 1.719460826 | E48: 1.754770992 | F48: 1.751269036 | G48: 1.739915074 | J48: 1.9 | K48: 1.341191067 | L48: 1.424263675 | M48: 1.591222031 | N48: 1.650579151 | O48: 1.654358974 | P48: 1.645542427 | S48: 1.9 | T48: 1.328877005 | U48: 1.387573964 | V48: 1.522887324 | W48: 1.58374143 | X48: 1.592515593 | Y48: 1.584782609 | AB48: 1.9 | AC48: 1.320086705 | AD48: 1.358994501 | AE48: 1.464545455 | AF48: 1.51951952 | AG48: 1.529661017 | AH48: 1.527716186 | AK48: 1.9 | AL48: 1.31465848 | AM48: 1.342409241 | AN48: 1.428705441 | AO48: 1.475946776 | AP48: 1.486486486 | AQ48: 1.48700565 | AT48: 1.9 | AU48: 1.31254996 | AV48: 1.333902647 | AW48: 1.406909789 | AX48: 1.45 | AY48: 1.461538462 | AZ48: 1.461009174
A49: 1.85 | B49: 1.366189427 | C49: 1.498054475 | D49: 1.692756037 | E49: 1.737937559 | F49: 1.737638749 | G49: 1.723628692 | J49: 1.85 | K49: 1.335646688 | L49: 1.404375441 | M49: 1.558597092 | N49: 1.624399616 | O49: 1.630879346 | P49: 1.621390374 | S49: 1.85 | T49: 1.325613079 | U49: 1.372197309 | V49: 1.495162709 | W49: 1.555664062 | X49: 1.568016615 | Y49: 1.561346363 | AB49: 1.85 | AC49: 1.318584071 | AD49: 1.347929936 | AE49: 1.441605839 | AF49: 1.493987976 | AG49: 1.507430998 | AH49: 1.504994451 | AK49: 1.85 | AL49: 1.314263323 | AM49: 1.333612741 | AN49: 1.408876298 | AO49: 1.455761317 | AP49: 1.466883822 | AQ49: 1.467650397 | AT49: 1.85 | AU49: 1.311020408 | AV49: 1.326672459 | AW49: 1.390125847 | AX49: 1.43081761 | AY49: 1.443093923 | AZ49: 1.444059977
A50: 1.8 | B50: 1.357741755 | C50: 1.46761658 | D50: 1.659539474 | E50: 1.716963449 | F50: 1.720160481 | G50: 1.705450734 | J50: 1.8 | K50: 1.331619537 | L50: 1.387464387 | M50: 1.527706735 | N50: 1.594646272 | O50: 1.605504587 | P50: 1.597652081 | S50: 1.8 | T50: 1.32314107 | U50: 1.358547655 | V50: 1.468309859 | W50: 1.528780488 | X50: 1.543094496 | Y50: 1.537459283 | AB50: 1.8 | AC50: 1.317018072 | AD50: 1.338722716 | AE50: 1.419266055 | AF50: 1.471356784 | AG50: 1.486140725 | AH50: 1.4844098 | AK50: 1.8 | AL50: 1.314102564 | AM50: 1.327645051 | AN50: 1.39047619 | AO50: 1.434332989 | AP50: 1.448087432 | AQ50: 1.448118586 | AT50: 1.8 | AU50: 1.311352254 | AV50: 1.320070734 | AW50: 1.374755382 | AX50: 1.413319239 | AY50: 1.425389755 | AZ50: 1.427409988
A51: 1.75 | B51: 1.350568182 | C51: 1.440622972 | D51: 1.624898291 | E51: 1.690166976 | F51: 1.699900299 | G51: 1.686131387 | J51: 1.75 | K51: 1.32852459 | L51: 1.372210223 | M51: 1.495748299 | N51: 1.563273073 | O51: 1.581466395 | P51: 1.572949947 | S51: 1.75 | T51: 1.32079489 | U51: 1.348426708 | V51: 1.441306267 | W51: 1.501463415 | X51: 1.518711019 | Y51: 1.516866159 | AB51: 1.75 | AC51: 1.315627406 | AD51: 1.331414474 | AE51: 1.400555042 | AF51: 1.449494949 | AG51: 1.464668094 | AH51: 1.464205817 | AK51: 1.75 | AL51: 1.313114754 | AM51: 1.3214596 | AN51: 1.373435996 | AO51: 1.414583333 | AP51: 1.43061674 | AQ51: 1.43053961 | AT51: 1.75 | AU51: 1.311111111 | AV51: 1.315599639 | AW51: 1.359762141 | AX51: 1.395522388 | AY51: 1.410573678 | AZ51: 1.411007026
A52: 1.7 | B52: 1.345286293 | C52: 1.417482061 | D52: 1.587903226 | E52: 1.660845588 | F52: 1.675916749 | G52: 1.662863071 | J52: 1.7 | K52: 1.326188881 | L52: 1.359591539 | M52: 1.466382979 | N52: 1.534662868 | O52: 1.554425229 | P52: 1.549520767 | S52: 1.7 | T52: 1.319303338 | U52: 1.340359094 | V52: 1.41703638 | W52: 1.475073314 | X52: 1.495307612 | Y52: 1.494002181 | AB52: 1.7 | AC52: 1.315208826 | AD52: 1.325230511 | AE52: 1.380952381 | AF52: 1.426395939 | AG52: 1.445043103 | AH52: 1.445444319 | AK52: 1.7 | AL52: 1.3131822 | AM52: 1.316489362 | AN52: 1.358674464 | AO52: 1.397476341 | AP52: 1.413333333 | AQ52: 1.414831981 | AT52: 1.7 | AU52: 1.3117338 | AV52: 1.312442396 | AW52: 1.346733668 | AX52: 1.380798274 | AY52: 1.394318182 | AZ52: 1.396449704 | BF52: 海底勾配1/20 （壁体前面） | BQ52: 海底勾配1/20 （5波高沖までのλoHdの最大値）
A53: 1.65 | B53: 1.341779611 | C53: 1.397368421 | D53: 1.5496 | E53: 1.628415301 | F53: 1.647637795 | G53: 1.638429752 | J53: 1.65 | K53: 1.326488706 | L53: 1.349147517 | M53: 1.439419795 | N53: 1.503317536 | O53: 1.527975585 | P53: 1.525586354 | S53: 1.65 | T53: 1.319970304 | U53: 1.33227345 | V53: 1.3980322 | W53: 1.451422964 | X53: 1.471757322 | Y53: 1.472070099 | AB53: 1.65 | AC53: 1.317191283 | AD53: 1.319931565 | AE53: 1.366729679 | AF53: 1.407369498 | AG53: 1.425624321 | AH53: 1.427437642 | AK53: 1.65 | AL53: 1.313843508 | AM53: 1.313689937 | AN53: 1.347181009 | AO53: 1.380446334 | AP53: 1.396184063 | AQ53: 1.398830409 | AT53: 1.65 | AU53: 1.313285458 | AV53: 1.309142319 | AW53: 1.337078652 | AX53: 1.365720524 | AY53: 1.379310345 | AZ53: 1.383233533
A54: 1.6 | B54: 1.339747444 | C54: 1.380319149 | D54: 1.51433121 | E54: 1.592592593 | F54: 1.618395303 | G54: 1.612139918 | J54: 1.6 | K54: 1.326330532 | L54: 1.340120664 | M54: 1.416309013 | N54: 1.475332068 | O54: 1.50101833 | P54: 1.501068376 | S54: 1.6 | T54: 1.321673004 | U54: 1.326845093 | V54: 1.380650995 | W54: 1.427021696 | X54: 1.449001052 | Y54: 1.45154185 | AB54: 1.6 | AC54: 1.318444996 | AD54: 1.315559441 | AE54: 1.353787152 | AF54: 1.389865564 | AG54: 1.406352683 | AH54: 1.409610984 | AK54: 1.6 | AL54: 1.315696649 | AM54: 1.310760668 | AN54: 1.337022133 | AO54: 1.36598493 | AP54: 1.380249716 | AQ54: 1.384615385 | AT54: 1.6 | AU54: 1.315837937 | AV54: 1.306653809 | AW54: 1.328824142 | AX54: 1.352159468 | AY54: 1.365967366 | AZ54: 1.370145631
A55: 1.55 | B55: 1.338045482 | C55: 1.366149697 | D55: 1.47974583 | E55: 1.557450628 | F55: 1.58714703 | G55: 1.583589744 | J55: 1.55 | K55: 1.327833572 | L55: 1.333076923 | M55: 1.394463668 | N55: 1.448144624 | O55: 1.473469388 | P55: 1.476956056 | S55: 1.55 | T55: 1.323712949 | U55: 1.321458161 | V55: 1.364468864 | W55: 1.4055666 | X55: 1.427966102 | Y55: 1.431742508 | AB55: 1.55 | AC55: 1.320882852 | AD55: 1.313339302 | AE55: 1.342105263 | AF55: 1.371338912 | AG55: 1.389811739 | AH55: 1.394675926 | AK55: 1.55 | AL55: 1.31884058 | AM55: 1.308935361 | AN55: 1.327868852 | AO55: 1.353005464 | AP55: 1.36593786 | AQ55: 1.370503597 | AT55: 1.55 | AU55: 1.31758034 | AV55: 1.305637982 | AW55: 1.321656051 | AX55: 1.341216216 | AY55: 1.353846154 | AZ55: 1.358374384
A56: 1.5 | B56: 1.337106918 | C56: 1.354352296 | D56: 1.449482896 | E56: 1.521894549 | F56: 1.553294574 | G56: 1.556352459 | J56: 1.5 | K56: 1.327941176 | L56: 1.326787117 | M56: 1.376532399 | N56: 1.422966507 | O56: 1.447745902 | P56: 1.454741379 | S56: 1.5 | T56: 1.325060048 | U56: 1.318066158 | V56: 1.351627907 | W56: 1.385929648 | X56: 1.407051282 | Y56: 1.413213886 | AB56: 1.5 | AC56: 1.322580645 | AD56: 1.310091743 | AE56: 1.332671301 | AF56: 1.356687898 | AG56: 1.373318386 | AH56: 1.379835873 | AK56: 1.5 | AL56: 1.322160149 | AM56: 1.306042885 | AN56: 1.320083682 | AO56: 1.34 | AP56: 1.352803738 | AQ56: 1.358099878 | AT56: 1.5 | AU56: 1.320699708 | AV56: 1.304568528 | AW56: 1.314533623 | AX56: 1.330275229 | AY56: 1.342960289 | AZ56: 1.346683354
A57: 1.45 | B57: 1.337628866 | C57: 1.345670391 | D57: 1.42126299 | E57: 1.48706512 | F57: 1.519806763 | G57: 1.527123849 | J57: 1.45 | K57: 1.329056604 | L57: 1.323151125 | M57: 1.360568384 | N57: 1.3996139 | O57: 1.42371134 | P57: 1.431670282 | S57: 1.45 | T57: 1.326480263 | U57: 1.316521739 | V57: 1.339015152 | W57: 1.367243133 | X57: 1.388768898 | Y57: 1.393665158 | AB57: 1.45 | AC57: 1.32437276 | AD57: 1.309792844 | AE57: 1.323529412 | AF57: 1.343412527 | AG57: 1.359499431 | AH57: 1.364608076 | AK57: 1.45 | AL57: 1.323754789 | AM57: 1.30761523 | AN57: 1.314775161 | AO57: 1.328425821 | AP57: 1.342449465 | AQ57: 1.346534653 | AT57: 1.45 | AU57: 1.323 | AV57: 1.30480167 | AW57: 1.31 | AX57: 1.320843091 | AY57: 1.332107843 | AZ57: 1.336305732
A58: 1.4 | B58: 1.338177015 | C58: 1.339514979 | D58: 1.396774194 | E58: 1.453571429 | F58: 1.486486486 | G58: 1.497441146 | J58: 1.4 | K58: 1.332040341 | L58: 1.3215169 | M58: 1.345980126 | N58: 1.377929688 | O58: 1.402705515 | P58: 1.411378556 | S58: 1.4 | T58: 1.328825021 | U58: 1.314005352 | V58: 1.328502415 | W58: 1.351602896 | X58: 1.370897155 | Y58: 1.376861397 | AB58: 1.4 | AC58: 1.327490775 | AD58: 1.310745402 | AE58: 1.316390041 | AF58: 1.331133113 | AG58: 1.347222222 | AH58: 1.352657005 | AK58: 1.4 | AL58: 1.326108374 | AM58: 1.306900103 | AN58: 1.308114035 | AO58: 1.320601852 | AP58: 1.330508475 | AQ58: 1.335435057 | AT58: 1.4 | AU58: 1.326467559 | AV58: 1.306122449 | AW58: 1.304100228 | AX58: 1.313772455 | AY58: 1.3225 | AZ58: 1.325974026
A59: 1.35 | B59: 1.340338983 | C59: 1.333333333 | D59: 1.376326531 | E59: 1.423318386 | F59: 1.456479691 | G59: 1.468717949 | J59: 1.35 | K59: 1.334130781 | L59: 1.318950931 | M59: 1.335483871 | N59: 1.361386139 | O59: 1.38170347 | P59: 1.39159292 | S59: 1.35 | T59: 1.332463011 | U59: 1.313761468 | V59: 1.320158103 | W59: 1.34 | X59: 1.355555556 | Y59: 1.362790698 | AB59: 1.35 | AC59: 1.331749049 | AD59: 1.309760956 | AE59: 1.310638298 | AF59: 1.32247191 | AG59: 1.33490566 | AH59: 1.339066339 | AK59: 1.35 | AL59: 1.331300813 | AM59: 1.308917197 | AN59: 1.304054054 | AO59: 1.312426036 | AP59: 1.321782178 | AQ59: 1.326898327 | AT59: 1.35 | AU59: 1.33014862 | AV59: 1.306415929 | AW59: 1.300936768 | AX59: 1.30797546 | AY59: 1.314578005 | AZ59: 1.320053121
A60: 1.3 | B60: 1.343554007 | C60: 1.329094989 | D60: 1.35986733 | E60: 1.4 | F60: 1.427599611 | G60: 1.440782698 | J60: 1.3 | K60: 1.338259442 | L60: 1.317667537 | M60: 1.327049953 | N60: 1.346424975 | O60: 1.363927428 | P60: 1.372900336 | S60: 1.3 | T60: 1.337219731 | U60: 1.312559018 | V60: 1.315096251 | W60: 1.32867884 | X60: 1.341628959 | Y60: 1.348699764 | AB60: 1.3 | AC60: 1.33496572 | AD60: 1.310061602 | AE60: 1.307103825 | AF60: 1.315304948 | AG60: 1.324096386 | AH60: 1.328320802 | AK60: 1.3 | AL60: 1.335429769 | AM60: 1.307439825 | AN60: 1.302433372 | AO60: 1.307038835 | AP60: 1.312658228 | AQ60: 1.316688568 | AT60: 1.3 | AU60: 1.334063527 | AV60: 1.307077626 | AW60: 1.298795181 | AX60: 1.303526448 | AY60: 1.306684142 | AZ60: 1.3125
A61: 1.25 | B61: 1.345988539 | C61: 1.32718894 | D61: 1.3465765 | E61: 1.378205128 | F61: 1.401960784 | G61: 1.413471503 | J61: 1.25 | K61: 1.34179357 | L61: 1.317204301 | M61: 1.319806763 | N61: 1.335046249 | O61: 1.347448426 | P61: 1.357224118 | S61: 1.25 | T61: 1.341350601 | U61: 1.313534567 | V61: 1.311458333 | W61: 1.321232123 | X61: 1.327944573 | Y61: 1.336144578 | AB61: 1.25 | AC61: 1.339737108 | AD61: 1.311770944 | AE61: 1.303712036 | AF61: 1.309327037 | AG61: 1.313193588 | AH61: 1.320512821 | AK61: 1.25 | AL61: 1.33982684 | AM61: 1.30960452 | AN61: 1.299522673 | AO61: 1.303370787 | AP61: 1.303896104 | AQ61: 1.311320755 | AT61: 1.25 | AU61: 1.339366516 | AV61: 1.308962264 | AW61: 1.298136646 | AX61: 1.299222798 | AY61: 1.30013459 | AZ61: 1.305013928
A62: 1.2 | B62: 1.350553506 | C62: 1.328063241 | D62: 1.335350043 | E62: 1.359069767 | F62: 1.376984127 | G62: 1.391623037 | J62: 1.2 | K62: 1.346422339 | L62: 1.319778189 | M62: 1.314796425 | N62: 1.325263158 | O62: 1.333333333 | P62: 1.342989571 | S62: 1.2 | T62: 1.346704871 | U62: 1.316901408 | V62: 1.306538049 | W62: 1.312641084 | X62: 1.319148936 | Y62: 1.325123153 | AB62: 1.2 | AC62: 1.345872518 | AD62: 1.314348302 | AE62: 1.302784223 | AF62: 1.304981774 | AG62: 1.307594937 | AH62: 1.312746386 | AK62: 1.2 | AL62: 1.344519016 | AM62: 1.313084112 | AN62: 1.299630086 | AO62: 1.298200514 | AP62: 1.300400534 | AQ62: 1.30428769 | AT62: 1.2 | AU62: 1.343859649 | AV62: 1.313797314 | AW62: 1.297817715 | AX62: 1.29506008 | AY62: 1.296398892 | AZ62: 1.297567954
A63: 1.15 | B63: 1.354372624 | C63: 1.328175896 | D63: 1.328014184 | E63: 1.34345351 | F63: 1.358509567 | G63: 1.370488323 | J63: 1.15 | K63: 1.35166817 | L63: 1.322827125 | M63: 1.310838446 | N63: 1.316414687 | O63: 1.324263039 | P63: 1.328994083 | S63: 1.15 | T63: 1.350444225 | U63: 1.32049948 | V63: 1.305309735 | W63: 1.306620209 | X63: 1.311893204 | Y63: 1.313997478 | AB63: 1.15 | AC63: 1.35027027 | AD63: 1.318594104 | AE63: 1.302158273 | AF63: 1.299123905 | AG63: 1.302083333 | AH63: 1.303643725 | AK63: 1.15 | AL63: 1.349537037 | AM63: 1.317191283 | AN63: 1.298089172 | AO63: 1.294429708 | AP63: 1.297111417 | AQ63: 1.297297297 | AT63: 1.15 | AU63: 1.35030303 | AV63: 1.317319848 | AW63: 1.29747676 | AX63: 1.292413793 | AY63: 1.294285714 | AZ63: 1.293510324
A64: 1.1 | B64: 1.360282575 | C64: 1.329688814 | D64: 1.320875114 | E64: 1.330097087 | F64: 1.342915811 | G64: 1.352051836 | J64: 1.1 | K64: 1.35694315 | L64: 1.324110672 | M64: 1.308342133 | N64: 1.308888889 | O64: 1.315116279 | P64: 1.317575758 | S64: 1.1 | T64: 1.35648621 | U64: 1.323275862 | V64: 1.304347826 | W64: 1.301796407 | X64: 1.305867665 | Y64: 1.306095979 | AB64: 1.1 | AC64: 1.357222844 | AD64: 1.32079906 | AE64: 1.301488834 | AF64: 1.297542044 | AG64: 1.297986577 | AH64: 1.297222222 | AK64: 1.1 | AL64: 1.354916067 | AM64: 1.32160804 | AN64: 1.2998679 | AO64: 1.29532967 | AP64: 1.294034091 | AQ64: 1.293685756 | AT64: 1.1 | AU64: 1.35678392 | AV64: 1.320209974 | AW64: 1.298898072 | AX64: 1.292857143 | AY64: 1.292466765 | AZ64: 1.289193303
A65: 1.05 | B65: 1.366288493 | C65: 1.332173913 | D65: 1.318609023 | E65: 1.322033898 | F65: 1.331230284 | G65: 1.336273429 | J65: 1.05 | K65: 1.364864865 | L65: 1.327533265 | M65: 1.309289617 | N65: 1.306192661 | O65: 1.308982036 | P65: 1.308841843 | S65: 1.05 | T65: 1.364021164 | U65: 1.326256983 | V65: 1.30450237 | W65: 1.301115242 | X65: 1.301546392 | Y65: 1.300400534 | AB65: 1.05 | AC65: 1.363109049 | AD65: 1.324390244 | AE65: 1.302445302 | AF65: 1.296246649 | AG65: 1.295833333 | AH65: 1.294117647 | AK65: 1.05 | AL65: 1.36318408 | AM65: 1.32464146 | AN65: 1.301783265 | AO65: 1.293029872 | AP65: 1.291176471 | AQ65: 1.291350531 | AT65: 1.05 | AU65: 1.363754889 | AV65: 1.324693042 | AW65: 1.3018598 | AX65: 1.291851852 | AY65: 1.290519878 | AZ65: 1.288188976
A66: 1 | B66: 1.37300922 | C66: 1.334833483 | D66: 1.316812439 | E66: 1.315519013 | F66: 1.319654428 | G66: 1.323927765 | J66: 1 | K66: 1.372 | L66: 1.332624867 | M66: 1.309173273 | N66: 1.304038005 | O66: 1.302843016 | P66: 1.3042362 | S66: 1 | T66: 1.371020856 | U66: 1.332171893 | V66: 1.306273063 | W66: 1.299101412 | X66: 1.297333333 | Y66: 1.297931034 | AB66: 1 | AC66: 1.371084337 | AD66: 1.331218274 | AE66: 1.305220884 | AF66: 1.296244784 | AG66: 1.292086331 | AH66: 1.290801187 | AK66: 1 | AL66: 1.372574386 | AM66: 1.329715061 | AN66: 1.303851641 | AO66: 1.294378698 | AP66: 1.290076336 | AQ66: 1.289308176 | AT66: 1 | AU66: 1.371273713 | AV66: 1.329078014 | AW66: 1.303571429 | AX66: 1.292758089 | AY66: 1.287301587 | AZ66: 1.287581699
A67: 0.95 | B67: 1.379340278 | C67: 1.339869281 | D67: 1.315206445 | E67: 1.312433581 | F67: 1.310344828 | G67: 1.315911731 | J67: 0.95 | K67: 1.377593361 | L67: 1.338121547 | M67: 1.309776207 | N67: 1.301724138 | O67: 1.298335467 | P67: 1.300132802 | S67: 0.95 | T67: 1.378563284 | U67: 1.335748792 | V67: 1.307298335 | W67: 1.299065421 | X67: 1.294605809 | Y67: 1.294285714 | AB67: 0.95 | AC67: 1.378446115 | AD67: 1.335535007 | AE67: 1.306834031 | AF67: 1.296671491 | AG67: 1.291479821 | AH67: 1.289676425 | AK67: 0.95 | AL67: 1.379542396 | AM67: 1.335219236 | AN67: 1.306547619 | AO67: 1.295839753 | AP67: 1.288888889 | AQ67: 1.287581699 | AT67: 0.95 | AU67: 1.379407616 | AV67: 1.335798817 | AW67: 1.305900621 | AX67: 1.293739968 | AY67: 1.289256198 | AZ67: 1.285229202
A68: 0.9 | B68: 1.387589928 | C68: 1.345295829 | D68: 1.316945607 | E68: 1.308370044 | F68: 1.306098964 | G68: 1.308153477 | J68: 0.9 | K68: 1.386853448 | L68: 1.344073648 | M68: 1.31127451 | N68: 1.300896287 | O68: 1.29787234 | P68: 1.294360385 | S68: 0.9 | T68: 1.387900356 | U68: 1.343828715 | V68: 1.311081442 | W68: 1.300417246 | X68: 1.294964029 | Y68: 1.290801187 | AB68: 0.9 | AC68: 1.387222947 | AD68: 1.343448276 | AE68: 1.310043668 | AF68: 1.299093656 | AG68: 1.291277259 | AH68: 1.288924559 | AK68: 0.9 | AL68: 1.386554622 | AM68: 1.342688331 | AN68: 1.309006211 | AO68: 1.297427653 | AP68: 1.289735099 | AQ68: 1.285714286 | AT68: 0.9 | AU68: 1.387665198 | AV68: 1.343122102 | AW68: 1.310064935 | AX68: 1.296979866 | AY68: 1.289655172 | AZ68: 1.284955752
A69: 0.85 | B69: 1.396825397 | C69: 1.351160444 | D69: 1.319912949 | E69: 1.309278351 | F69: 1.303464755 | G69: 1.301863354 | J69: 0.85 | K69: 1.39573991 | L69: 1.350540216 | M69: 1.317541613 | N69: 1.304812834 | O69: 1.296398892 | P69: 1.293696275 | S69: 0.85 | T69: 1.39802225 | U69: 1.35 | V69: 1.317039106 | W69: 1.301886792 | X69: 1.295795796 | Y69: 1.291021672 | AB69: 0.85 | AC69: 1.397278912 | AD69: 1.34870317 | AE69: 1.315068493 | AF69: 1.301737757 | AG69: 1.293159609 | AH69: 1.289782245 | AK69: 0.85 | AL69: 1.397660819 | AM69: 1.349304482 | AN69: 1.313821138 | AO69: 1.301346801 | AP69: 1.292894281 | AQ69: 1.288256228 | AT69: 0.85 | AU69: 1.397239264 | AV69: 1.349514563 | AW69: 1.316326531 | AX69: 1.300527241 | AY69: 1.292418773 | AZ69: 1.287037037
A70: 0.8 | B70: 1.40543162 | C70: 1.357518402 | D70: 1.323863636 | E70: 1.309069212 | F70: 1.302238806 | G70: 1.298064516 | J70: 0.8 | K70: 1.404205607 | L70: 1.357590966 | M70: 1.319946452 | N70: 1.306293706 | O70: 1.296671491 | P70: 1.292974589 | S70: 0.8 | T70: 1.405927835 | U70: 1.356258597 | V70: 1.320175439 | W70: 1.305936073 | X70: 1.297169811 | Y70: 1.291262136 | AB70: 0.8 | AC70: 1.40625 | AD70: 1.358006042 | AE70: 1.319488818 | AF70: 1.302980132 | AG70: 1.295221843 | AH70: 1.29122807 | AK70: 0.8 | AL70: 1.406727829 | AM70: 1.358184765 | AN70: 1.321367521 | AO70: 1.303886926 | AP70: 1.294545455 | AQ70: 1.289179104 | AT70: 0.8 | AU70: 1.407704655 | AV70: 1.358234295 | AW70: 1.319642857 | AX70: 1.304428044 | AY70: 1.293560606 | AZ70: 1.289320388
A71: 0.75 | B71: 1.415741675 | C71: 1.367032967 | D71: 1.328180737 | E71: 1.309612984 | F71: 1.304291287 | G71: 1.299191375 | J71: 0.75 | K71: 1.417073171 | L71: 1.367936925 | M71: 1.325842697 | N71: 1.307917889 | O71: 1.300455235 | P71: 1.294209703 | S71: 0.75 | T71: 1.417227456 | U71: 1.366522367 | V71: 1.325652842 | W71: 1.308306709 | X71: 1.300330033 | Y71: 1.293718166 | AB71: 0.75 | AC71: 1.419019316 | AD71: 1.366085578 | AE71: 1.32605042 | AF71: 1.308362369 | AG71: 1.299820467 | AH71: 1.29281768 | AK71: 0.75 | AL71: 1.4192 | AM71: 1.36967632 | AN71: 1.325539568 | AO71: 1.30669145 | AP71: 1.298279159 | AQ71: 1.292156863 | AT71: 0.75 | AU71: 1.421848739 | AV71: 1.369642857 | AW71: 1.32518797 | AX71: 1.306796117 | AY71: 1.299401198 | AZ71: 1.292433538
A72: 0.7 | B72: 1.427970557 | C72: 1.375862069 | D72: 1.334164589 | E72: 1.317169069 | F72: 1.305177112 | G72: 1.297602257 | J72: 0.7 | K72: 1.429299363 | L72: 1.374655647 | M72: 1.334319527 | N72: 1.314814815 | O72: 1.305111821 | P72: 1.296052632 | S72: 0.7 | T72: 1.431593794 | U72: 1.376327769 | V72: 1.333333333 | W72: 1.314814815 | X72: 1.302083333 | Y72: 1.294642857 | AB72: 0.7 | AC72: 1.431464174 | AD72: 1.377295492 | AE72: 1.335106383 | AF72: 1.314338235 | AG72: 1.302457467 | AH72: 1.295145631 | AK72: 0.7 | AL72: 1.432885906 | AM72: 1.376344086 | AN72: 1.333965844 | AO72: 1.314341847 | AP72: 1.303030303 | AQ72: 1.296066253 | AT72: 0.7 | AU72: 1.433862434 | AV72: 1.377819549 | AW72: 1.333333333 | AX72: 1.316221766 | AY72: 1.303797468 | AZ72: 1.295896328
A73: 0.65 | B73: 1.438596491 | C73: 1.385542169 | D73: 1.342070773 | E73: 1.32137931 | F73: 1.308464849 | G73: 1.302670623 | J73: 0.65 | K73: 1.441333333 | L73: 1.385507246 | M73: 1.341653666 | N73: 1.320846906 | O73: 1.306913997 | P73: 1.300347222 | S73: 0.65 | T73: 1.443131462 | U73: 1.38658147 | V73: 1.341880342 | W73: 1.320284698 | X73: 1.306985294 | Y73: 1.3 | AB73: 0.65 | AC73: 1.446808511 | AD73: 1.389084507 | AE73: 1.343339587 | AF73: 1.321011673 | AG73: 1.308617234 | AH73: 1.299794661 | AK73: 0.65 | AL73: 1.446208113 | AM73: 1.390151515 | AN73: 1.344064386 | AO73: 1.320833333 | AP73: 1.308351178 | AQ73: 1.300438596 | AT73: 0.65 | AU73: 1.448979592 | AV73: 1.391650099 | AW73: 1.343157895 | AX73: 1.322440087 | AY73: 1.308724832 | AZ73: 1.302059497
A74: 0.6 | B74: 1.45412844 | C74: 1.397468354 | D74: 1.349930844 | E74: 1.327510917 | F74: 1.313161876 | G74: 1.305164319 | J74: 0.6 | K74: 1.455944056 | L74: 1.399082569 | M74: 1.349834983 | N74: 1.328151986 | O74: 1.314285714 | P74: 1.303308824 | S74: 0.6 | T74: 1.459627329 | U74: 1.400337838 | V74: 1.352087114 | W74: 1.328922495 | X74: 1.313840156 | Y74: 1.304609218 | AB74: 0.6 | AC74: 1.461273666 | AD74: 1.400372439 | AE74: 1.352589641 | AF74: 1.326446281 | AG74: 1.314893617 | AH74: 1.30349345 | AK74: 0.6 | AL74: 1.462825279 | AM74: 1.400801603 | AN74: 1.352564103 | AO74: 1.327433628 | AP74: 1.316628702 | AQ74: 1.303030303 | AT74: 0.6 | AU74: 1.465753425 | AV74: 1.402105263 | AW74: 1.351230425 | AX74: 1.328703704 | AY74: 1.316666667 | AZ74: 1.304136253
A75: 0.55 | B75: 1.466426859 | C75: 1.408 | D75: 1.359649123 | E75: 1.336419753 | F75: 1.321027287 | G75: 1.308457711 | J75: 0.55 | K75: 1.472058824 | L75: 1.412621359 | M75: 1.363157895 | N75: 1.335779817 | O75: 1.321292776 | P75: 1.311154599 | S75: 0.55 | T75: 1.475490196 | U75: 1.415026834 | V75: 1.364864865 | W75: 1.336016097 | X75: 1.322245322 | Y75: 1.311965812 | AB75: 0.55 | AC75: 1.479128857 | AD75: 1.415019763 | AE75: 1.365180467 | AF75: 1.337748344 | AG75: 1.322727273 | AH75: 1.312354312 | AK75: 0.55 | AL75: 1.480392157 | AM75: 1.417910448 | AN75: 1.364464692 | AO75: 1.338061466 | AP75: 1.323600973 | AQ75: 1.314214464 | AT75: 0.55 | AU75: 1.483471074 | AV75: 1.418344519 | AW75: 1.366028708 | AX75: 1.339108911 | AY75: 1.323155216 | AZ75: 1.3125
A76: 0.5 | B76: 1.483668342 | C76: 1.425352113 | D76: 1.372670807 | E76: 1.344262295 | F76: 1.32991453 | G76: 1.318021201 | J76: 0.5 | K76: 1.492260062 | L76: 1.428816467 | M76: 1.373831776 | N76: 1.347058824 | O76: 1.331300813 | P76: 1.320083682 | S76: 0.5 | T76: 1.496551724 | U76: 1.431558935 | V76: 1.377319588 | W76: 1.349137931 | X76: 1.331848552 | Y76: 1.320366133 | AB76: 0.5 | AC76: 1.498084291 | AD76: 1.433684211 | AE76: 1.377272727 | AF76: 1.34751773 | AG76: 1.331707317 | AH76: 1.32 | AK76: 0.5 | AL76: 1.502074689 | AM76: 1.434090909 | AN76: 1.378973105 | AO76: 1.347715736 | AP76: 1.335078534 | AQ76: 1.321715818 | AT76: 0.5 | AU76: 1.50547046 | AV76: 1.434367542 | AW76: 1.379487179 | AX76: 1.348404255 | AY76: 1.334246575 | AZ76: 1.322128852
A77: 0.45 | B77: 1.502638522 | C77: 1.439642325 | D77: 1.387417219 | E77: 1.355516637 | F77: 1.340036563 | G77: 1.325141777 | J77: 0.45 | K77: 1.510603589 | L77: 1.447080292 | M77: 1.388 | N77: 1.36 | O77: 1.34279476 | P77: 1.328089888 | S77: 0.45 | T77: 1.517304189 | U77: 1.447368421 | V77: 1.39159292 | W77: 1.361111111 | X77: 1.342925659 | Y77: 1.327586207 | AB77: 0.45 | AC77: 1.521298174 | AD77: 1.451685393 | AE77: 1.392682927 | AF77: 1.364795918 | AG77: 1.344736842 | AH77: 1.332432432 | AK77: 0.45 | AL77: 1.526431718 | AM77: 1.454987835 | AN77: 1.394736842 | AO77: 1.364383562 | AP77: 1.344632768 | AQ77: 1.333333333 | AT77: 0.45 | AU77: 1.526682135 | AV77: 1.455242967 | AW77: 1.395027624 | AX77: 1.364942529 | AY77: 1.346153846 | AZ77: 1.333333333 | BF77: 海底勾配1/30 （壁体前面） | BQ77: 海底勾配1/30 （5波高沖までのλoHdの最大値）
A78: 0.4 | B78: 1.525 | C78: 1.458860759 | D78: 1.401769912 | E78: 1.370300752 | F78: 1.351669941 | G78: 1.33808554 | J78: 0.4 | K78: 1.534482759 | L78: 1.464980545 | M78: 1.404301075 | N78: 1.375 | O78: 1.353773585 | P78: 1.340632603 | S78: 0.4 | T78: 1.540540541 | U78: 1.468546638 | V78: 1.408114558 | W78: 1.37593985 | X78: 1.355844156 | Y78: 1.342245989 | AB78: 0.4 | AC78: 1.547413793 | AD78: 1.472289157 | AE78: 1.408970976 | AF78: 1.375690608 | AG78: 1.357142857 | AH78: 1.343108504 | AK78: 0.4 | AL78: 1.549065421 | AM78: 1.475195822 | AN78: 1.413105413 | AO78: 1.37797619 | AP78: 1.36 | AQ78: 1.347003155 | AT78: 0.4 | AU78: 1.555555556 | AV78: 1.475274725 | AW78: 1.413173653 | AX78: 1.378125 | AY78: 1.361290323 | AZ78: 1.343234323
A79: 0.35 | B79: 1.546783626 | C79: 1.478114478 | D79: 1.420152091 | E79: 1.387423935 | F79: 1.368085106 | G79: 1.353200883 | J79: 0.35 | K79: 1.560218978 | L79: 1.4875 | M79: 1.425581395 | N79: 1.391625616 | O79: 1.372750643 | P79: 1.355437666 | S79: 0.35 | T79: 1.569672131 | U79: 1.493023256 | V79: 1.428940568 | W79: 1.396174863 | X79: 1.373937677 | Y79: 1.359649123 | AB79: 0.35 | AC79: 1.574370709 | AD79: 1.501298701 | AE79: 1.429799427 | AF79: 1.398791541 | AG79: 1.375 | AH79: 1.360128617 | AK79: 0.35 | AL79: 1.581047382 | AM79: 1.504225352 | AN79: 1.434782609 | AO79: 1.400651466 | AP79: 1.377104377 | AQ79: 1.359861592 | AT79: 0.35 | AU79: 1.584210526 | AV79: 1.504451039 | AW79: 1.437908497 | AX79: 1.400684932 | AY79: 1.379432624 | AZ79: 1.363636364
A80: 0.3 | B80: 1.574074074 | C80: 1.503597122 | D80: 1.439425051 | E80: 1.405286344 | F80: 1.384259259 | G80: 1.367788462 | J80: 0.3 | K80: 1.591085271 | L80: 1.515695067 | M80: 1.450632911 | N80: 1.412398922 | O80: 1.391549296 | P80: 1.376093294 | S80: 0.3 | T80: 1.59912854 | U80: 1.522613065 | V80: 1.450704225 | W80: 1.416167665 | X80: 1.396875 | Y80: 1.377419355 | AB80: 0.3 | AC80: 1.602439024 | AD80: 1.530898876 | AE80: 1.454545455 | AF80: 1.42192691 | AG80: 1.397923875 | AH80: 1.377224199 | AK80: 0.3 | AL80: 1.611702128 | AM80: 1.530487805 | AN80: 1.459183673 | AO80: 1.424460432 | AP80: 1.399253731 | AQ80: 1.384615385 | AT80: 0.3 | AU80: 1.612359551 | AV80: 1.538709677 | AW80: 1.462365591 | AX80: 1.428030303 | AY80: 1.4 | AZ80: 1.383064516
A81: 0.25 | B81: 1.599348534 | C81: 1.529865125 | D81: 1.46325167 | E81: 1.431325301 | F81: 1.406091371 | G81: 1.388888889 | J81: 0.25 | K81: 1.619341564 | L81: 1.54589372 | M81: 1.476454294 | N81: 1.43620178 | O81: 1.414330218 | P81: 1.398058252 | S81: 0.25 | T81: 1.631090487 | U81: 1.554347826 | V81: 1.482972136 | W81: 1.443708609 | X81: 1.420138889 | Y81: 1.402877698 | AB81: 0.25 | AC81: 1.638020833 | AD81: 1.56402439 | AE81: 1.487889273 | AF81: 1.450184502 | AG81: 1.419230769 | AH81: 1.402390438 | AK81: 0.25 | AL81: 1.646723647 | AM81: 1.571428571 | AN81: 1.492481203 | AO81: 1.452 | AP81: 1.425 | AQ81: 1.405172414 | AT81: 0.25 | AU81: 1.65060241 | AV81: 1.571929825 | AW81: 1.496031746 | AX81: 1.455696203 | AY81: 1.431718062 | AZ81: 1.409090909
A82: 0.2 | B82: 1.629310345 | C82: 1.563146998 | D82: 1.496350365 | E82: 1.458885942 | F82: 1.43258427 | G82: 1.414705882 | J82: 0.2 | K82: 1.649890591 | L82: 1.583769634 | M82: 1.509146341 | N82: 1.468646865 | O82: 1.442508711 | P82: 1.429090909 | S82: 0.2 | T82: 1.663366337 | U82: 1.594674556 | V82: 1.517123288 | W82: 1.477777778 | X82: 1.447470817 | Y82: 1.429149798 | AB82: 0.2 | AC82: 1.668523677 | AD82: 1.601328904 | AE82: 1.526923077 | AF82: 1.485477178 | AG82: 1.456521739 | AH82: 1.438914027 | AK82: 0.2 | AL82: 1.679878049 | AM82: 1.610909091 | AN82: 1.531380753 | AO82: 1.490990991 | AP82: 1.45754717 | AQ82: 1.441176471 | AT82: 0.2 | AU82: 1.683870968 | AV82: 1.615384615 | AW82: 1.530973451 | AX82: 1.495238095 | AY82: 1.465 | AZ82: 1.445595855
A83: 0.15 | B83: 1.660583942 | C83: 1.598214286 | D83: 1.532085561 | E83: 1.491176471 | F83: 1.465408805 | G83: 1.447019868 | J83: 0.15 | K83: 1.682983683 | L83: 1.623931624 | M83: 1.552542373 | N83: 1.507407407 | O83: 1.486166008 | P83: 1.458677686 | S83: 0.15 | T83: 1.693931398 | U83: 1.635483871 | V83: 1.567049808 | W83: 1.523012552 | X83: 1.493333333 | Y83: 1.469767442 | AB83: 0.15 | AC83: 1.707462687 | AD83: 1.643636364 | AE83: 1.573275862 | AF83: 1.525821596 | AG83: 1.497512438 | AH83: 1.479166667 | AK83: 0.15 | AL83: 1.715686275 | AM83: 1.653386454 | AN83: 1.58490566 | AO83: 1.533333333 | AP83: 1.505434783 | AQ83: 1.482954545 | AT83: 0.15 | AU83: 1.716262976 | AV83: 1.658227848 | AW83: 1.59 | AX83: 1.538043478 | AY83: 1.505747126 | AZ83: 1.48502994
A84: 0.1 | B84: 1.689189189 | C84: 1.637681159 | D84: 1.576923077 | E84: 1.534653465 | F84: 1.508896797 | G84: 1.490566038 | J84: 0.1 | K84: 1.717121588 | L84: 1.664596273 | M84: 1.602272727 | N84: 1.565400844 | O84: 1.529411765 | P84: 1.511961722 | S84: 0.1 | T84: 1.731638418 | U84: 1.67844523 | V84: 1.61637931 | W84: 1.574162679 | X84: 1.543589744 | Y84: 1.518918919 | AB84: 0.1 | AC84: 1.741214058 | AD84: 1.692 | AE84: 1.629268293 | AF84: 1.583783784 | AG84: 1.558139535 | AH84: 1.530487805 | AK84: 0.1 | AL84: 1.754385965 | AM84: 1.697368421 | AN84: 1.636363636 | AO84: 1.601190476 | AP84: 1.566878981 | AQ84: 1.543624161 | AT84: 0.1 | AU84: 1.758364312 | AV84: 1.710280374 | AW84: 1.642045455 | AX84: 1.597484277 | AY84: 1.574324324 | AZ84: 1.546099291
A85: 0.05 | B85: 1.721881391 | C85: 1.678010471 | D85: 1.625 | E85: 1.589552239 | F85: 1.567346939 | G85: 1.545851528 | J85: 0.05 | K85: 1.751322751 | L85: 1.708474576 | M85: 1.658119658 | N85: 1.626213592 | O85: 1.597883598 | P85: 1.576271186 | S85: 0.05 | T85: 1.765060241 | U85: 1.724806202 | V85: 1.673170732 | W85: 1.644444444 | X85: 1.608433735 | Y85: 1.593548387 | AB85: 0.05 | AC85: 1.780821918 | AD85: 1.735682819 | AE85: 1.688888889 | AF85: 1.658227848 | AG85: 1.634482759 | AH85: 1.610294118 | AK85: 0.05 | AL85: 1.789473684 | AM85: 1.752427184 | AN85: 1.705521472 | AO85: 1.666666667 | AP85: 1.643939394 | AQ85: 1.62601626 | AT85: 0.05 | AU85: 1.792828685 | AV85: 1.75257732 | AW85: 1.712418301 | AX85: 1.674074074 | AY85: 1.64516129 | AZ85: 1.629310345
A86: 0.01 | B86: 1.74732334 | C86: 1.712290503 | D86: 1.669064748 | E86: 1.639004149 | F86: 1.614678899 | G86: 1.60199005 | J86: 0.01 | K86: 1.777777778 | L86: 1.744525547 | M86: 1.702830189 | N86: 1.677595628 | O86: 1.65060241 | P86: 1.640522876 | S86: 0.01 | T86: 1.796825397 | U86: 1.765690377 | V86: 1.72826087 | W86: 1.698113208 | X86: 1.673611111 | Y86: 1.661654135 | AB86: 0.01 | AC86: 1.805755396 | AD86: 1.776190476 | AE86: 1.739130435 | AF86: 1.712230216 | AG86: 1.704 | AH86: 1.681034483 | AK86: 0.01 | AL86: 1.818181818 | AM86: 1.794736842 | AN86: 1.753424658 | AO86: 1.736 | AP86: 1.716814159 | AQ86: 1.701923077 | AT86: 0.01 | AU86: 1.823529412 | AV86: 1.793296089 | AW86: 1.759124088 | AX86: 1.743589744 | AY86: 1.716981132 | AZ86: 1.704081633
BF102: 海底勾配1/50 （壁体前面） | BQ102: 海底勾配1/50 （5波高沖までのλoHdの最大値）
BF127: 海底勾配1/100 （壁体前面） | BQ127: 海底勾配1/100 （5波高沖までのλoHdの最大値）

Sheet 消波工λ0data (hidden)
A1: 合田 | J1: 合田 | S1: 合田 | AB1: 合田 | AK1: 合田 | AT1: 合田 | BC1: グラフ表示用
B2: Ho/Lo=0.005 | C2: Ho/Lo=0.01 | D2: Ho/Lo=0.02 | E2: Ho/Lo=0.03 | F2: Ho/Lo=0.04 | G2: Ho/Lo=0.05 | K2: Ho/Lo=0.005 | L2: Ho/Lo=0.01 | M2: Ho/Lo=0.02 | N2: Ho/Lo=0.03 | O2: Ho/Lo=0.04 | P2: Ho/Lo=0.05 | T2: Ho/Lo=0.005 | U2: Ho/Lo=0.01 | V2: Ho/Lo=0.02 | W2: Ho/Lo=0.03 | X2: Ho/Lo=0.04 | Y2: Ho/Lo=0.05 | AC2: Ho/Lo=0.005 | AD2: Ho/Lo=0.01 | AE2: Ho/Lo=0.02 | AF2: Ho/Lo=0.03 | AG2: Ho/Lo=0.04 | AH2: Ho/Lo=0.05 | AL2: Ho/Lo=0.005 | AM2: Ho/Lo=0.01 | AN2: Ho/Lo=0.02 | AO2: Ho/Lo=0.03 | AP2: Ho/Lo=0.04 | AQ2: Ho/Lo=0.05 | AU2: Ho/Lo=0.005 | AV2: Ho/Lo=0.01 | AW2: Ho/Lo=0.02 | AX2: Ho/Lo=0.03 | AY2: Ho/Lo=0.04 | AZ2: Ho/Lo=0.05 | BC2: Ho'/Lo = | BD2: ='4.2.2 消波工で被覆された直立壁に作用する波力①'!E15 -> 0.032 | BF2: 海底勾配1/10 （壁体前面） | BQ2: 海底勾配1/10 （5波高沖までのλoHdの最大値）
A3: 海底勾配逆数 | B3: 10 | C3: 10 | D3: 10 | E3: 10 | F3: 10 | G3: 10 | J3: 海底勾配逆数 | K3: 15 | L3: 15 | M3: 15 | N3: 15 | O3: 15 | P3: 15 | S3: 海底勾配逆数 | T3: 20 | U3: 20 | V3: 20 | W3: 20 | X3: 20 | Y3: 20 | AB3: 海底勾配逆数 | AC3: 30 | AD3: 30 | AE3: 30 | AF3: 30 | AG3: 30 | AH3: 30 | AK3: 海底勾配逆数 | AL3: 50 | AM3: 50 | AN3: 50 | AO3: 50 | AP3: 50 | AQ3: 50 | AT3: 海底勾配逆数 | AU3: 100 | AV3: 100 | AW3: 100 | AX3: 100 | AY3: 100 | AZ3: 100
A4: Ho'/Lo | B4: 0.005 | C4: 0.01 | D4: 0.02 | E4: 0.03 | F4: 0.04 | G4: 0.05 | J4: Ho'/Lo | K4: 0.005 | L4: 0.01 | M4: 0.02 | N4: 0.03 | O4: 0.04 | P4: 0.05 | S4: Ho'/Lo | T4: 0.005 | U4: 0.01 | V4: 0.02 | W4: 0.03 | X4: 0.04 | Y4: 0.05 | AB4: Ho'/Lo | AC4: 0.005 | AD4: 0.01 | AE4: 0.02 | AF4: 0.03 | AG4: 0.04 | AH4: 0.05 | AK4: Ho'/Lo | AL4: 0.005 | AM4: 0.01 | AN4: 0.02 | AO4: 0.03 | AP4: 0.04 | AQ4: 0.05 | AT4: Ho'/Lo | AU4: 0.005 | AV4: 0.01 | AW4: 0.02 | AX4: 0.03 | AY4: 0.04 | AZ4: 0.05 | BC4: ①壁体前面
A5: h/Ho' | B5: H/Ho' | J5: h/Ho' | K5: H/Ho' | S5: h/Ho' | T5: H/Ho' | AB5: h/Ho' | AC5: H/Ho' | AK5: h/Ho' | AL5: H/Ho' | AT5: h/Ho' | AU5: H/Ho' | BC5: h/Ho' | BD5: λo
A6: 4 | B6: 1.799551234 | C6: 1.799815498 | D6: 1.799373041 | E6: 1.799349241 | F6: 1.799781182 | G6: 1.799782372 | J6: 4 | K6: 1.799401198 | L6: 1.79797048 | M6: 1.798328109 | N6: 1.799349241 | O6: 1.799781182 | P6: 1.798694233 | S6: 4 | T6: 1.799401198 | U6: 1.799630656 | V6: 1.79916318 | W6: 1.798264642 | X6: 1.79868709 | Y6: 1.798694233 | AB6: 4 | AC6: 1.798652695 | AD6: 1.798707295 | AE6: 1.79916318 | AF6: 1.798264642 | AG6: 1.79868709 | AH6: 1.797606094 | AK6: 4 | AL6: 1.797155689 | AM6: 1.798707295 | AN6: 1.79916318 | AO6: 1.800217155 | AP6: 1.79868709 | AQ6: 1.795429815 | AT6: 4 | AU6: 1.796254682 | AV6: 1.798707295 | AW6: 1.79916318 | AX6: 1.800217155 | AY6: 1.797592998 | AZ6: 1.793253536 | BC6: 0 | BD6: ='4.2.2 消波工で被覆された直立壁に作用する波力①'!I19 -> 1.43
A7: 3.95 | B7: 1.798812175 | C7: 1.799632353 | D7: 1.798748697 | E7: 1.798483207 | F7: 1.799781182 | G7: 1.798694233 | J7: 3.95 | K7: 1.799405646 | L7: 1.799448022 | M7: 1.798538622 | N7: 1.798483207 | O7: 1.799781182 | P7: 1.79956427 | S7: 3.95 | T7: 1.798662704 | U7: 1.799448022 | V7: 1.798538622 | W7: 1.799349241 | X7: 1.79868709 | Y7: 1.79956427 | AB7: 3.95 | AC7: 1.799256506 | AD7: 1.798528059 | AE7: 1.800417973 | AF7: 1.799349241 | AG7: 1.79868709 | AH7: 1.798474946 | AK7: 3.95 | AL7: 1.797026022 | AM7: 1.798528059 | AN7: 1.799373041 | AO7: 1.799349241 | AP7: 1.79868709 | AQ7: 1.796296296 | AT7: 3.95 | AU7: 1.794795539 | AV7: 1.799263352 | AW7: 1.799373041 | AX7: 1.799349241 | AY7: 1.797592998 | AZ7: 1.794117647 | BC7: ='4.2.2 消波工で被覆された直立壁に作用する波力①'!G19 -> 1.6 | BD7: ='4.2.2 消波工で被覆された直立壁に作用する波力①'!I19 -> 1.43
A8: 3.9 | B8: 1.798820929 | C8: 1.799450549 | D8: 1.798958333 | E8: 1.798701299 | F8: 1.799781182 | G8: 1.79956427 | J8: 3.9 | K8: 1.798672566 | L8: 1.799266728 | M8: 1.799791449 | N8: 1.799566631 | O8: 1.799781182 | P8: 1.798474946 | S8: 3.9 | T8: 1.8 | U8: 1.799266728 | V8: 1.799791449 | W8: 1.799566631 | X8: 1.79868709 | Y8: 1.798474946 | AB8: 3.9 | AC8: 1.798523985 | AD8: 1.798350137 | AE8: 1.798748697 | AF8: 1.798483207 | AG8: 1.79868709 | AH8: 1.797385621 | AK8: 3.9 | AL8: 1.796309963 | AM8: 1.8 | AN8: 1.798748697 | AO8: 1.798483207 | AP8: 1.797592998 | AQ8: 1.794117647 | AT8: 3.9 | AU8: 1.791881919 | AV8: 1.799082569 | AW8: 1.798748697 | AX8: 1.798483207 | AY8: 1.797592998 | AZ8: 1.79389313 | BC8: ='4.2.2 消波工で被覆された直立壁に作用する波力①'!G19 -> 1.6 | BD8: 1
A9: 3.85 | B9: 1.798829554 | C9: 1.799270073 | D9: 1.798336798 | E9: 1.79978355 | F9: 1.799781182 | G9: 1.798474946 | J9: 3.85 | K9: 1.799414348 | L9: 1.799086758 | M9: 1.799167534 | N9: 1.798701299 | O9: 1.799781182 | P9: 1.799345692 | S9: 3.85 | T9: 1.798682284 | U9: 1.799086758 | V9: 1.798126951 | W9: 1.798701299 | X9: 1.79868709 | Y9: 1.799345692 | AB9: 3.85 | AC9: 1.798534799 | AD9: 1.798173516 | AE9: 1.8 | AF9: 1.798701299 | AG9: 1.79868709 | AH9: 1.797164667 | AK9: 3.85 | AL9: 1.794871795 | AM9: 1.799817185 | AN9: 1.8 | AO9: 1.799566631 | AP9: 1.797592998 | AQ9: 1.794983642 | AT9: 3.85 | AU9: 1.78974359 | AV9: 1.799817185 | AW9: 1.798958333 | AX9: 1.799566631 | AY9: 1.797592998 | AZ9: 1.791712105
A10: 3.8 | B10: 1.79956427 | C10: 1.799090909 | D10: 1.799584631 | E10: 1.798918919 | F10: 1.797814208 | G10: 1.799345692 | J10: 3.8 | K10: 1.798838054 | L10: 1.799818016 | M10: 1.8004158 | N10: 1.798918919 | O10: 1.799781182 | P10: 1.79825518 | S10: 3.8 | T10: 1.799418605 | U10: 1.798908098 | V10: 1.799376299 | W10: 1.797837838 | X10: 1.799781182 | Y10: 1.79825518 | AB10: 3.8 | AC10: 1.797238372 | AD10: 1.798908098 | AE10: 1.799376299 | AF10: 1.79978355 | AG10: 1.79868709 | AH10: 1.796074155 | AK10: 3.8 | AL10: 1.792877907 | AM10: 1.799635701 | AN10: 1.798336798 | AO10: 1.79978355 | AP10: 1.797592998 | AQ10: 1.795851528 | AT10: 3.8 | AU10: 1.786909091 | AV10: 1.799635701 | AW10: 1.798336798 | AX10: 1.798701299 | AY10: 1.797592998 | AZ10: 1.792576419 | BC10: ②5波高沖までのλoHdの最大値
A11: 3.75 | B11: 1.799711816 | C11: 1.798913043 | D11: 1.797927461 | E11: 1.799136069 | F11: 1.798907104 | G11: 1.79825518 | J11: 3.75 | K11: 1.798270893 | L11: 1.799637353 | M11: 1.798755187 | N11: 1.8 | O11: 1.799781182 | P11: 1.800218341 | S11: 3.75 | T11: 1.798846431 | U11: 1.798730734 | V11: 1.798755187 | W11: 1.8 | X11: 1.799781182 | Y11: 1.799126638 | AB11: 3.75 | AC11: 1.79668349 | AD11: 1.798730734 | AE11: 1.798755187 | AF11: 1.798918919 | AG11: 1.79868709 | AH11: 1.796943231 | AK11: 3.75 | AL11: 1.790764791 | AM11: 1.798730734 | AN11: 1.799584631 | AO11: 1.798918919 | AP11: 1.79868709 | AQ11: 1.793668122 | AT11: 3.75 | AU11: 1.782106782 | AV11: 1.799455535 | AW11: 1.799584631 | AX11: 1.798918919 | AY11: 1.797592998 | AZ11: 1.790393013 | BC11: h/Ho' | BD11: λo
A12: 3.7 | B12: 1.798571429 | C12: 1.799638989 | D12: 1.799171843 | E12: 1.798274002 | F12: 1.798907104 | G12: 1.799126638 | J12: 3.7 | K12: 1.799142244 | L12: 1.798736462 | M12: 1.798136646 | N12: 1.800215983 | O12: 1.797814208 | P12: 1.799126638 | S12: 3.7 | T12: 1.797712652 | U12: 1.799457995 | V12: 1.8 | W12: 1.799136069 | X12: 1.799781182 | Y12: 1.798034934 | AB12: 3.7 | AC12: 1.795422031 | AD12: 1.799457995 | AE12: 1.8 | AF12: 1.799136069 | AG12: 1.79868709 | AH12: 1.795851528 | AK12: 3.7 | AL12: 1.78683834 | AM12: 1.798554652 | AN12: 1.798963731 | AO12: 1.799136069 | AP12: 1.79868709 | AQ12: 1.792576419 | AT12: 3.7 | AU12: 1.775948461 | AV12: 1.79765131 | AW12: 1.798963731 | AX12: 1.798056156 | AY12: 1.796498906 | AZ12: 1.790163934 | BC12: 0 | BD12: ='4.2.2 消波工で被覆された直立壁に作用する波力①'!I27 -> 1.56
A13: 3.65 | B13: 1.799433026 | C13: 1.798742138 | D13: 1.798553719 | E13: 1.798491379 | F13: 1.798907104 | G13: 1.799126638 | J13: 3.65 | K13: 1.798724309 | L13: 1.798561151 | M13: 1.799379524 | N13: 1.799352751 | O13: 1.798907104 | P13: 1.798034934 | S13: 3.65 | T13: 1.79858156 | U13: 1.798561151 | V13: 1.799379524 | W13: 1.799352751 | X13: 1.797814208 | Y13: 1.798907104 | AB13: 3.65 | AC13: 1.793617021 | AD13: 1.799279928 | AE13: 1.799379524 | AF13: 1.798274002 | AG13: 1.799781182 | AH13: 1.796721311 | AK13: 3.65 | AL13: 1.782824698 | AM13: 1.799279928 | AN13: 1.798345398 | AO13: 1.798274002 | AP13: 1.79868709 | AQ13: 1.792349727 | AT13: 3.65 | AU13: 1.769176136 | AV13: 1.798379838 | AW13: 1.798345398 | AX13: 1.798274002 | AY13: 1.796498906 | AZ13: 1.787978142 | BC13: ='4.2.2 消波工で被覆された直立壁に作用する波力①'!G27 -> 1.84 | BD13: ='4.2.2 消波工で被覆された直立壁に作用する波力①'!I27 -> 1.56
A14: 3.6 | B14: 1.798455056 | C14: 1.798567592 | D14: 1.797938144 | E14: 1.797631862 | F14: 1.8 | G14: 1.8 | J14: 3.6 | K14: 1.799016163 | L14: 1.799283154 | M14: 1.79876161 | N14: 1.799568966 | O14: 1.798907104 | P14: 1.798907104 | S14: 3.6 | T14: 1.796907941 | U14: 1.799283154 | V14: 1.79876161 | W14: 1.798491379 | X14: 1.798907104 | Y14: 1.797814208 | AB14: 3.6 | AC14: 1.791139241 | AD14: 1.798387097 | AE14: 1.79876161 | AF14: 1.798491379 | AG14: 1.797814208 | AH14: 1.795628415 | AK14: 3.6 | AL14: 1.776213934 | AM14: 1.799103139 | AN14: 1.797729618 | AO14: 1.798491379 | AP14: 1.796721311 | AQ14: 1.791256831 | AT14: 3.6 | AU14: 1.759859155 | AV14: 1.798206278 | AW14: 1.799586777 | AX14: 1.797413793 | AY14: 1.796498906 | AZ14: 1.78579235 | BC14: ='4.2.2 消波工で被覆された直立壁に作用する波力①'!G27 -> 1.84 | BD14: 1
A15: 3.55 | B15: 1.799442897 | C15: 1.798573975 | D15: 1.800205973 | E15: 1.799784715 | F15: 1.8 | G15: 1.798907104 | J15: 3.55 | K15: 1.798050139 | L15: 1.799286351 | M15: 1.799176107 | N15: 1.798708288 | O15: 1.798907104 | P15: 1.798907104 | S15: 3.55 | T15: 1.797212544 | U15: 1.799286351 | V15: 1.798146241 | W15: 1.798708288 | X15: 1.798907104 | Y15: 1.796721311 | AB15: 3.55 | AC15: 1.788005579 | AD15: 1.798394291 | AE15: 1.8 | AF15: 1.798708288 | AG15: 1.797814208 | AH15: 1.794535519 | AK15: 3.55 | AL15: 1.76901605 | AM15: 1.799107143 | AN15: 1.798969072 | AO15: 1.797631862 | AP15: 1.796721311 | AQ15: 1.791028446 | AT15: 3.55 | AU15: 1.749825297 | AV15: 1.797321429 | AW15: 1.798969072 | AX15: 1.797631862 | AY15: 1.794535519 | AZ15: 1.785557987
A16: 3.5 | B16: 1.799861974 | C16: 1.799467613 | D16: 1.7995889 | E16: 1.8 | F16: 1.799126638 | G16: 1.798907104 | J16: 3.5 | K16: 1.798481712 | L16: 1.80017762 | M16: 1.798561151 | N16: 1.798924731 | O16: 1.798034934 | P16: 1.797814208 | S16: 3.5 | T16: 1.79558011 | U16: 1.79928952 | V16: 1.800411523 | W16: 1.798924731 | X16: 1.8 | Y16: 1.79868709 | AB16: 3.5 | AC16: 1.782999309 | AD16: 1.798401421 | AE16: 1.799382716 | AF16: 1.798924731 | AG16: 1.798907104 | AH16: 1.794310722 | AK16: 3.5 | AL16: 1.760553633 | AM16: 1.797513321 | AN16: 1.799382716 | AO16: 1.797849462 | AP16: 1.796721311 | AQ16: 1.788840263 | AT16: 3.5 | AU16: 1.737352737 | AV16: 1.795737123 | AW16: 1.798353909 | AX16: 1.796774194 | AY16: 1.794535519 | AZ16: 1.782275711
A17: 3.45 | B17: 1.799043062 | C17: 1.798764342 | D17: 1.798974359 | E17: 1.798283262 | F17: 1.799126638 | G17: 1.797814208 | J17: 3.45 | K17: 1.798221614 | L17: 1.799469965 | M17: 1.797948718 | N17: 1.799140709 | O17: 1.799126638 | P17: 1.79868709 | S17: 3.45 | T17: 1.792749658 | U17: 1.798586572 | V17: 1.799794661 | W17: 1.799140709 | X17: 1.798034934 | Y17: 1.797592998 | AB17: 3.45 | AC17: 1.776712329 | AD17: 1.79770318 | AE17: 1.799794661 | AF17: 1.798066595 | AG17: 1.796943231 | AH17: 1.79321663 | AK17: 3.45 | AL17: 1.748285322 | AM17: 1.798408488 | AN17: 1.798767967 | AO17: 1.798066595 | AP17: 1.796721311 | AQ17: 1.786652079 | AT17: 3.45 | AU17: 1.72233677 | AV17: 1.795755968 | AW17: 1.797741273 | AX17: 1.796992481 | AY17: 1.793442623 | AZ17: 1.78203724
A18: 3.4 | B18: 1.798916723 | C18: 1.798946444 | D18: 1.799385875 | E18: 1.798499464 | F18: 1.79825518 | G18: 1.799781182 | J18: 3.4 | K18: 1.798102981 | L18: 1.799648506 | M18: 1.798362334 | N18: 1.799356223 | O18: 1.799126638 | P18: 1.79868709 | S18: 3.4 | T18: 1.7899729 | U18: 1.798769772 | V18: 1.799180328 | W18: 1.799356223 | X18: 1.799126638 | Y18: 1.796498906 | AB18: 3.4 | AC18: 1.76797829 | AD18: 1.797891037 | AE18: 1.799180328 | AF18: 1.798283262 | AG18: 1.798034934 | AH18: 1.792122538 | AK18: 3.4 | AL18: 1.734874235 | AM18: 1.796833773 | AN18: 1.798155738 | AO18: 1.7972103 | AP18: 1.794759825 | AQ18: 1.786418401 | AT18: 3.4 | AU18: 1.706203136 | AV18: 1.793315743 | AW18: 1.797131148 | AX18: 1.796137339 | AY18: 1.791484716 | AZ18: 1.778751369
A19: 3.35 | B19: 1.798927614 | C19: 1.799126638 | D19: 1.798774259 | E19: 1.798715203 | F19: 1.799345692 | G19: 1.799781182 | J19: 3.35 | K19: 1.796780684 | L19: 1.798253275 | M19: 1.797752809 | N19: 1.799571275 | O19: 1.79825518 | P19: 1.797592998 | S19: 3.35 | T19: 1.786577181 | U19: 1.799825175 | V19: 1.799591002 | W19: 1.799571275 | X19: 1.79825518 | Y19: 1.795404814 | AB19: 3.35 | AC19: 1.757392473 | AD19: 1.798076923 | AE19: 1.799591002 | AF19: 1.798499464 | AG19: 1.798034934 | AH19: 1.789934354 | AK19: 3.35 | AL19: 1.720161834 | AM19: 1.795454545 | AN19: 1.798568507 | AO19: 1.797427653 | AP19: 1.794759825 | AQ19: 1.78422782 | AT19: 3.35 | AU19: 1.688768606 | AV19: 1.79020979 | AW19: 1.797546012 | AX19: 1.79528403 | AY19: 1.790393013 | AZ19: 1.775465498
A20: 3.3 | B20: 1.798938288 | C20: 1.799479167 | D20: 1.799184506 | E20: 1.798930481 | F20: 1.800436205 | G20: 1.79868709 | J20: 3.3 | K20: 1.794820717 | L20: 1.799304952 | M20: 1.798165138 | N20: 1.797860963 | O20: 1.799345692 | P20: 1.797592998 | S20: 3.3 | T20: 1.780730897 | U20: 1.799304952 | V20: 1.8 | W20: 1.799785867 | X20: 1.79825518 | Y20: 1.795404814 | AB20: 3.3 | AC20: 1.745006658 | AD20: 1.797567333 | AE20: 1.798979592 | AF20: 1.798715203 | AG20: 1.796074155 | AH20: 1.790799562 | AK20: 3.3 | AL20: 1.702540107 | AM20: 1.793223284 | AN20: 1.797959184 | AO20: 1.79764454 | AP20: 1.792802617 | AQ20: 1.78094195 | AT20: 3.3 | AU20: 1.669576897 | AV20: 1.788695652 | AW20: 1.796938776 | AX20: 1.795503212 | AY20: 1.787350055 | AZ20: 1.771084337
A21: 3.25 | B21: 1.798424163 | C21: 1.799827437 | D21: 1.799593082 | E21: 1.799145299 | F21: 1.798474946 | G21: 1.79868709 | J21: 3.25 | K21: 1.792378449 | L21: 1.798964625 | M21: 1.798575788 | N21: 1.799145299 | O21: 1.798474946 | P21: 1.797592998 | S21: 3.25 | T21: 1.773684211 | U21: 1.799654577 | V21: 1.800407332 | W21: 1.798076923 | X21: 1.797385621 | Y21: 1.794310722 | AB21: 3.25 | AC21: 1.730870712 | AD21: 1.797063903 | AE21: 1.799389002 | AF21: 1.797008547 | AG21: 1.797164667 | AH21: 1.788608981 | AK21: 3.25 | AL21: 1.684350133 | AM21: 1.791018998 | AN21: 1.798370672 | AO21: 1.797860963 | AP21: 1.792802617 | AQ21: 1.777656079 | AT21: 3.25 | AU21: 1.648666667 | AV21: 1.783923941 | AW21: 1.796334012 | AX21: 1.794652406 | AY21: 1.786259542 | AZ21: 1.769736842
A22: 3.2 | B22: 1.7985705 | C22: 1.798628963 | D22: 1.798174442 | E22: 1.798507463 | F22: 1.798694233 | G22: 1.79868709 | J22: 3.2 | K22: 1.788686606 | L22: 1.799313894 | M22: 1.8 | N22: 1.799359658 | O22: 1.79956427 | P22: 1.796498906 | S22: 3.2 | T22: 1.763671875 | U22: 1.798456261 | V22: 1.798984772 | W22: 1.799359658 | X22: 1.798474946 | Y22: 1.795180723 | AB22: 3.2 | AC22: 1.71372549 | AD22: 1.795025729 | AE22: 1.797969543 | AF22: 1.798292423 | AG22: 1.795206972 | AH22: 1.787513691 | AK22: 3.2 | AL22: 1.663815789 | AM22: 1.788841202 | AN22: 1.796954315 | AO22: 1.795090715 | AP22: 1.789760349 | AQ22: 1.774370208 | AT22: 3.2 | AU22: 1.626075447 | AV22: 1.777682403 | AW22: 1.793908629 | AX22: 1.791889007 | AY22: 1.785169029 | AZ22: 1.765350877
A23: 3.15 | B23: 1.798200514 | C23: 1.799148936 | D23: 1.798989899 | E23: 1.798722045 | F23: 1.799782372 | G23: 1.79868709 | J23: 3.15 | K23: 1.783279743 | L23: 1.799829642 | M23: 1.797979798 | N23: 1.798722045 | O23: 1.798694233 | P23: 1.796498906 | S23: 3.15 | T23: 1.75128866 | U23: 1.798126065 | V23: 1.799797776 | W23: 1.799573561 | X23: 1.797606094 | Y23: 1.794085433 | AB23: 3.15 | AC23: 1.696046662 | AD23: 1.793867121 | AE23: 1.798786653 | AF23: 1.798507463 | AG23: 1.794341676 | AH23: 1.785323111 | AK23: 3.15 | AL23: 1.640992167 | AM23: 1.784313725 | AN23: 1.796764408 | AO23: 1.795309168 | AP23: 1.788671024 | AQ23: 1.773026316 | AT23: 3.15 | AU23: 1.604605263 | AV23: 1.7721843 | AW23: 1.792719919 | AX23: 1.791044776 | AY23: 1.781045752 | AZ23: 1.759868421
A24: 3.1 | B24: 1.797331639 | C24: 1.798141892 | D24: 1.79798995 | E24: 1.8 | F24: 1.798913043 | G24: 1.79868709 | J24: 3.1 | K24: 1.776717557 | L24: 1.798816568 | M24: 1.799798793 | N24: 1.79893617 | O24: 1.797826087 | P24: 1.796498906 | S24: 3.1 | T24: 1.73771538 | U24: 1.797125951 | V24: 1.798792757 | W24: 1.79893617 | X24: 1.798694233 | Y24: 1.792990142 | AB24: 3.1 | AC24: 1.674373796 | AD24: 1.791878173 | AE24: 1.79778672 | AF24: 1.796808511 | AG24: 1.794341676 | AH24: 1.78203724 | AK24: 3.1 | AL24: 1.618677043 | AM24: 1.77749577 | AN24: 1.793762575 | AO24: 1.792553191 | AP24: 1.785636561 | AQ24: 1.768640351 | AT24: 3.1 | AU24: 1.581806283 | AV24: 1.762066046 | AW24: 1.791540785 | AX24: 1.78913738 | AY24: 1.776931447 | AZ24: 1.754385965
A25: 3.05 | B25: 1.797110553 | C25: 1.798826488 | D25: 1.7997998 | E25: 1.798301486 | F25: 1.798045603 | G25: 1.79868709 | J25: 3.05 | K25: 1.767778477 | L25: 1.798657718 | M25: 1.798798799 | N25: 1.798301486 | O25: 1.798913043 | P25: 1.795404814 | S25: 3.05 | T25: 1.720151611 | U25: 1.79614094 | V25: 1.797797798 | W25: 1.799149841 | X25: 1.797826087 | Y25: 1.791894852 | AB25: 3.05 | AC25: 1.651592357 | AD25: 1.788413098 | AE25: 1.79759519 | AF25: 1.797024442 | AG25: 1.792391304 | AH25: 1.779846659 | AK25: 3.05 | AL25: 1.595360825 | AM25: 1.771428571 | AN25: 1.793587174 | AO25: 1.791710946 | AP25: 1.782608696 | AQ25: 1.764254386 | AT25: 3.05 | AU25: 1.55859375 | AV25: 1.752733389 | AW25: 1.78757515 | AX25: 1.78533475 | AY25: 1.774755169 | AZ25: 1.750823271
A26: 3 | B26: 1.795779019 | C26: 1.799500832 | D26: 1.798804781 | E26: 1.799575822 | F26: 1.800217155 | G26: 1.79868709 | J26: 3 | K26: 1.755444928 | L26: 1.797836938 | M26: 1.799601196 | N26: 1.799575822 | O26: 1.799131379 | P26: 1.795404814 | S26: 3 | T26: 1.700437774 | U26: 1.796003331 | V26: 1.798604187 | W26: 1.798515376 | X26: 1.796959826 | Y26: 1.788840263 | AB26: 3 | AC26: 1.628318584 | AD26: 1.782681099 | AE26: 1.796610169 | AF26: 1.79533404 | AG26: 1.790445168 | AH26: 1.776560789 | AK26: 3 | AL26: 1.572435897 | AM26: 1.76146789 | AN26: 1.790628116 | AO26: 1.790870488 | AP26: 1.781521739 | AQ26: 1.759868421 | AT26: 3 | AU26: 1.535667964 | AV26: 1.741019215 | AW26: 1.784431138 | AX26: 1.78343949 | AY26: 1.769565217 | AZ26: 1.744237102
A27: 2.95 | B27: 1.793378296 | C27: 1.79950495 | D27: 1.798810704 | E27: 1.798941799 | F27: 1.799349241 | G27: 1.799781182 | J27: 2.95 | K27: 1.740923077 | L27: 1.797854785 | M27: 1.799603175 | N27: 1.798941799 | O27: 1.798264642 | P27: 1.795404814 | S27: 2.95 | T27: 1.678018576 | U27: 1.793559042 | V27: 1.798611111 | W27: 1.796825397 | X27: 1.796095445 | Y27: 1.787746171 | AB27: 2.95 | AC27: 1.604519774 | AD27: 1.776859504 | AE27: 1.794642857 | AF27: 1.795550847 | AG27: 1.787418655 | AH27: 1.773274918 | AK27: 2.95 | AL27: 1.548469388 | AM27: 1.750827815 | AN27: 1.788480636 | AO27: 1.787076271 | AP27: 1.776330076 | AQ27: 1.754385965 | AT27: 2.95 | AU27: 1.514877102 | AV27: 1.725538972 | AW27: 1.779543198 | AX27: 1.778601695 | AY27: 1.765217391 | AZ27: 1.736553238 | BF27: 海底勾配1/15 （壁体前面） | BQ27: 海底勾配1/15 （5波高沖までのλoHdの最大値）
A28: 2.9 | B28: 1.790430042 | C28: 1.798855274 | D28: 1.799605133 | E28: 1.798310454 | F28: 1.799566631 | G28: 1.797814208 | J28: 2.9 | K28: 1.723067559 | L28: 1.79787234 | M28: 1.798617966 | N28: 1.800211416 | O28: 1.798483207 | P28: 1.794310722 | S28: 2.9 | T28: 1.655003069 | U28: 1.789689034 | V28: 1.7976308 | W28: 1.798097252 | X28: 1.794149512 | Y28: 1.785557987 | AB28: 2.9 | AC28: 1.580162196 | AD28: 1.768852459 | AE28: 1.792694965 | AF28: 1.792811839 | AG28: 1.787418655 | AH28: 1.768893757 | AK28: 2.9 | AL28: 1.527018436 | AM28: 1.736453202 | AN28: 1.78458498 | AO28: 1.783298097 | AP28: 1.772234273 | AQ28: 1.747807018 | AT28: 2.9 | AU28: 1.494512589 | AV28: 1.708641975 | AW28: 1.772727273 | AX28: 1.774603175 | AY28: 1.758957655 | AZ28: 1.728869374
A29: 2.85 | B29: 1.784688995 | C29: 1.799027553 | D29: 1.799607073 | E29: 1.798735511 | F29: 1.79978355 | G29: 1.797814208 | J29: 2.85 | K29: 1.702588802 | L29: 1.795786062 | M29: 1.798624754 | N29: 1.799578059 | O29: 1.797619048 | P29: 1.792349727 | S29: 2.85 | T29: 1.630553865 | U29: 1.785888078 | V29: 1.797642436 | W29: 1.797468354 | X29: 1.793290043 | Y29: 1.784463895 | AB29: 2.85 | AC29: 1.555831266 | AD29: 1.757108042 | AE29: 1.790766208 | AF29: 1.791139241 | AG29: 1.783315276 | AH29: 1.764512596 | AK29: 2.85 | AL29: 1.505389981 | AM29: 1.721271394 | AN29: 1.778761062 | AO29: 1.780359029 | AP29: 1.767063922 | AQ29: 1.74122807 | AT29: 2.85 | AU29: 1.475483871 | AV29: 1.690106296 | AW29: 1.766732283 | AX29: 1.767687434 | AY29: 1.751626898 | AZ29: 1.723076923
A30: 2.8 | B30: 1.776859504 | C30: 1.798555377 | D30: 1.798828125 | E30: 1.8 | F30: 1.8 | G30: 1.798907104 | J30: 2.8 | K30: 1.678975581 | L30: 1.79437751 | M30: 1.798631476 | N30: 1.798947368 | O30: 1.797837838 | P30: 1.792349727 | S30: 2.8 | T30: 1.605072464 | U30: 1.779742765 | V30: 1.796676442 | W30: 1.795789474 | X30: 1.792432432 | Y30: 1.782275711 | AB30: 2.8 | AC30: 1.532427424 | AD30: 1.743961353 | AE30: 1.787878788 | AF30: 1.788421053 | AG30: 1.78030303 | AH30: 1.760131435 | AK30: 2.8 | AL30: 1.484177215 | AM30: 1.702506063 | AN30: 1.772994129 | AO30: 1.775553214 | AP30: 1.762730228 | AQ30: 1.733552632 | AT30: 2.8 | AU30: 1.457069077 | AV30: 1.668831169 | AW30: 1.757100881 | AX30: 1.762658228 | AY30: 1.745119306 | AZ30: 1.713186813
A31: 2.75 | B31: 1.766317016 | C31: 1.799682035 | D31: 1.798833819 | E31: 1.799369748 | F31: 1.798274002 | G31: 1.798034934 | J31: 2.75 | K31: 1.654277286 | L31: 1.790937997 | M31: 1.799610895 | N31: 1.798319328 | O31: 1.796976242 | P31: 1.791256831 | S31: 2.75 | T31: 1.579484103 | U31: 1.771496815 | V31: 1.795719844 | W31: 1.795168067 | X31: 1.79049676 | Y31: 1.77704918 | AB31: 2.75 | AC31: 1.509236453 | AD31: 1.727853152 | AE31: 1.78307393 | AF31: 1.786540484 | AG31: 1.776216216 | AH31: 1.754654984 | AK31: 2.75 | AL31: 1.465189873 | AM31: 1.682182986 | AN31: 1.76436222 | AO31: 1.769716088 | AP31: 1.755411255 | AQ31: 1.727771679 | AT31: 2.75 | AU31: 1.439844761 | AV31: 1.647580645 | AW31: 1.747317073 | AX31: 1.753684211 | AY31: 1.735644637 | AZ31: 1.703296703
A32: 2.7 | B32: 1.752156412 | C32: 1.797955975 | D32: 1.799806576 | E32: 1.799790356 | F32: 1.798491379 | G32: 1.798034934 | J32: 2.7 | K32: 1.627703098 | L32: 1.786782061 | M32: 1.79787234 | N32: 1.79769392 | O32: 1.796116505 | P32: 1.788209607 | S32: 2.7 | T32: 1.553369112 | U32: 1.75965327 | V32: 1.793804453 | W32: 1.793501048 | X32: 1.788565264 | Y32: 1.773770492 | AB32: 2.7 | AC32: 1.488314883 | AD32: 1.711005542 | AE32: 1.778315586 | AF32: 1.782791186 | AG32: 1.771058315 | AH32: 1.746170678 | AK32: 2.7 | AL32: 1.446768061 | AM32: 1.659235669 | AN32: 1.756547042 | AO32: 1.764705882 | AP32: 1.747027027 | AQ32: 1.717892426 | AT32: 2.7 | AU32: 1.423476005 | AV32: 1.623397436 | AW32: 1.733980583 | AX32: 1.74553102 | AY32: 1.728060672 | AZ32: 1.694169417
A33: 2.65 | B33: 1.734809767 | C33: 1.79844358 | D33: 1.798076923 | E33: 1.800209205 | F33: 1.798708288 | G33: 1.797164667 | J33: 2.65 | K33: 1.60057971 | L33: 1.781152648 | M33: 1.797882579 | N33: 1.798117155 | O33: 1.794402583 | P33: 1.787117904 | S33: 2.65 | T33: 1.528503563 | U33: 1.7470726 | V33: 1.791145332 | W33: 1.791841004 | X33: 1.785560345 | Y33: 1.770491803 | AB33: 2.65 | AC33: 1.467117394 | AD33: 1.689952904 | AE33: 1.771676301 | AF33: 1.778010471 | AG33: 1.764832794 | AH33: 1.738512035 | AK33: 2.65 | AL33: 1.429479034 | AM33: 1.636867089 | AN33: 1.745173745 | AO33: 1.755765199 | AP33: 1.737580994 | AQ33: 1.708013172 | AT33: 2.65 | AU33: 1.408469055 | AV33: 1.599203187 | AW33: 1.721470019 | AX33: 1.735571878 | AY33: 1.716450216 | AZ33: 1.683168317
A34: 2.6 | B34: 1.712443946 | C34: 1.797692308 | D34: 1.799043062 | E34: 1.798748697 | F34: 1.8 | G34: 1.79825518 | J34: 2.6 | K34: 1.571921749 | L34: 1.771956857 | M34: 1.796172249 | N34: 1.797494781 | O34: 1.793548387 | P34: 1.782988004 | S34: 2.6 | T34: 1.504440497 | U34: 1.729520866 | V34: 1.788314176 | W34: 1.790187891 | X34: 1.780645161 | Y34: 1.76419214 | AB34: 2.6 | AC34: 1.448 | AD34: 1.66614786 | AE34: 1.764141898 | AF34: 1.772204807 | AG34: 1.75862069 | AH34: 1.730853392 | AK34: 2.6 | AL34: 1.414167198 | AM34: 1.61163522 | AN34: 1.731988473 | AO34: 1.746861925 | AP34: 1.730021598 | AQ34: 1.697036224 | AT34: 2.6 | AU34: 1.395150721 | AV34: 1.574940523 | AW34: 1.706165703 | AX34: 1.724318658 | AY34: 1.705627706 | AZ34: 1.671806167
A35: 2.55 | B35: 1.687707641 | C35: 1.796197719 | D35: 1.79923882 | E35: 1.799584631 | F35: 1.798283262 | G35: 1.796296296 | J35: 2.55 | K35: 1.545194508 | L35: 1.760091394 | M35: 1.794481446 | N35: 1.795430945 | O35: 1.792696026 | P35: 1.781897492 | S35: 2.55 | T35: 1.48108747 | U35: 1.710022953 | V35: 1.782857143 | W35: 1.786902287 | X35: 1.777658432 | Y35: 1.758733624 | AB35: 2.55 | AC35: 1.429981493 | AD35: 1.641698842 | AE35: 1.754770992 | AF35: 1.764828304 | AG35: 1.751345533 | AH35: 1.722100656 | AK35: 2.55 | AL35: 1.398973701 | AM35: 1.587177482 | AN35: 1.718660287 | AO35: 1.736183525 | AP35: 1.718446602 | AQ35: 1.687912088 | AT35: 2.55 | AU35: 1.381926121 | AV35: 1.550552923 | AW35: 1.689059501 | AX35: 1.711598746 | AY35: 1.693722944 | AZ35: 1.660418964
A36: 2.5 | B36: 1.658643326 | C36: 1.794139745 | D36: 1.798486282 | E36: 1.797729618 | F36: 1.799571275 | G36: 1.795429815 | J36: 2.5 | K36: 1.519088319 | L36: 1.746043708 | M36: 1.793560606 | N36: 1.794421488 | O36: 1.789924973 | P36: 1.776688453 | S36: 2.5 | T36: 1.459219858 | U36: 1.686363636 | V36: 1.776515152 | W36: 1.780991736 | X36: 1.77360515 | Y36: 1.751363141 | AB36: 2.5 | AC36: 1.413258984 | AD36: 1.615797546 | AE36: 1.742640076 | AF36: 1.754658385 | AG36: 1.741935484 | AH36: 1.712253829 | AK36: 2.5 | AL36: 1.385409942 | AM36: 1.561089494 | AN36: 1.70257388 | AO36: 1.720954357 | AP36: 1.707659115 | AQ36: 1.674725275 | AT36: 2.5 | AU36: 1.371257485 | AV36: 1.527186761 | AW36: 1.670813397 | AX36: 1.695109261 | AY36: 1.678918919 | AZ36: 1.64790287
A37: 2.45 | B37: 1.629669735 | C37: 1.790801187 | D37: 1.797932331 | E37: 1.798767967 | F37: 1.797860963 | G37: 1.794565217 | J37: 2.45 | K37: 1.494318182 | L37: 1.727272727 | M37: 1.789275635 | N37: 1.790554415 | O37: 1.786096257 | P37: 1.771490751 | S37: 2.45 | T37: 1.439905269 | U37: 1.661411411 | V37: 1.768361582 | W37: 1.775950668 | X37: 1.765524625 | Y37: 1.743729553 | AB37: 2.45 | AC37: 1.398753894 | AD37: 1.587966489 | AE37: 1.727101039 | AF37: 1.742533471 | AG37: 1.731471536 | AH37: 1.70131291 | AK37: 2.45 | AL37: 1.374348958 | AM37: 1.535658915 | AN37: 1.683111954 | AO37: 1.705578512 | AP37: 1.693965517 | AQ37: 1.663366337 | AT37: 2.45 | AU37: 1.360644728 | AV37: 1.503540519 | AW37: 1.650142993 | AX37: 1.678423237 | AY37: 1.666666667 | AZ37: 1.634254144
A38: 2.4 | B38: 1.598927614 | C38: 1.784040996 | D38: 1.798319328 | E38: 1.797959184 | F38: 1.797225187 | G38: 1.793702497 | J38: 2.4 | K38: 1.471323112 | L38: 1.70449521 | M38: 1.785046729 | N38: 1.788559755 | O38: 1.783119658 | P38: 1.766304348 | S38: 2.4 | T38: 1.421865716 | U38: 1.633928571 | V38: 1.759363296 | W38: 1.768916155 | X38: 1.759358289 | Y38: 1.734204793 | AB38: 2.4 | AC38: 1.385194479 | AD38: 1.560606061 | AE38: 1.711466165 | AF38: 1.729508197 | AG38: 1.719957082 | AH38: 1.689277899 | AK38: 2.4 | AL38: 1.363337714 | AM38: 1.510440835 | AN38: 1.664461248 | AO38: 1.688271605 | AP38: 1.681034483 | AQ38: 1.649779736 | AT38: 2.4 | AU38: 1.351424695 | AV38: 1.480345912 | AW38: 1.630228137 | AX38: 1.658057851 | AY38: 1.651515152 | AZ38: 1.619469027
A39: 2.35 | B39: 1.568085106 | C39: 1.776011561 | D39: 1.797961075 | E39: 1.797160243 | F39: 1.796592119 | G39: 1.79175705 | J39: 2.35 | K39: 1.45 | L39: 1.678571429 | M39: 1.779220779 | N39: 1.783756345 | O39: 1.778251599 | P39: 1.761956522 | S39: 2.35 | T39: 1.405970149 | U39: 1.606351551 | V39: 1.74535316 | W39: 1.758130081 | X39: 1.752136752 | Y39: 1.725490196 | AB39: 2.35 | AC39: 1.374050633 | AD39: 1.534339623 | AE39: 1.692523364 | AF39: 1.714285714 | AG39: 1.707395498 | AH39: 1.677984666 | AK39: 2.35 | AL39: 1.354581673 | AM39: 1.486862442 | AN39: 1.641580433 | AO39: 1.670769231 | AP39: 1.665948276 | AQ39: 1.636163175 | AT39: 2.35 | AU39: 1.34478022 | AV39: 1.459055118 | AW39: 1.607582938 | AX39: 1.639175258 | AY39: 1.634199134 | AZ39: 1.606430155
A40: 2.3 | B40: 1.538054968 | C40: 1.762651461 | D40: 1.796875 | E40: 1.796370968 | F40: 1.794899044 | G40: 1.789815818 | J40: 2.3 | K40: 1.430769231 | L40: 1.65007215 | M40: 1.771639042 | N40: 1.778002018 | O40: 1.772340426 | P40: 1.753528773 | S40: 2.3 | T40: 1.39266386 | U40: 1.576669112 | V40: 1.730378578 | W40: 1.746208291 | X40: 1.740938166 | Y40: 1.715686275 | AB40: 2.3 | AC40: 1.363578275 | AD40: 1.508283133 | AE40: 1.671003717 | AF40: 1.698170732 | AG40: 1.694533762 | AH40: 1.663745893 | AK40: 2.3 | AL40: 1.347446237 | AM40: 1.462905719 | AN40: 1.618556701 | AO40: 1.651329243 | AP40: 1.649784483 | AQ40: 1.620309051 | AT40: 2.3 | AU40: 1.337273992 | AV40: 1.43804262 | AW40: 1.584120983 | AX40: 1.618312757 | AY40: 1.618634886 | AZ40: 1.591111111
A41: 2.25 | B41: 1.51 | C41: 1.746132208 | D41: 1.795081967 | E41: 1.796593186 | F41: 1.794273595 | G41: 1.787878788 | J41: 2.25 | K41: 1.412707499 | L41: 1.620443174 | M41: 1.759817352 | N41: 1.769307924 | O41: 1.767268863 | P41: 1.745119306 | S41: 2.25 | T41: 1.378787879 | U41: 1.547045952 | V41: 1.71127406 | W41: 1.733400402 | X41: 1.73056443 | Y41: 1.701849837 | AB41: 2.25 | AC41: 1.354005168 | AD41: 1.483458647 | AE41: 1.646950092 | AF41: 1.679149798 | AG41: 1.678800857 | AH41: 1.650219298 | AK41: 2.25 | AL41: 1.340367597 | AM41: 1.442292796 | AN41: 1.595327103 | AO41: 1.629969419 | AP41: 1.634304207 | AQ41: 1.60441989 | AT41: 2.25 | AU41: 1.33145275 | AV41: 1.419175911 | AW41: 1.560377358 | AX41: 1.59650924 | AY41: 1.602605863 | AZ41: 1.575723831
A42: 2.2 | B42: 1.483193277 | C42: 1.723994452 | D42: 1.792418773 | E42: 1.794820717 | F42: 1.791974657 | G42: 1.784017279 | J42: 2.2 | K42: 1.397694524 | L42: 1.588944011 | M42: 1.74479638 | N42: 1.761477046 | O42: 1.757671958 | P42: 1.735644637 | S42: 2.2 | T42: 1.368034293 | U42: 1.519622093 | V42: 1.689717925 | W42: 1.717717718 | X42: 1.71656051 | Y42: 1.689880305 | AB42: 2.2 | AC42: 1.346204188 | AD42: 1.460496614 | AE42: 1.622815087 | AF42: 1.658266129 | AG42: 1.661324786 | AH42: 1.635565313 | AK42: 2.2 | AL42: 1.333333333 | AM42: 1.423794712 | AN42: 1.570363467 | AO42: 1.608341811 | AP42: 1.615301724 | AQ42: 1.589147287 | AT42: 2.2 | AU42: 1.326413744 | AV42: 1.402390438 | AW42: 1.536286522 | AX42: 1.575384615 | AY42: 1.583061889 | AZ42: 1.560893855
A43: 2.15 | B43: 1.459800315 | C43: 1.696990424 | D43: 1.789097408 | E43: 1.792284866 | F43: 1.790136411 | G43: 1.781014024 | J43: 2.15 | K43: 1.384079024 | L43: 1.55915493 | M43: 1.726457399 | N43: 1.749007937 | O43: 1.746315789 | P43: 1.725893824 | S43: 2.15 | T43: 1.358513932 | U43: 1.493836113 | V43: 1.665763324 | W43: 1.699203187 | X43: 1.700845666 | Y43: 1.675734494 | AB43: 2.15 | AC43: 1.339747843 | AD43: 1.439668175 | AE43: 1.597069597 | AF43: 1.63718593 | AG43: 1.641107561 | AH43: 1.618681319 | AK43: 2.15 | AL43: 1.328661528 | AM43: 1.406567631 | AN43: 1.543680297 | AO43: 1.586382114 | AP43: 1.594187298 | AQ43: 1.574444444 | AT43: 2.15 | AU43: 1.323144105 | AV43: 1.38875502 | AW43: 1.511299435 | AX43: 1.553846154 | AY43: 1.561822126 | AZ43: 1.544843049
A44: 2.1 | B44: 1.438125329 | C44: 1.668243243 | D44: 1.783377542 | E44: 1.789577188 | F44: 1.786235662 | G44: 1.775026911 | J44: 2.1 | K44: 1.372652582 | L44: 1.52908199 | M44: 1.704888889 | N44: 1.734714004 | O44: 1.731171548 | P44: 1.713203463 | S44: 2.1 | T44: 1.350690088 | U44: 1.468115942 | V44: 1.640035907 | W44: 1.679563492 | X44: 1.680336488 | Y44: 1.661220044 | AB44: 2.1 | AC44: 1.334006734 | AD44: 1.420454545 | AE44: 1.570255474 | AF44: 1.614844534 | AG44: 1.620616366 | AH44: 1.603524229 | AK44: 2.1 | AL44: 1.324074074 | AM44: 1.390551181 | AN44: 1.519034355 | AO44: 1.56504065 | AP44: 1.57311828 | AQ44: 1.556792873 | AT44: 2.1 | AU44: 1.319763138 | AV44: 1.375202593 | AW44: 1.488218662 | AX44: 1.531827515 | AY44: 1.541802389 | AZ44: 1.528683915
A45: 2.05 | B45: 1.418518519 | C45: 1.634846462 | D45: 1.773601399 | E45: 1.784179688 | F45: 1.78134715 | G45: 1.769892473 | J45: 2.05 | K45: 1.362232779 | L45: 1.5 | M45: 1.680176211 | N45: 1.718351325 | O45: 1.715920916 | P45: 1.698378378 | S45: 2.05 | T45: 1.342875318 | U45: 1.445170661 | V45: 1.611953613 | W45: 1.658102767 | X45: 1.661425577 | Y45: 1.644880174 | AB45: 2.05 | AC45: 1.329226557 | AD45: 1.402439024 | AE45: 1.54322111 | AF45: 1.590590591 | AG45: 1.598091198 | AH45: 1.584343991 | AK45: 2.05 | AL45: 1.321014493 | AM45: 1.376788553 | AN45: 1.49535316 | AO45: 1.541666667 | AP45: 1.550537634 | AQ45: 1.542505593 | AT45: 2.05 | AU45: 1.316503391 | AV45: 1.362817363 | AW45: 1.467863894 | AX45: 1.510288066 | AY45: 1.520652174 | AZ45: 1.514705882
A46: 2 | B46: 1.401704848 | C46: 1.599075297 | D46: 1.759930915 | E46: 1.776915616 | F46: 1.772633745 | G46: 1.761802575 | J46: 2 | K46: 1.353188929 | L46: 1.473133287 | M46: 1.652401747 | N46: 1.697560976 | O46: 1.697722567 | P46: 1.684324324 | S46: 2 | T46: 1.336563307 | U46: 1.423469388 | V46: 1.581560284 | W46: 1.63546798 | X46: 1.637787056 | Y46: 1.628135224 | AB46: 2 | AC46: 1.324286708 | AD46: 1.385560676 | AE46: 1.515894641 | AF46: 1.568568569 | AG46: 1.575211864 | AH46: 1.568584071 | AK46: 2 | AL46: 1.317343173 | AM46: 1.363855422 | AN46: 1.471627907 | AO46: 1.520366599 | AP46: 1.527956989 | AQ46: 1.524130191 | AT46: 2 | AU46: 1.313123561 | AV46: 1.351575456 | AW46: 1.44549763 | AX46: 1.491735537 | AY46: 1.5 | AZ46: 1.497727273
A47: 1.95 | B47: 1.387634409 | C47: 1.563850688 | D47: 1.742320819 | E47: 1.768046198 | F47: 1.764826176 | G47: 1.752136752 | J47: 1.95 | K47: 1.346764347 | L47: 1.447938505 | M47: 1.622183709 | N47: 1.676699029 | O47: 1.678350515 | P47: 1.667745415 | S47: 1.95 | T47: 1.333114323 | U47: 1.404988995 | V47: 1.553003534 | W47: 1.609421001 | X47: 1.615625 | Y47: 1.607843137 | AB47: 1.95 | AC47: 1.321757619 | AD47: 1.371605896 | AE47: 1.490463215 | AF47: 1.543 | AG47: 1.552966102 | AH47: 1.548172757 | AK47: 1.95 | AL47: 1.316027088 | AM47: 1.353132628 | AN47: 1.450046685 | AO47: 1.497959184 | AP47: 1.507543103 | AQ47: 1.505630631 | AT47: 1.95 | AU47: 1.312451057 | AV47: 1.342304458 | AW47: 1.426120114 | AX47: 1.469430052 | AY47: 1.479781421 | AZ47: 1.479452055
A48: 1.9 | B48: 1.376291463 | C48: 1.529947917 | D48: 1.719460826 | E48: 1.754770992 | F48: 1.751269036 | G48: 1.739915074 | J48: 1.9 | K48: 1.341191067 | L48: 1.424263675 | M48: 1.591222031 | N48: 1.650579151 | O48: 1.654358974 | P48: 1.645542427 | S48: 1.9 | T48: 1.328877005 | U48: 1.387573964 | V48: 1.522887324 | W48: 1.58374143 | X48: 1.592515593 | Y48: 1.584782609 | AB48: 1.9 | AC48: 1.320086705 | AD48: 1.358994501 | AE48: 1.464545455 | AF48: 1.51951952 | AG48: 1.529661017 | AH48: 1.527716186 | AK48: 1.9 | AL48: 1.31465848 | AM48: 1.342409241 | AN48: 1.428705441 | AO48: 1.475946776 | AP48: 1.486486486 | AQ48: 1.48700565 | AT48: 1.9 | AU48: 1.31254996 | AV48: 1.333902647 | AW48: 1.406909789 | AX48: 1.45 | AY48: 1.461538462 | AZ48: 1.461009174
A49: 1.85 | B49: 1.366189427 | C49: 1.498054475 | D49: 1.692756037 | E49: 1.737937559 | F49: 1.737638749 | G49: 1.723628692 | J49: 1.85 | K49: 1.335646688 | L49: 1.404375441 | M49: 1.558597092 | N49: 1.624399616 | O49: 1.630879346 | P49: 1.621390374 | S49: 1.85 | T49: 1.325613079 | U49: 1.372197309 | V49: 1.495162709 | W49: 1.555664062 | X49: 1.568016615 | Y49: 1.561346363 | AB49: 1.85 | AC49: 1.318584071 | AD49: 1.347929936 | AE49: 1.441605839 | AF49: 1.493987976 | AG49: 1.507430998 | AH49: 1.504994451 | AK49: 1.85 | AL49: 1.314263323 | AM49: 1.333612741 | AN49: 1.408876298 | AO49: 1.455761317 | AP49: 1.466883822 | AQ49: 1.467650397 | AT49: 1.85 | AU49: 1.311020408 | AV49: 1.326672459 | AW49: 1.390125847 | AX49: 1.43081761 | AY49: 1.443093923 | AZ49: 1.444059977
A50: 1.8 | B50: 1.357741755 | C50: 1.46761658 | D50: 1.659539474 | E50: 1.716963449 | F50: 1.720160481 | G50: 1.705450734 | J50: 1.8 | K50: 1.331619537 | L50: 1.387464387 | M50: 1.527706735 | N50: 1.594646272 | O50: 1.605504587 | P50: 1.597652081 | S50: 1.8 | T50: 1.32314107 | U50: 1.358547655 | V50: 1.468309859 | W50: 1.528780488 | X50: 1.543094496 | Y50: 1.537459283 | AB50: 1.8 | AC50: 1.317018072 | AD50: 1.338722716 | AE50: 1.419266055 | AF50: 1.471356784 | AG50: 1.486140725 | AH50: 1.4844098 | AK50: 1.8 | AL50: 1.314102564 | AM50: 1.327645051 | AN50: 1.39047619 | AO50: 1.434332989 | AP50: 1.448087432 | AQ50: 1.448118586 | AT50: 1.8 | AU50: 1.311352254 | AV50: 1.320070734 | AW50: 1.374755382 | AX50: 1.413319239 | AY50: 1.425389755 | AZ50: 1.427409988
A51: 1.75 | B51: 1.350568182 | C51: 1.440622972 | D51: 1.624898291 | E51: 1.690166976 | F51: 1.699900299 | G51: 1.686131387 | J51: 1.75 | K51: 1.32852459 | L51: 1.372210223 | M51: 1.495748299 | N51: 1.563273073 | O51: 1.581466395 | P51: 1.572949947 | S51: 1.75 | T51: 1.32079489 | U51: 1.348426708 | V51: 1.441306267 | W51: 1.501463415 | X51: 1.518711019 | Y51: 1.516866159 | AB51: 1.75 | AC51: 1.315627406 | AD51: 1.331414474 | AE51: 1.400555042 | AF51: 1.449494949 | AG51: 1.464668094 | AH51: 1.464205817 | AK51: 1.75 | AL51: 1.313114754 | AM51: 1.3214596 | AN51: 1.373435996 | AO51: 1.414583333 | AP51: 1.43061674 | AQ51: 1.43053961 | AT51: 1.75 | AU51: 1.311111111 | AV51: 1.315599639 | AW51: 1.359762141 | AX51: 1.395522388 | AY51: 1.410573678 | AZ51: 1.411007026
A52: 1.7 | B52: 1.345286293 | C52: 1.417482061 | D52: 1.587903226 | E52: 1.660845588 | F52: 1.675916749 | G52: 1.662863071 | J52: 1.7 | K52: 1.326188881 | L52: 1.359591539 | M52: 1.466382979 | N52: 1.534662868 | O52: 1.554425229 | P52: 1.549520767 | S52: 1.7 | T52: 1.319303338 | U52: 1.340359094 | V52: 1.41703638 | W52: 1.475073314 | X52: 1.495307612 | Y52: 1.494002181 | AB52: 1.7 | AC52: 1.315208826 | AD52: 1.325230511 | AE52: 1.380952381 | AF52: 1.426395939 | AG52: 1.445043103 | AH52: 1.445444319 | AK52: 1.7 | AL52: 1.3131822 | AM52: 1.316489362 | AN52: 1.358674464 | AO52: 1.397476341 | AP52: 1.413333333 | AQ52: 1.414831981 | AT52: 1.7 | AU52: 1.3117338 | AV52: 1.312442396 | AW52: 1.346733668 | AX52: 1.380798274 | AY52: 1.394318182 | AZ52: 1.396449704 | BF52: 海底勾配1/20 （壁体前面） | BQ52: 海底勾配1/20 （5波高沖までのλoHdの最大値）
A53: 1.65 | B53: 1.341779611 | C53: 1.397368421 | D53: 1.5496 | E53: 1.628415301 | F53: 1.647637795 | G53: 1.638429752 | J53: 1.65 | K53: 1.326488706 | L53: 1.349147517 | M53: 1.439419795 | N53: 1.503317536 | O53: 1.527975585 | P53: 1.525586354 | S53: 1.65 | T53: 1.319970304 | U53: 1.33227345 | V53: 1.3980322 | W53: 1.451422964 | X53: 1.471757322 | Y53: 1.472070099 | AB53: 1.65 | AC53: 1.317191283 | AD53: 1.319931565 | AE53: 1.366729679 | AF53: 1.407369498 | AG53: 1.425624321 | AH53: 1.427437642 | AK53: 1.65 | AL53: 1.313843508 | AM53: 1.313689937 | AN53: 1.347181009 | AO53: 1.380446334 | AP53: 1.396184063 | AQ53: 1.398830409 | AT53: 1.65 | AU53: 1.313285458 | AV53: 1.309142319 | AW53: 1.337078652 | AX53: 1.365720524 | AY53: 1.379310345 | AZ53: 1.383233533
A54: 1.6 | B54: 1.339747444 | C54: 1.380319149 | D54: 1.51433121 | E54: 1.592592593 | F54: 1.618395303 | G54: 1.612139918 | J54: 1.6 | K54: 1.326330532 | L54: 1.340120664 | M54: 1.416309013 | N54: 1.475332068 | O54: 1.50101833 | P54: 1.501068376 | S54: 1.6 | T54: 1.321673004 | U54: 1.326845093 | V54: 1.380650995 | W54: 1.427021696 | X54: 1.449001052 | Y54: 1.45154185 | AB54: 1.6 | AC54: 1.318444996 | AD54: 1.315559441 | AE54: 1.353787152 | AF54: 1.389865564 | AG54: 1.406352683 | AH54: 1.409610984 | AK54: 1.6 | AL54: 1.315696649 | AM54: 1.310760668 | AN54: 1.337022133 | AO54: 1.36598493 | AP54: 1.380249716 | AQ54: 1.384615385 | AT54: 1.6 | AU54: 1.315837937 | AV54: 1.306653809 | AW54: 1.328824142 | AX54: 1.352159468 | AY54: 1.365967366 | AZ54: 1.370145631
A55: 1.55 | B55: 1.338045482 | C55: 1.366149697 | D55: 1.47974583 | E55: 1.557450628 | F55: 1.58714703 | G55: 1.583589744 | J55: 1.55 | K55: 1.327833572 | L55: 1.333076923 | M55: 1.394463668 | N55: 1.448144624 | O55: 1.473469388 | P55: 1.476956056 | S55: 1.55 | T55: 1.323712949 | U55: 1.321458161 | V55: 1.364468864 | W55: 1.4055666 | X55: 1.427966102 | Y55: 1.431742508 | AB55: 1.55 | AC55: 1.320882852 | AD55: 1.313339302 | AE55: 1.342105263 | AF55: 1.371338912 | AG55: 1.389811739 | AH55: 1.394675926 | AK55: 1.55 | AL55: 1.31884058 | AM55: 1.308935361 | AN55: 1.327868852 | AO55: 1.353005464 | AP55: 1.36593786 | AQ55: 1.370503597 | AT55: 1.55 | AU55: 1.31758034 | AV55: 1.305637982 | AW55: 1.321656051 | AX55: 1.341216216 | AY55: 1.353846154 | AZ55: 1.358374384
A56: 1.5 | B56: 1.337106918 | C56: 1.354352296 | D56: 1.449482896 | E56: 1.521894549 | F56: 1.553294574 | G56: 1.556352459 | J56: 1.5 | K56: 1.327941176 | L56: 1.326787117 | M56: 1.376532399 | N56: 1.422966507 | O56: 1.447745902 | P56: 1.454741379 | S56: 1.5 | T56: 1.325060048 | U56: 1.318066158 | V56: 1.351627907 | W56: 1.385929648 | X56: 1.407051282 | Y56: 1.413213886 | AB56: 1.5 | AC56: 1.322580645 | AD56: 1.310091743 | AE56: 1.332671301 | AF56: 1.356687898 | AG56: 1.373318386 | AH56: 1.379835873 | AK56: 1.5 | AL56: 1.322160149 | AM56: 1.306042885 | AN56: 1.320083682 | AO56: 1.34 | AP56: 1.352803738 | AQ56: 1.358099878 | AT56: 1.5 | AU56: 1.320699708 | AV56: 1.304568528 | AW56: 1.314533623 | AX56: 1.330275229 | AY56: 1.342960289 | AZ56: 1.346683354
A57: 1.45 | B57: 1.337628866 | C57: 1.345670391 | D57: 1.42126299 | E57: 1.48706512 | F57: 1.519806763 | G57: 1.527123849 | J57: 1.45 | K57: 1.329056604 | L57: 1.323151125 | M57: 1.360568384 | N57: 1.3996139 | O57: 1.42371134 | P57: 1.431670282 | S57: 1.45 | T57: 1.326480263 | U57: 1.316521739 | V57: 1.339015152 | W57: 1.367243133 | X57: 1.388768898 | Y57: 1.393665158 | AB57: 1.45 | AC57: 1.32437276 | AD57: 1.309792844 | AE57: 1.323529412 | AF57: 1.343412527 | AG57: 1.359499431 | AH57: 1.364608076 | AK57: 1.45 | AL57: 1.323754789 | AM57: 1.30761523 | AN57: 1.314775161 | AO57: 1.328425821 | AP57: 1.342449465 | AQ57: 1.346534653 | AT57: 1.45 | AU57: 1.323 | AV57: 1.30480167 | AW57: 1.31 | AX57: 1.320843091 | AY57: 1.332107843 | AZ57: 1.336305732
A58: 1.4 | B58: 1.338177015 | C58: 1.339514979 | D58: 1.396774194 | E58: 1.453571429 | F58: 1.486486486 | G58: 1.497441146 | J58: 1.4 | K58: 1.332040341 | L58: 1.3215169 | M58: 1.345980126 | N58: 1.377929688 | O58: 1.402705515 | P58: 1.411378556 | S58: 1.4 | T58: 1.328825021 | U58: 1.314005352 | V58: 1.328502415 | W58: 1.351602896 | X58: 1.370897155 | Y58: 1.376861397 | AB58: 1.4 | AC58: 1.327490775 | AD58: 1.310745402 | AE58: 1.316390041 | AF58: 1.331133113 | AG58: 1.347222222 | AH58: 1.352657005 | AK58: 1.4 | AL58: 1.326108374 | AM58: 1.306900103 | AN58: 1.308114035 | AO58: 1.320601852 | AP58: 1.330508475 | AQ58: 1.335435057 | AT58: 1.4 | AU58: 1.326467559 | AV58: 1.306122449 | AW58: 1.304100228 | AX58: 1.313772455 | AY58: 1.3225 | AZ58: 1.325974026
A59: 1.35 | B59: 1.340338983 | C59: 1.333333333 | D59: 1.376326531 | E59: 1.423318386 | F59: 1.456479691 | G59: 1.468717949 | J59: 1.35 | K59: 1.334130781 | L59: 1.318950931 | M59: 1.335483871 | N59: 1.361386139 | O59: 1.38170347 | P59: 1.39159292 | S59: 1.35 | T59: 1.332463011 | U59: 1.313761468 | V59: 1.320158103 | W59: 1.34 | X59: 1.355555556 | Y59: 1.362790698 | AB59: 1.35 | AC59: 1.331749049 | AD59: 1.309760956 | AE59: 1.310638298 | AF59: 1.32247191 | AG59: 1.33490566 | AH59: 1.339066339 | AK59: 1.35 | AL59: 1.331300813 | AM59: 1.308917197 | AN59: 1.304054054 | AO59: 1.312426036 | AP59: 1.321782178 | AQ59: 1.326898327 | AT59: 1.35 | AU59: 1.33014862 | AV59: 1.306415929 | AW59: 1.300936768 | AX59: 1.30797546 | AY59: 1.314578005 | AZ59: 1.320053121
A60: 1.3 | B60: 1.343554007 | C60: 1.329094989 | D60: 1.35986733 | E60: 1.4 | F60: 1.427599611 | G60: 1.440782698 | J60: 1.3 | K60: 1.338259442 | L60: 1.317667537 | M60: 1.327049953 | N60: 1.346424975 | O60: 1.363927428 | P60: 1.372900336 | S60: 1.3 | T60: 1.337219731 | U60: 1.312559018 | V60: 1.315096251 | W60: 1.32867884 | X60: 1.341628959 | Y60: 1.348699764 | AB60: 1.3 | AC60: 1.33496572 | AD60: 1.310061602 | AE60: 1.307103825 | AF60: 1.315304948 | AG60: 1.324096386 | AH60: 1.328320802 | AK60: 1.3 | AL60: 1.335429769 | AM60: 1.307439825 | AN60: 1.302433372 | AO60: 1.307038835 | AP60: 1.312658228 | AQ60: 1.316688568 | AT60: 1.3 | AU60: 1.334063527 | AV60: 1.307077626 | AW60: 1.298795181 | AX60: 1.303526448 | AY60: 1.306684142 | AZ60: 1.3125
A61: 1.25 | B61: 1.345988539 | C61: 1.32718894 | D61: 1.3465765 | E61: 1.378205128 | F61: 1.401960784 | G61: 1.413471503 | J61: 1.25 | K61: 1.34179357 | L61: 1.317204301 | M61: 1.319806763 | N61: 1.335046249 | O61: 1.347448426 | P61: 1.357224118 | S61: 1.25 | T61: 1.341350601 | U61: 1.313534567 | V61: 1.311458333 | W61: 1.321232123 | X61: 1.327944573 | Y61: 1.336144578 | AB61: 1.25 | AC61: 1.339737108 | AD61: 1.311770944 | AE61: 1.303712036 | AF61: 1.309327037 | AG61: 1.313193588 | AH61: 1.320512821 | AK61: 1.25 | AL61: 1.33982684 | AM61: 1.30960452 | AN61: 1.299522673 | AO61: 1.303370787 | AP61: 1.303896104 | AQ61: 1.311320755 | AT61: 1.25 | AU61: 1.339366516 | AV61: 1.308962264 | AW61: 1.298136646 | AX61: 1.299222798 | AY61: 1.30013459 | AZ61: 1.305013928
A62: 1.2 | B62: 1.350553506 | C62: 1.328063241 | D62: 1.335350043 | E62: 1.359069767 | F62: 1.376984127 | G62: 1.391623037 | J62: 1.2 | K62: 1.346422339 | L62: 1.319778189 | M62: 1.314796425 | N62: 1.325263158 | O62: 1.333333333 | P62: 1.342989571 | S62: 1.2 | T62: 1.346704871 | U62: 1.316901408 | V62: 1.306538049 | W62: 1.312641084 | X62: 1.319148936 | Y62: 1.325123153 | AB62: 1.2 | AC62: 1.345872518 | AD62: 1.314348302 | AE62: 1.302784223 | AF62: 1.304981774 | AG62: 1.307594937 | AH62: 1.312746386 | AK62: 1.2 | AL62: 1.344519016 | AM62: 1.313084112 | AN62: 1.299630086 | AO62: 1.298200514 | AP62: 1.300400534 | AQ62: 1.30428769 | AT62: 1.2 | AU62: 1.343859649 | AV62: 1.313797314 | AW62: 1.297817715 | AX62: 1.29506008 | AY62: 1.296398892 | AZ62: 1.297567954
A63: 1.15 | B63: 1.354372624 | C63: 1.328175896 | D63: 1.328014184 | E63: 1.34345351 | F63: 1.358509567 | G63: 1.370488323 | J63: 1.15 | K63: 1.35166817 | L63: 1.322827125 | M63: 1.310838446 | N63: 1.316414687 | O63: 1.324263039 | P63: 1.328994083 | S63: 1.15 | T63: 1.350444225 | U63: 1.32049948 | V63: 1.305309735 | W63: 1.306620209 | X63: 1.311893204 | Y63: 1.313997478 | AB63: 1.15 | AC63: 1.35027027 | AD63: 1.318594104 | AE63: 1.302158273 | AF63: 1.299123905 | AG63: 1.302083333 | AH63: 1.303643725 | AK63: 1.15 | AL63: 1.349537037 | AM63: 1.317191283 | AN63: 1.298089172 | AO63: 1.294429708 | AP63: 1.297111417 | AQ63: 1.297297297 | AT63: 1.15 | AU63: 1.35030303 | AV63: 1.317319848 | AW63: 1.29747676 | AX63: 1.292413793 | AY63: 1.294285714 | AZ63: 1.293510324
A64: 1.1 | B64: 1.360282575 | C64: 1.329688814 | D64: 1.320875114 | E64: 1.330097087 | F64: 1.342915811 | G64: 1.352051836 | J64: 1.1 | K64: 1.35694315 | L64: 1.324110672 | M64: 1.308342133 | N64: 1.308888889 | O64: 1.315116279 | P64: 1.317575758 | S64: 1.1 | T64: 1.35648621 | U64: 1.323275862 | V64: 1.304347826 | W64: 1.301796407 | X64: 1.305867665 | Y64: 1.306095979 | AB64: 1.1 | AC64: 1.357222844 | AD64: 1.32079906 | AE64: 1.301488834 | AF64: 1.297542044 | AG64: 1.297986577 | AH64: 1.297222222 | AK64: 1.1 | AL64: 1.354916067 | AM64: 1.32160804 | AN64: 1.2998679 | AO64: 1.29532967 | AP64: 1.294034091 | AQ64: 1.293685756 | AT64: 1.1 | AU64: 1.35678392 | AV64: 1.320209974 | AW64: 1.298898072 | AX64: 1.292857143 | AY64: 1.292466765 | AZ64: 1.289193303
A65: 1.05 | B65: 1.366288493 | C65: 1.332173913 | D65: 1.318609023 | E65: 1.322033898 | F65: 1.331230284 | G65: 1.336273429 | J65: 1.05 | K65: 1.364864865 | L65: 1.327533265 | M65: 1.309289617 | N65: 1.306192661 | O65: 1.308982036 | P65: 1.308841843 | S65: 1.05 | T65: 1.364021164 | U65: 1.326256983 | V65: 1.30450237 | W65: 1.301115242 | X65: 1.301546392 | Y65: 1.300400534 | AB65: 1.05 | AC65: 1.363109049 | AD65: 1.324390244 | AE65: 1.302445302 | AF65: 1.296246649 | AG65: 1.295833333 | AH65: 1.294117647 | AK65: 1.05 | AL65: 1.36318408 | AM65: 1.32464146 | AN65: 1.301783265 | AO65: 1.293029872 | AP65: 1.291176471 | AQ65: 1.291350531 | AT65: 1.05 | AU65: 1.363754889 | AV65: 1.324693042 | AW65: 1.3018598 | AX65: 1.291851852 | AY65: 1.290519878 | AZ65: 1.288188976
A66: 1 | B66: 1.37300922 | C66: 1.334833483 | D66: 1.316812439 | E66: 1.315519013 | F66: 1.319654428 | G66: 1.323927765 | J66: 1 | K66: 1.372 | L66: 1.332624867 | M66: 1.309173273 | N66: 1.304038005 | O66: 1.302843016 | P66: 1.3042362 | S66: 1 | T66: 1.371020856 | U66: 1.332171893 | V66: 1.306273063 | W66: 1.299101412 | X66: 1.297333333 | Y66: 1.297931034 | AB66: 1 | AC66: 1.371084337 | AD66: 1.331218274 | AE66: 1.305220884 | AF66: 1.296244784 | AG66: 1.292086331 | AH66: 1.290801187 | AK66: 1 | AL66: 1.372574386 | AM66: 1.329715061 | AN66: 1.303851641 | AO66: 1.294378698 | AP66: 1.290076336 | AQ66: 1.289308176 | AT66: 1 | AU66: 1.371273713 | AV66: 1.329078014 | AW66: 1.303571429 | AX66: 1.292758089 | AY66: 1.287301587 | AZ66: 1.287581699
A67: 0.95 | B67: 1.379340278 | C67: 1.339869281 | D67: 1.315206445 | E67: 1.312433581 | F67: 1.310344828 | G67: 1.315911731 | J67: 0.95 | K67: 1.377593361 | L67: 1.338121547 | M67: 1.309776207 | N67: 1.301724138 | O67: 1.298335467 | P67: 1.300132802 | S67: 0.95 | T67: 1.378563284 | U67: 1.335748792 | V67: 1.307298335 | W67: 1.299065421 | X67: 1.294605809 | Y67: 1.294285714 | AB67: 0.95 | AC67: 1.378446115 | AD67: 1.335535007 | AE67: 1.306834031 | AF67: 1.296671491 | AG67: 1.291479821 | AH67: 1.289676425 | AK67: 0.95 | AL67: 1.379542396 | AM67: 1.335219236 | AN67: 1.306547619 | AO67: 1.295839753 | AP67: 1.288888889 | AQ67: 1.287581699 | AT67: 0.95 | AU67: 1.379407616 | AV67: 1.335798817 | AW67: 1.305900621 | AX67: 1.293739968 | AY67: 1.289256198 | AZ67: 1.285229202
A68: 0.9 | B68: 1.387589928 | C68: 1.345295829 | D68: 1.316945607 | E68: 1.308370044 | F68: 1.306098964 | G68: 1.308153477 | J68: 0.9 | K68: 1.386853448 | L68: 1.344073648 | M68: 1.31127451 | N68: 1.300896287 | O68: 1.29787234 | P68: 1.294360385 | S68: 0.9 | T68: 1.387900356 | U68: 1.343828715 | V68: 1.311081442 | W68: 1.300417246 | X68: 1.294964029 | Y68: 1.290801187 | AB68: 0.9 | AC68: 1.387222947 | AD68: 1.343448276 | AE68: 1.310043668 | AF68: 1.299093656 | AG68: 1.291277259 | AH68: 1.288924559 | AK68: 0.9 | AL68: 1.386554622 | AM68: 1.342688331 | AN68: 1.309006211 | AO68: 1.297427653 | AP68: 1.289735099 | AQ68: 1.285714286 | AT68: 0.9 | AU68: 1.387665198 | AV68: 1.343122102 | AW68: 1.310064935 | AX68: 1.296979866 | AY68: 1.289655172 | AZ68: 1.284955752
A69: 0.85 | B69: 1.396825397 | C69: 1.351160444 | D69: 1.319912949 | E69: 1.309278351 | F69: 1.303464755 | G69: 1.301863354 | J69: 0.85 | K69: 1.39573991 | L69: 1.350540216 | M69: 1.317541613 | N69: 1.304812834 | O69: 1.296398892 | P69: 1.293696275 | S69: 0.85 | T69: 1.39802225 | U69: 1.35 | V69: 1.317039106 | W69: 1.301886792 | X69: 1.295795796 | Y69: 1.291021672 | AB69: 0.85 | AC69: 1.397278912 | AD69: 1.34870317 | AE69: 1.315068493 | AF69: 1.301737757 | AG69: 1.293159609 | AH69: 1.289782245 | AK69: 0.85 | AL69: 1.397660819 | AM69: 1.349304482 | AN69: 1.313821138 | AO69: 1.301346801 | AP69: 1.292894281 | AQ69: 1.288256228 | AT69: 0.85 | AU69: 1.397239264 | AV69: 1.349514563 | AW69: 1.316326531 | AX69: 1.300527241 | AY69: 1.292418773 | AZ69: 1.287037037
A70: 0.8 | B70: 1.40543162 | C70: 1.357518402 | D70: 1.323863636 | E70: 1.309069212 | F70: 1.302238806 | G70: 1.298064516 | J70: 0.8 | K70: 1.404205607 | L70: 1.357590966 | M70: 1.319946452 | N70: 1.306293706 | O70: 1.296671491 | P70: 1.292974589 | S70: 0.8 | T70: 1.405927835 | U70: 1.356258597 | V70: 1.320175439 | W70: 1.305936073 | X70: 1.297169811 | Y70: 1.291262136 | AB70: 0.8 | AC70: 1.40625 | AD70: 1.358006042 | AE70: 1.319488818 | AF70: 1.302980132 | AG70: 1.295221843 | AH70: 1.29122807 | AK70: 0.8 | AL70: 1.406727829 | AM70: 1.358184765 | AN70: 1.321367521 | AO70: 1.303886926 | AP70: 1.294545455 | AQ70: 1.289179104 | AT70: 0.8 | AU70: 1.407704655 | AV70: 1.358234295 | AW70: 1.319642857 | AX70: 1.304428044 | AY70: 1.293560606 | AZ70: 1.289320388
A71: 0.75 | B71: 1.415741675 | C71: 1.367032967 | D71: 1.328180737 | E71: 1.309612984 | F71: 1.304291287 | G71: 1.299191375 | J71: 0.75 | K71: 1.417073171 | L71: 1.367936925 | M71: 1.325842697 | N71: 1.307917889 | O71: 1.300455235 | P71: 1.294209703 | S71: 0.75 | T71: 1.417227456 | U71: 1.366522367 | V71: 1.325652842 | W71: 1.308306709 | X71: 1.300330033 | Y71: 1.293718166 | AB71: 0.75 | AC71: 1.419019316 | AD71: 1.366085578 | AE71: 1.32605042 | AF71: 1.308362369 | AG71: 1.299820467 | AH71: 1.29281768 | AK71: 0.75 | AL71: 1.4192 | AM71: 1.36967632 | AN71: 1.325539568 | AO71: 1.30669145 | AP71: 1.298279159 | AQ71: 1.292156863 | AT71: 0.75 | AU71: 1.421848739 | AV71: 1.369642857 | AW71: 1.32518797 | AX71: 1.306796117 | AY71: 1.299401198 | AZ71: 1.292433538
A72: 0.7 | B72: 1.427970557 | C72: 1.375862069 | D72: 1.334164589 | E72: 1.317169069 | F72: 1.305177112 | G72: 1.297602257 | J72: 0.7 | K72: 1.429299363 | L72: 1.374655647 | M72: 1.334319527 | N72: 1.314814815 | O72: 1.305111821 | P72: 1.296052632 | S72: 0.7 | T72: 1.431593794 | U72: 1.376327769 | V72: 1.333333333 | W72: 1.314814815 | X72: 1.302083333 | Y72: 1.294642857 | AB72: 0.7 | AC72: 1.431464174 | AD72: 1.377295492 | AE72: 1.335106383 | AF72: 1.314338235 | AG72: 1.302457467 | AH72: 1.295145631 | AK72: 0.7 | AL72: 1.432885906 | AM72: 1.376344086 | AN72: 1.333965844 | AO72: 1.314341847 | AP72: 1.303030303 | AQ72: 1.296066253 | AT72: 0.7 | AU72: 1.433862434 | AV72: 1.377819549 | AW72: 1.333333333 | AX72: 1.316221766 | AY72: 1.303797468 | AZ72: 1.295896328
A73: 0.65 | B73: 1.438596491 | C73: 1.385542169 | D73: 1.342070773 | E73: 1.32137931 | F73: 1.308464849 | G73: 1.302670623 | J73: 0.65 | K73: 1.441333333 | L73: 1.385507246 | M73: 1.341653666 | N73: 1.320846906 | O73: 1.306913997 | P73: 1.300347222 | S73: 0.65 | T73: 1.443131462 | U73: 1.38658147 | V73: 1.341880342 | W73: 1.320284698 | X73: 1.306985294 | Y73: 1.3 | AB73: 0.65 | AC73: 1.446808511 | AD73: 1.389084507 | AE73: 1.343339587 | AF73: 1.321011673 | AG73: 1.308617234 | AH73: 1.299794661 | AK73: 0.65 | AL73: 1.446208113 | AM73: 1.390151515 | AN73: 1.344064386 | AO73: 1.320833333 | AP73: 1.308351178 | AQ73: 1.300438596 | AT73: 0.65 | AU73: 1.448979592 | AV73: 1.391650099 | AW73: 1.343157895 | AX73: 1.322440087 | AY73: 1.308724832 | AZ73: 1.302059497
A74: 0.6 | B74: 1.45412844 | C74: 1.397468354 | D74: 1.349930844 | E74: 1.327510917 | F74: 1.313161876 | G74: 1.305164319 | J74: 0.6 | K74: 1.455944056 | L74: 1.399082569 | M74: 1.349834983 | N74: 1.328151986 | O74: 1.314285714 | P74: 1.303308824 | S74: 0.6 | T74: 1.459627329 | U74: 1.400337838 | V74: 1.352087114 | W74: 1.328922495 | X74: 1.313840156 | Y74: 1.304609218 | AB74: 0.6 | AC74: 1.461273666 | AD74: 1.400372439 | AE74: 1.352589641 | AF74: 1.326446281 | AG74: 1.314893617 | AH74: 1.30349345 | AK74: 0.6 | AL74: 1.462825279 | AM74: 1.400801603 | AN74: 1.352564103 | AO74: 1.327433628 | AP74: 1.316628702 | AQ74: 1.303030303 | AT74: 0.6 | AU74: 1.465753425 | AV74: 1.402105263 | AW74: 1.351230425 | AX74: 1.328703704 | AY74: 1.316666667 | AZ74: 1.304136253
A75: 0.55 | B75: 1.466426859 | C75: 1.408 | D75: 1.359649123 | E75: 1.336419753 | F75: 1.321027287 | G75: 1.308457711 | J75: 0.55 | K75: 1.472058824 | L75: 1.412621359 | M75: 1.363157895 | N75: 1.335779817 | O75: 1.321292776 | P75: 1.311154599 | S75: 0.55 | T75: 1.475490196 | U75: 1.415026834 | V75: 1.364864865 | W75: 1.336016097 | X75: 1.322245322 | Y75: 1.311965812 | AB75: 0.55 | AC75: 1.479128857 | AD75: 1.415019763 | AE75: 1.365180467 | AF75: 1.337748344 | AG75: 1.322727273 | AH75: 1.312354312 | AK75: 0.55 | AL75: 1.480392157 | AM75: 1.417910448 | AN75: 1.364464692 | AO75: 1.338061466 | AP75: 1.323600973 | AQ75: 1.314214464 | AT75: 0.55 | AU75: 1.483471074 | AV75: 1.418344519 | AW75: 1.366028708 | AX75: 1.339108911 | AY75: 1.323155216 | AZ75: 1.3125
A76: 0.5 | B76: 1.483668342 | C76: 1.425352113 | D76: 1.372670807 | E76: 1.344262295 | F76: 1.32991453 | G76: 1.318021201 | J76: 0.5 | K76: 1.492260062 | L76: 1.428816467 | M76: 1.373831776 | N76: 1.347058824 | O76: 1.331300813 | P76: 1.320083682 | S76: 0.5 | T76: 1.496551724 | U76: 1.431558935 | V76: 1.377319588 | W76: 1.349137931 | X76: 1.331848552 | Y76: 1.320366133 | AB76: 0.5 | AC76: 1.498084291 | AD76: 1.433684211 | AE76: 1.377272727 | AF76: 1.34751773 | AG76: 1.331707317 | AH76: 1.32 | AK76: 0.5 | AL76: 1.502074689 | AM76: 1.434090909 | AN76: 1.378973105 | AO76: 1.347715736 | AP76: 1.335078534 | AQ76: 1.321715818 | AT76: 0.5 | AU76: 1.50547046 | AV76: 1.434367542 | AW76: 1.379487179 | AX76: 1.348404255 | AY76: 1.334246575 | AZ76: 1.322128852
A77: 0.45 | B77: 1.502638522 | C77: 1.439642325 | D77: 1.387417219 | E77: 1.355516637 | F77: 1.340036563 | G77: 1.325141777 | J77: 0.45 | K77: 1.510603589 | L77: 1.447080292 | M77: 1.388 | N77: 1.36 | O77: 1.34279476 | P77: 1.328089888 | S77: 0.45 | T77: 1.517304189 | U77: 1.447368421 | V77: 1.39159292 | W77: 1.361111111 | X77: 1.342925659 | Y77: 1.327586207 | AB77: 0.45 | AC77: 1.521298174 | AD77: 1.451685393 | AE77: 1.392682927 | AF77: 1.364795918 | AG77: 1.344736842 | AH77: 1.332432432 | AK77: 0.45 | AL77: 1.526431718 | AM77: 1.454987835 | AN77: 1.394736842 | AO77: 1.364383562 | AP77: 1.344632768 | AQ77: 1.333333333 | AT77: 0.45 | AU77: 1.526682135 | AV77: 1.455242967 | AW77: 1.395027624 | AX77: 1.364942529 | AY77: 1.346153846 | AZ77: 1.333333333 | BF77: 海底勾配1/30 （壁体前面） | BQ77: 海底勾配1/30 （5波高沖までのλoHdの最大値）
A78: 0.4 | B78: 1.525 | C78: 1.458860759 | D78: 1.401769912 | E78: 1.370300752 | F78: 1.351669941 | G78: 1.33808554 | J78: 0.4 | K78: 1.534482759 | L78: 1.464980545 | M78: 1.404301075 | N78: 1.375 | O78: 1.353773585 | P78: 1.340632603 | S78: 0.4 | T78: 1.540540541 | U78: 1.468546638 | V78: 1.408114558 | W78: 1.37593985 | X78: 1.355844156 | Y78: 1.342245989 | AB78: 0.4 | AC78: 1.547413793 | AD78: 1.472289157 | AE78: 1.408970976 | AF78: 1.375690608 | AG78: 1.357142857 | AH78: 1.343108504 | AK78: 0.4 | AL78: 1.549065421 | AM78: 1.475195822 | AN78: 1.413105413 | AO78: 1.37797619 | AP78: 1.36 | AQ78: 1.347003155 | AT78: 0.4 | AU78: 1.555555556 | AV78: 1.475274725 | AW78: 1.413173653 | AX78: 1.378125 | AY78: 1.361290323 | AZ78: 1.343234323
A79: 0.35 | B79: 1.546783626 | C79: 1.478114478 | D79: 1.420152091 | E79: 1.387423935 | F79: 1.368085106 | G79: 1.353200883 | J79: 0.35 | K79: 1.560218978 | L79: 1.4875 | M79: 1.425581395 | N79: 1.391625616 | O79: 1.372750643 | P79: 1.355437666 | S79: 0.35 | T79: 1.569672131 | U79: 1.493023256 | V79: 1.428940568 | W79: 1.396174863 | X79: 1.373937677 | Y79: 1.359649123 | AB79: 0.35 | AC79: 1.574370709 | AD79: 1.501298701 | AE79: 1.429799427 | AF79: 1.398791541 | AG79: 1.375 | AH79: 1.360128617 | AK79: 0.35 | AL79: 1.581047382 | AM79: 1.504225352 | AN79: 1.434782609 | AO79: 1.400651466 | AP79: 1.377104377 | AQ79: 1.359861592 | AT79: 0.35 | AU79: 1.584210526 | AV79: 1.504451039 | AW79: 1.437908497 | AX79: 1.400684932 | AY79: 1.379432624 | AZ79: 1.363636364
A80: 0.3 | B80: 1.574074074 | C80: 1.503597122 | D80: 1.439425051 | E80: 1.405286344 | F80: 1.384259259 | G80: 1.367788462 | J80: 0.3 | K80: 1.591085271 | L80: 1.515695067 | M80: 1.450632911 | N80: 1.412398922 | O80: 1.391549296 | P80: 1.376093294 | S80: 0.3 | T80: 1.59912854 | U80: 1.522613065 | V80: 1.450704225 | W80: 1.416167665 | X80: 1.396875 | Y80: 1.377419355 | AB80: 0.3 | AC80: 1.602439024 | AD80: 1.530898876 | AE80: 1.454545455 | AF80: 1.42192691 | AG80: 1.397923875 | AH80: 1.377224199 | AK80: 0.3 | AL80: 1.611702128 | AM80: 1.530487805 | AN80: 1.459183673 | AO80: 1.424460432 | AP80: 1.399253731 | AQ80: 1.384615385 | AT80: 0.3 | AU80: 1.612359551 | AV80: 1.538709677 | AW80: 1.462365591 | AX80: 1.428030303 | AY80: 1.4 | AZ80: 1.383064516
A81: 0.25 | B81: 1.599348534 | C81: 1.529865125 | D81: 1.46325167 | E81: 1.431325301 | F81: 1.406091371 | G81: 1.388888889 | J81: 0.25 | K81: 1.619341564 | L81: 1.54589372 | M81: 1.476454294 | N81: 1.43620178 | O81: 1.414330218 | P81: 1.398058252 | S81: 0.25 | T81: 1.631090487 | U81: 1.554347826 | V81: 1.482972136 | W81: 1.443708609 | X81: 1.420138889 | Y81: 1.402877698 | AB81: 0.25 | AC81: 1.638020833 | AD81: 1.56402439 | AE81: 1.487889273 | AF81: 1.450184502 | AG81: 1.419230769 | AH81: 1.402390438 | AK81: 0.25 | AL81: 1.646723647 | AM81: 1.571428571 | AN81: 1.492481203 | AO81: 1.452 | AP81: 1.425 | AQ81: 1.405172414 | AT81: 0.25 | AU81: 1.65060241 | AV81: 1.571929825 | AW81: 1.496031746 | AX81: 1.455696203 | AY81: 1.431718062 | AZ81: 1.409090909
A82: 0.2 | B82: 1.629310345 | C82: 1.563146998 | D82: 1.496350365 | E82: 1.458885942 | F82: 1.43258427 | G82: 1.414705882 | J82: 0.2 | K82: 1.649890591 | L82: 1.583769634 | M82: 1.509146341 | N82: 1.468646865 | O82: 1.442508711 | P82: 1.429090909 | S82: 0.2 | T82: 1.663366337 | U82: 1.594674556 | V82: 1.517123288 | W82: 1.477777778 | X82: 1.447470817 | Y82: 1.429149798 | AB82: 0.2 | AC82: 1.668523677 | AD82: 1.601328904 | AE82: 1.526923077 | AF82: 1.485477178 | AG82: 1.456521739 | AH82: 1.438914027 | AK82: 0.2 | AL82: 1.679878049 | AM82: 1.610909091 | AN82: 1.531380753 | AO82: 1.490990991 | AP82: 1.45754717 | AQ82: 1.441176471 | AT82: 0.2 | AU82: 1.683870968 | AV82: 1.615384615 | AW82: 1.530973451 | AX82: 1.495238095 | AY82: 1.465 | AZ82: 1.445595855
A83: 0.15 | B83: 1.660583942 | C83: 1.598214286 | D83: 1.532085561 | E83: 1.491176471 | F83: 1.465408805 | G83: 1.447019868 | J83: 0.15 | K83: 1.682983683 | L83: 1.623931624 | M83: 1.552542373 | N83: 1.507407407 | O83: 1.486166008 | P83: 1.458677686 | S83: 0.15 | T83: 1.693931398 | U83: 1.635483871 | V83: 1.567049808 | W83: 1.523012552 | X83: 1.493333333 | Y83: 1.469767442 | AB83: 0.15 | AC83: 1.707462687 | AD83: 1.643636364 | AE83: 1.573275862 | AF83: 1.525821596 | AG83: 1.497512438 | AH83: 1.479166667 | AK83: 0.15 | AL83: 1.715686275 | AM83: 1.653386454 | AN83: 1.58490566 | AO83: 1.533333333 | AP83: 1.505434783 | AQ83: 1.482954545 | AT83: 0.15 | AU83: 1.716262976 | AV83: 1.658227848 | AW83: 1.59 | AX83: 1.538043478 | AY83: 1.505747126 | AZ83: 1.48502994
A84: 0.1 | B84: 1.689189189 | C84: 1.637681159 | D84: 1.576923077 | E84: 1.534653465 | F84: 1.508896797 | G84: 1.490566038 | J84: 0.1 | K84: 1.717121588 | L84: 1.664596273 | M84: 1.602272727 | N84: 1.565400844 | O84: 1.529411765 | P84: 1.511961722 | S84: 0.1 | T84: 1.731638418 | U84: 1.67844523 | V84: 1.61637931 | W84: 1.574162679 | X84: 1.543589744 | Y84: 1.518918919 | AB84: 0.1 | AC84: 1.741214058 | AD84: 1.692 | AE84: 1.629268293 | AF84: 1.583783784 | AG84: 1.558139535 | AH84: 1.530487805 | AK84: 0.1 | AL84: 1.754385965 | AM84: 1.697368421 | AN84: 1.636363636 | AO84: 1.601190476 | AP84: 1.566878981 | AQ84: 1.543624161 | AT84: 0.1 | AU84: 1.758364312 | AV84: 1.710280374 | AW84: 1.642045455 | AX84: 1.597484277 | AY84: 1.574324324 | AZ84: 1.546099291
A85: 0.05 | B85: 1.721881391 | C85: 1.678010471 | D85: 1.625 | E85: 1.589552239 | F85: 1.567346939 | G85: 1.545851528 | J85: 0.05 | K85: 1.751322751 | L85: 1.708474576 | M85: 1.658119658 | N85: 1.626213592 | O85: 1.597883598 | P85: 1.576271186 | S85: 0.05 | T85: 1.765060241 | U85: 1.724806202 | V85: 1.673170732 | W85: 1.644444444 | X85: 1.608433735 | Y85: 1.593548387 | AB85: 0.05 | AC85: 1.780821918 | AD85: 1.735682819 | AE85: 1.688888889 | AF85: 1.658227848 | AG85: 1.634482759 | AH85: 1.610294118 | AK85: 0.05 | AL85: 1.789473684 | AM85: 1.752427184 | AN85: 1.705521472 | AO85: 1.666666667 | AP85: 1.643939394 | AQ85: 1.62601626 | AT85: 0.05 | AU85: 1.792828685 | AV85: 1.75257732 | AW85: 1.712418301 | AX85: 1.674074074 | AY85: 1.64516129 | AZ85: 1.629310345
A86: 0.01 | B86: 1.74732334 | C86: 1.712290503 | D86: 1.669064748 | E86: 1.639004149 | F86: 1.614678899 | G86: 1.60199005 | J86: 0.01 | K86: 1.777777778 | L86: 1.744525547 | M86: 1.702830189 | N86: 1.677595628 | O86: 1.65060241 | P86: 1.640522876 | S86: 0.01 | T86: 1.796825397 | U86: 1.765690377 | V86: 1.72826087 | W86: 1.698113208 | X86: 1.673611111 | Y86: 1.661654135 | AB86: 0.01 | AC86: 1.805755396 | AD86: 1.776190476 | AE86: 1.739130435 | AF86: 1.712230216 | AG86: 1.704 | AH86: 1.681034483 | AK86: 0.01 | AL86: 1.818181818 | AM86: 1.794736842 | AN86: 1.753424658 | AO86: 1.736 | AP86: 1.716814159 | AQ86: 1.701923077 | AT86: 0.01 | AU86: 1.823529412 | AV86: 1.793296089 | AW86: 1.759124088 | AX86: 1.743589744 | AY86: 1.716981132 | AZ86: 1.704081633
BF102: 海底勾配1/50 （壁体前面） | BQ102: 海底勾配1/50 （5波高沖までのλoHdの最大値）
BF127: 海底勾配1/100 （壁体前面） | BQ127: 海底勾配1/100 （5波高沖までのλoHdの最大値）

Sheet 直立消波λ0data (hidden)
A1: 合田 | J1: 合田 | S1: 合田 | AB1: 合田 | AK1: 合田 | AT1: 合田 | BC1: グラフ表示用
B2: Ho/Lo=0.005 | C2: Ho/Lo=0.01 | D2: Ho/Lo=0.02 | E2: Ho/Lo=0.03 | F2: Ho/Lo=0.04 | G2: Ho/Lo=0.05 | K2: Ho/Lo=0.005 | L2: Ho/Lo=0.01 | M2: Ho/Lo=0.02 | N2: Ho/Lo=0.03 | O2: Ho/Lo=0.04 | P2: Ho/Lo=0.05 | T2: Ho/Lo=0.005 | U2: Ho/Lo=0.01 | V2: Ho/Lo=0.02 | W2: Ho/Lo=0.03 | X2: Ho/Lo=0.04 | Y2: Ho/Lo=0.05 | AC2: Ho/Lo=0.005 | AD2: Ho/Lo=0.01 | AE2: Ho/Lo=0.02 | AF2: Ho/Lo=0.03 | AG2: Ho/Lo=0.04 | AH2: Ho/Lo=0.05 | AL2: Ho/Lo=0.005 | AM2: Ho/Lo=0.01 | AN2: Ho/Lo=0.02 | AO2: Ho/Lo=0.03 | AP2: Ho/Lo=0.04 | AQ2: Ho/Lo=0.05 | AU2: Ho/Lo=0.005 | AV2: Ho/Lo=0.01 | AW2: Ho/Lo=0.02 | AX2: Ho/Lo=0.03 | AY2: Ho/Lo=0.04 | AZ2: Ho/Lo=0.05 | BC2: Ho'/Lo = | BD2: ='4.2.5 直立消波ブロック堤に作用する波力①'!E15 -> 0.032 | BF2: 海底勾配1/10 （壁体前面） | BQ2: 海底勾配1/10 （5波高沖までのλoHdの最大値）
A3: 海底勾配逆数 | B3: 10 | C3: 10 | D3: 10 | E3: 10 | F3: 10 | G3: 10 | J3: 海底勾配逆数 | K3: 15 | L3: 15 | M3: 15 | N3: 15 | O3: 15 | P3: 15 | S3: 海底勾配逆数 | T3: 20 | U3: 20 | V3: 20 | W3: 20 | X3: 20 | Y3: 20 | AB3: 海底勾配逆数 | AC3: 30 | AD3: 30 | AE3: 30 | AF3: 30 | AG3: 30 | AH3: 30 | AK3: 海底勾配逆数 | AL3: 50 | AM3: 50 | AN3: 50 | AO3: 50 | AP3: 50 | AQ3: 50 | AT3: 海底勾配逆数 | AU3: 100 | AV3: 100 | AW3: 100 | AX3: 100 | AY3: 100 | AZ3: 100
A4: Ho'/Lo | B4: 0.005 | C4: 0.01 | D4: 0.02 | E4: 0.03 | F4: 0.04 | G4: 0.05 | J4: Ho'/Lo | K4: 0.005 | L4: 0.01 | M4: 0.02 | N4: 0.03 | O4: 0.04 | P4: 0.05 | S4: Ho'/Lo | T4: 0.005 | U4: 0.01 | V4: 0.02 | W4: 0.03 | X4: 0.04 | Y4: 0.05 | AB4: Ho'/Lo | AC4: 0.005 | AD4: 0.01 | AE4: 0.02 | AF4: 0.03 | AG4: 0.04 | AH4: 0.05 | AK4: Ho'/Lo | AL4: 0.005 | AM4: 0.01 | AN4: 0.02 | AO4: 0.03 | AP4: 0.04 | AQ4: 0.05 | AT4: Ho'/Lo | AU4: 0.005 | AV4: 0.01 | AW4: 0.02 | AX4: 0.03 | AY4: 0.04 | AZ4: 0.05 | BC4: ①壁体前面
A5: h/Ho' | B5: H/Ho' | J5: h/Ho' | K5: H/Ho' | S5: h/Ho' | T5: H/Ho' | AB5: h/Ho' | AC5: H/Ho' | AK5: h/Ho' | AL5: H/Ho' | AT5: h/Ho' | AU5: H/Ho' | BC5: h/Ho' | BD5: λo
A6: 4 | B6: 1.799551234 | C6: 1.799815498 | D6: 1.799373041 | E6: 1.799349241 | F6: 1.799781182 | G6: 1.799782372 | J6: 4 | K6: 1.799401198 | L6: 1.79797048 | M6: 1.798328109 | N6: 1.799349241 | O6: 1.799781182 | P6: 1.798694233 | S6: 4 | T6: 1.799401198 | U6: 1.799630656 | V6: 1.79916318 | W6: 1.798264642 | X6: 1.79868709 | Y6: 1.798694233 | AB6: 4 | AC6: 1.798652695 | AD6: 1.798707295 | AE6: 1.79916318 | AF6: 1.798264642 | AG6: 1.79868709 | AH6: 1.797606094 | AK6: 4 | AL6: 1.797155689 | AM6: 1.798707295 | AN6: 1.79916318 | AO6: 1.800217155 | AP6: 1.79868709 | AQ6: 1.795429815 | AT6: 4 | AU6: 1.796254682 | AV6: 1.798707295 | AW6: 1.79916318 | AX6: 1.800217155 | AY6: 1.797592998 | AZ6: 1.793253536 | BC6: 0 | BD6: ='4.2.5 直立消波ブロック堤に作用する波力①'!I19 -> 1.43
A7: 3.95 | B7: 1.798812175 | C7: 1.799632353 | D7: 1.798748697 | E7: 1.798483207 | F7: 1.799781182 | G7: 1.798694233 | J7: 3.95 | K7: 1.799405646 | L7: 1.799448022 | M7: 1.798538622 | N7: 1.798483207 | O7: 1.799781182 | P7: 1.79956427 | S7: 3.95 | T7: 1.798662704 | U7: 1.799448022 | V7: 1.798538622 | W7: 1.799349241 | X7: 1.79868709 | Y7: 1.79956427 | AB7: 3.95 | AC7: 1.799256506 | AD7: 1.798528059 | AE7: 1.800417973 | AF7: 1.799349241 | AG7: 1.79868709 | AH7: 1.798474946 | AK7: 3.95 | AL7: 1.797026022 | AM7: 1.798528059 | AN7: 1.799373041 | AO7: 1.799349241 | AP7: 1.79868709 | AQ7: 1.796296296 | AT7: 3.95 | AU7: 1.794795539 | AV7: 1.799263352 | AW7: 1.799373041 | AX7: 1.799349241 | AY7: 1.797592998 | AZ7: 1.794117647 | BC7: ='4.2.5 直立消波ブロック堤に作用する波力①'!G19 -> 1.6 | BD7: ='4.2.5 直立消波ブロック堤に作用する波力①'!I19 -> 1.43
A8: 3.9 | B8: 1.798820929 | C8: 1.799450549 | D8: 1.798958333 | E8: 1.798701299 | F8: 1.799781182 | G8: 1.79956427 | J8: 3.9 | K8: 1.798672566 | L8: 1.799266728 | M8: 1.799791449 | N8: 1.799566631 | O8: 1.799781182 | P8: 1.798474946 | S8: 3.9 | T8: 1.8 | U8: 1.799266728 | V8: 1.799791449 | W8: 1.799566631 | X8: 1.79868709 | Y8: 1.798474946 | AB8: 3.9 | AC8: 1.798523985 | AD8: 1.798350137 | AE8: 1.798748697 | AF8: 1.798483207 | AG8: 1.79868709 | AH8: 1.797385621 | AK8: 3.9 | AL8: 1.796309963 | AM8: 1.8 | AN8: 1.798748697 | AO8: 1.798483207 | AP8: 1.797592998 | AQ8: 1.794117647 | AT8: 3.9 | AU8: 1.791881919 | AV8: 1.799082569 | AW8: 1.798748697 | AX8: 1.798483207 | AY8: 1.797592998 | AZ8: 1.79389313 | BC8: ='4.2.5 直立消波ブロック堤に作用する波力①'!G19 -> 1.6 | BD8: 1
A9: 3.85 | B9: 1.798829554 | C9: 1.799270073 | D9: 1.798336798 | E9: 1.79978355 | F9: 1.799781182 | G9: 1.798474946 | J9: 3.85 | K9: 1.799414348 | L9: 1.799086758 | M9: 1.799167534 | N9: 1.798701299 | O9: 1.799781182 | P9: 1.799345692 | S9: 3.85 | T9: 1.798682284 | U9: 1.799086758 | V9: 1.798126951 | W9: 1.798701299 | X9: 1.79868709 | Y9: 1.799345692 | AB9: 3.85 | AC9: 1.798534799 | AD9: 1.798173516 | AE9: 1.8 | AF9: 1.798701299 | AG9: 1.79868709 | AH9: 1.797164667 | AK9: 3.85 | AL9: 1.794871795 | AM9: 1.799817185 | AN9: 1.8 | AO9: 1.799566631 | AP9: 1.797592998 | AQ9: 1.794983642 | AT9: 3.85 | AU9: 1.78974359 | AV9: 1.799817185 | AW9: 1.798958333 | AX9: 1.799566631 | AY9: 1.797592998 | AZ9: 1.791712105
A10: 3.8 | B10: 1.79956427 | C10: 1.799090909 | D10: 1.799584631 | E10: 1.798918919 | F10: 1.797814208 | G10: 1.799345692 | J10: 3.8 | K10: 1.798838054 | L10: 1.799818016 | M10: 1.8004158 | N10: 1.798918919 | O10: 1.799781182 | P10: 1.79825518 | S10: 3.8 | T10: 1.799418605 | U10: 1.798908098 | V10: 1.799376299 | W10: 1.797837838 | X10: 1.799781182 | Y10: 1.79825518 | AB10: 3.8 | AC10: 1.797238372 | AD10: 1.798908098 | AE10: 1.799376299 | AF10: 1.79978355 | AG10: 1.79868709 | AH10: 1.796074155 | AK10: 3.8 | AL10: 1.792877907 | AM10: 1.799635701 | AN10: 1.798336798 | AO10: 1.79978355 | AP10: 1.797592998 | AQ10: 1.795851528 | AT10: 3.8 | AU10: 1.786909091 | AV10: 1.799635701 | AW10: 1.798336798 | AX10: 1.798701299 | AY10: 1.797592998 | AZ10: 1.792576419 | BC10: ②5波高沖までのλoHdの最大値
A11: 3.75 | B11: 1.799711816 | C11: 1.798913043 | D11: 1.797927461 | E11: 1.799136069 | F11: 1.798907104 | G11: 1.79825518 | J11: 3.75 | K11: 1.798270893 | L11: 1.799637353 | M11: 1.798755187 | N11: 1.8 | O11: 1.799781182 | P11: 1.800218341 | S11: 3.75 | T11: 1.798846431 | U11: 1.798730734 | V11: 1.798755187 | W11: 1.8 | X11: 1.799781182 | Y11: 1.799126638 | AB11: 3.75 | AC11: 1.79668349 | AD11: 1.798730734 | AE11: 1.798755187 | AF11: 1.798918919 | AG11: 1.79868709 | AH11: 1.796943231 | AK11: 3.75 | AL11: 1.790764791 | AM11: 1.798730734 | AN11: 1.799584631 | AO11: 1.798918919 | AP11: 1.79868709 | AQ11: 1.793668122 | AT11: 3.75 | AU11: 1.782106782 | AV11: 1.799455535 | AW11: 1.799584631 | AX11: 1.798918919 | AY11: 1.797592998 | AZ11: 1.790393013 | BC11: h/Ho' | BD11: λo
A12: 3.7 | B12: 1.798571429 | C12: 1.799638989 | D12: 1.799171843 | E12: 1.798274002 | F12: 1.798907104 | G12: 1.799126638 | J12: 3.7 | K12: 1.799142244 | L12: 1.798736462 | M12: 1.798136646 | N12: 1.800215983 | O12: 1.797814208 | P12: 1.799126638 | S12: 3.7 | T12: 1.797712652 | U12: 1.799457995 | V12: 1.8 | W12: 1.799136069 | X12: 1.799781182 | Y12: 1.798034934 | AB12: 3.7 | AC12: 1.795422031 | AD12: 1.799457995 | AE12: 1.8 | AF12: 1.799136069 | AG12: 1.79868709 | AH12: 1.795851528 | AK12: 3.7 | AL12: 1.78683834 | AM12: 1.798554652 | AN12: 1.798963731 | AO12: 1.799136069 | AP12: 1.79868709 | AQ12: 1.792576419 | AT12: 3.7 | AU12: 1.775948461 | AV12: 1.79765131 | AW12: 1.798963731 | AX12: 1.798056156 | AY12: 1.796498906 | AZ12: 1.790163934 | BC12: 0 | BD12: ='4.2.5 直立消波ブロック堤に作用する波力①'!I27 -> 1.56
A13: 3.65 | B13: 1.799433026 | C13: 1.798742138 | D13: 1.798553719 | E13: 1.798491379 | F13: 1.798907104 | G13: 1.799126638 | J13: 3.65 | K13: 1.798724309 | L13: 1.798561151 | M13: 1.799379524 | N13: 1.799352751 | O13: 1.798907104 | P13: 1.798034934 | S13: 3.65 | T13: 1.79858156 | U13: 1.798561151 | V13: 1.799379524 | W13: 1.799352751 | X13: 1.797814208 | Y13: 1.798907104 | AB13: 3.65 | AC13: 1.793617021 | AD13: 1.799279928 | AE13: 1.799379524 | AF13: 1.798274002 | AG13: 1.799781182 | AH13: 1.796721311 | AK13: 3.65 | AL13: 1.782824698 | AM13: 1.799279928 | AN13: 1.798345398 | AO13: 1.798274002 | AP13: 1.79868709 | AQ13: 1.792349727 | AT13: 3.65 | AU13: 1.769176136 | AV13: 1.798379838 | AW13: 1.798345398 | AX13: 1.798274002 | AY13: 1.796498906 | AZ13: 1.787978142 | BC13: ='4.2.5 直立消波ブロック堤に作用する波力①'!G27 -> 1.84 | BD13: ='4.2.5 直立消波ブロック堤に作用する波力①'!I27 -> 1.56
A14: 3.6 | B14: 1.798455056 | C14: 1.798567592 | D14: 1.797938144 | E14: 1.797631862 | F14: 1.8 | G14: 1.8 | J14: 3.6 | K14: 1.799016163 | L14: 1.799283154 | M14: 1.79876161 | N14: 1.799568966 | O14: 1.798907104 | P14: 1.798907104 | S14: 3.6 | T14: 1.796907941 | U14: 1.799283154 | V14: 1.79876161 | W14: 1.798491379 | X14: 1.798907104 | Y14: 1.797814208 | AB14: 3.6 | AC14: 1.791139241 | AD14: 1.798387097 | AE14: 1.79876161 | AF14: 1.798491379 | AG14: 1.797814208 | AH14: 1.795628415 | AK14: 3.6 | AL14: 1.776213934 | AM14: 1.799103139 | AN14: 1.797729618 | AO14: 1.798491379 | AP14: 1.796721311 | AQ14: 1.791256831 | AT14: 3.6 | AU14: 1.759859155 | AV14: 1.798206278 | AW14: 1.799586777 | AX14: 1.797413793 | AY14: 1.796498906 | AZ14: 1.78579235 | BC14: ='4.2.5 直立消波ブロック堤に作用する波力①'!G27 -> 1.84 | BD14: 1
A15: 3.55 | B15: 1.799442897 | C15: 1.798573975 | D15: 1.800205973 | E15: 1.799784715 | F15: 1.8 | G15: 1.798907104 | J15: 3.55 | K15: 1.798050139 | L15: 1.799286351 | M15: 1.799176107 | N15: 1.798708288 | O15: 1.798907104 | P15: 1.798907104 | S15: 3.55 | T15: 1.797212544 | U15: 1.799286351 | V15: 1.798146241 | W15: 1.798708288 | X15: 1.798907104 | Y15: 1.796721311 | AB15: 3.55 | AC15: 1.788005579 | AD15: 1.798394291 | AE15: 1.8 | AF15: 1.798708288 | AG15: 1.797814208 | AH15: 1.794535519 | AK15: 3.55 | AL15: 1.76901605 | AM15: 1.799107143 | AN15: 1.798969072 | AO15: 1.797631862 | AP15: 1.796721311 | AQ15: 1.791028446 | AT15: 3.55 | AU15: 1.749825297 | AV15: 1.797321429 | AW15: 1.798969072 | AX15: 1.797631862 | AY15: 1.794535519 | AZ15: 1.785557987
A16: 3.5 | B16: 1.799861974 | C16: 1.799467613 | D16: 1.7995889 | E16: 1.8 | F16: 1.799126638 | G16: 1.798907104 | J16: 3.5 | K16: 1.798481712 | L16: 1.80017762 | M16: 1.798561151 | N16: 1.798924731 | O16: 1.798034934 | P16: 1.797814208 | S16: 3.5 | T16: 1.79558011 | U16: 1.79928952 | V16: 1.800411523 | W16: 1.798924731 | X16: 1.8 | Y16: 1.79868709 | AB16: 3.5 | AC16: 1.782999309 | AD16: 1.798401421 | AE16: 1.799382716 | AF16: 1.798924731 | AG16: 1.798907104 | AH16: 1.794310722 | AK16: 3.5 | AL16: 1.760553633 | AM16: 1.797513321 | AN16: 1.799382716 | AO16: 1.797849462 | AP16: 1.796721311 | AQ16: 1.788840263 | AT16: 3.5 | AU16: 1.737352737 | AV16: 1.795737123 | AW16: 1.798353909 | AX16: 1.796774194 | AY16: 1.794535519 | AZ16: 1.782275711
A17: 3.45 | B17: 1.799043062 | C17: 1.798764342 | D17: 1.798974359 | E17: 1.798283262 | F17: 1.799126638 | G17: 1.797814208 | J17: 3.45 | K17: 1.798221614 | L17: 1.799469965 | M17: 1.797948718 | N17: 1.799140709 | O17: 1.799126638 | P17: 1.79868709 | S17: 3.45 | T17: 1.792749658 | U17: 1.798586572 | V17: 1.799794661 | W17: 1.799140709 | X17: 1.798034934 | Y17: 1.797592998 | AB17: 3.45 | AC17: 1.776712329 | AD17: 1.79770318 | AE17: 1.799794661 | AF17: 1.798066595 | AG17: 1.796943231 | AH17: 1.79321663 | AK17: 3.45 | AL17: 1.748285322 | AM17: 1.798408488 | AN17: 1.798767967 | AO17: 1.798066595 | AP17: 1.796721311 | AQ17: 1.786652079 | AT17: 3.45 | AU17: 1.72233677 | AV17: 1.795755968 | AW17: 1.797741273 | AX17: 1.796992481 | AY17: 1.793442623 | AZ17: 1.78203724
A18: 3.4 | B18: 1.798916723 | C18: 1.798946444 | D18: 1.799385875 | E18: 1.798499464 | F18: 1.79825518 | G18: 1.799781182 | J18: 3.4 | K18: 1.798102981 | L18: 1.799648506 | M18: 1.798362334 | N18: 1.799356223 | O18: 1.799126638 | P18: 1.79868709 | S18: 3.4 | T18: 1.7899729 | U18: 1.798769772 | V18: 1.799180328 | W18: 1.799356223 | X18: 1.799126638 | Y18: 1.796498906 | AB18: 3.4 | AC18: 1.76797829 | AD18: 1.797891037 | AE18: 1.799180328 | AF18: 1.798283262 | AG18: 1.798034934 | AH18: 1.792122538 | AK18: 3.4 | AL18: 1.734874235 | AM18: 1.796833773 | AN18: 1.798155738 | AO18: 1.7972103 | AP18: 1.794759825 | AQ18: 1.786418401 | AT18: 3.4 | AU18: 1.706203136 | AV18: 1.793315743 | AW18: 1.797131148 | AX18: 1.796137339 | AY18: 1.791484716 | AZ18: 1.778751369
A19: 3.35 | B19: 1.798927614 | C19: 1.799126638 | D19: 1.798774259 | E19: 1.798715203 | F19: 1.799345692 | G19: 1.799781182 | J19: 3.35 | K19: 1.796780684 | L19: 1.798253275 | M19: 1.797752809 | N19: 1.799571275 | O19: 1.79825518 | P19: 1.797592998 | S19: 3.35 | T19: 1.786577181 | U19: 1.799825175 | V19: 1.799591002 | W19: 1.799571275 | X19: 1.79825518 | Y19: 1.795404814 | AB19: 3.35 | AC19: 1.757392473 | AD19: 1.798076923 | AE19: 1.799591002 | AF19: 1.798499464 | AG19: 1.798034934 | AH19: 1.789934354 | AK19: 3.35 | AL19: 1.720161834 | AM19: 1.795454545 | AN19: 1.798568507 | AO19: 1.797427653 | AP19: 1.794759825 | AQ19: 1.78422782 | AT19: 3.35 | AU19: 1.688768606 | AV19: 1.79020979 | AW19: 1.797546012 | AX19: 1.79528403 | AY19: 1.790393013 | AZ19: 1.775465498
A20: 3.3 | B20: 1.798938288 | C20: 1.799479167 | D20: 1.799184506 | E20: 1.798930481 | F20: 1.800436205 | G20: 1.79868709 | J20: 3.3 | K20: 1.794820717 | L20: 1.799304952 | M20: 1.798165138 | N20: 1.797860963 | O20: 1.799345692 | P20: 1.797592998 | S20: 3.3 | T20: 1.780730897 | U20: 1.799304952 | V20: 1.8 | W20: 1.799785867 | X20: 1.79825518 | Y20: 1.795404814 | AB20: 3.3 | AC20: 1.745006658 | AD20: 1.797567333 | AE20: 1.798979592 | AF20: 1.798715203 | AG20: 1.796074155 | AH20: 1.790799562 | AK20: 3.3 | AL20: 1.702540107 | AM20: 1.793223284 | AN20: 1.797959184 | AO20: 1.79764454 | AP20: 1.792802617 | AQ20: 1.78094195 | AT20: 3.3 | AU20: 1.669576897 | AV20: 1.788695652 | AW20: 1.796938776 | AX20: 1.795503212 | AY20: 1.787350055 | AZ20: 1.771084337
A21: 3.25 | B21: 1.798424163 | C21: 1.799827437 | D21: 1.799593082 | E21: 1.799145299 | F21: 1.798474946 | G21: 1.79868709 | J21: 3.25 | K21: 1.792378449 | L21: 1.798964625 | M21: 1.798575788 | N21: 1.799145299 | O21: 1.798474946 | P21: 1.797592998 | S21: 3.25 | T21: 1.773684211 | U21: 1.799654577 | V21: 1.800407332 | W21: 1.798076923 | X21: 1.797385621 | Y21: 1.794310722 | AB21: 3.25 | AC21: 1.730870712 | AD21: 1.797063903 | AE21: 1.799389002 | AF21: 1.797008547 | AG21: 1.797164667 | AH21: 1.788608981 | AK21: 3.25 | AL21: 1.684350133 | AM21: 1.791018998 | AN21: 1.798370672 | AO21: 1.797860963 | AP21: 1.792802617 | AQ21: 1.777656079 | AT21: 3.25 | AU21: 1.648666667 | AV21: 1.783923941 | AW21: 1.796334012 | AX21: 1.794652406 | AY21: 1.786259542 | AZ21: 1.769736842
A22: 3.2 | B22: 1.7985705 | C22: 1.798628963 | D22: 1.798174442 | E22: 1.798507463 | F22: 1.798694233 | G22: 1.79868709 | J22: 3.2 | K22: 1.788686606 | L22: 1.799313894 | M22: 1.8 | N22: 1.799359658 | O22: 1.79956427 | P22: 1.796498906 | S22: 3.2 | T22: 1.763671875 | U22: 1.798456261 | V22: 1.798984772 | W22: 1.799359658 | X22: 1.798474946 | Y22: 1.795180723 | AB22: 3.2 | AC22: 1.71372549 | AD22: 1.795025729 | AE22: 1.797969543 | AF22: 1.798292423 | AG22: 1.795206972 | AH22: 1.787513691 | AK22: 3.2 | AL22: 1.663815789 | AM22: 1.788841202 | AN22: 1.796954315 | AO22: 1.795090715 | AP22: 1.789760349 | AQ22: 1.774370208 | AT22: 3.2 | AU22: 1.626075447 | AV22: 1.777682403 | AW22: 1.793908629 | AX22: 1.791889007 | AY22: 1.785169029 | AZ22: 1.765350877
A23: 3.15 | B23: 1.798200514 | C23: 1.799148936 | D23: 1.798989899 | E23: 1.798722045 | F23: 1.799782372 | G23: 1.79868709 | J23: 3.15 | K23: 1.783279743 | L23: 1.799829642 | M23: 1.797979798 | N23: 1.798722045 | O23: 1.798694233 | P23: 1.796498906 | S23: 3.15 | T23: 1.75128866 | U23: 1.798126065 | V23: 1.799797776 | W23: 1.799573561 | X23: 1.797606094 | Y23: 1.794085433 | AB23: 3.15 | AC23: 1.696046662 | AD23: 1.793867121 | AE23: 1.798786653 | AF23: 1.798507463 | AG23: 1.794341676 | AH23: 1.785323111 | AK23: 3.15 | AL23: 1.640992167 | AM23: 1.784313725 | AN23: 1.796764408 | AO23: 1.795309168 | AP23: 1.788671024 | AQ23: 1.773026316 | AT23: 3.15 | AU23: 1.604605263 | AV23: 1.7721843 | AW23: 1.792719919 | AX23: 1.791044776 | AY23: 1.781045752 | AZ23: 1.759868421
A24: 3.1 | B24: 1.797331639 | C24: 1.798141892 | D24: 1.79798995 | E24: 1.8 | F24: 1.798913043 | G24: 1.79868709 | J24: 3.1 | K24: 1.776717557 | L24: 1.798816568 | M24: 1.799798793 | N24: 1.79893617 | O24: 1.797826087 | P24: 1.796498906 | S24: 3.1 | T24: 1.73771538 | U24: 1.797125951 | V24: 1.798792757 | W24: 1.79893617 | X24: 1.798694233 | Y24: 1.792990142 | AB24: 3.1 | AC24: 1.674373796 | AD24: 1.791878173 | AE24: 1.79778672 | AF24: 1.796808511 | AG24: 1.794341676 | AH24: 1.78203724 | AK24: 3.1 | AL24: 1.618677043 | AM24: 1.77749577 | AN24: 1.793762575 | AO24: 1.792553191 | AP24: 1.785636561 | AQ24: 1.768640351 | AT24: 3.1 | AU24: 1.581806283 | AV24: 1.762066046 | AW24: 1.791540785 | AX24: 1.78913738 | AY24: 1.776931447 | AZ24: 1.754385965
A25: 3.05 | B25: 1.797110553 | C25: 1.798826488 | D25: 1.7997998 | E25: 1.798301486 | F25: 1.798045603 | G25: 1.79868709 | J25: 3.05 | K25: 1.767778477 | L25: 1.798657718 | M25: 1.798798799 | N25: 1.798301486 | O25: 1.798913043 | P25: 1.795404814 | S25: 3.05 | T25: 1.720151611 | U25: 1.79614094 | V25: 1.797797798 | W25: 1.799149841 | X25: 1.797826087 | Y25: 1.791894852 | AB25: 3.05 | AC25: 1.651592357 | AD25: 1.788413098 | AE25: 1.79759519 | AF25: 1.797024442 | AG25: 1.792391304 | AH25: 1.779846659 | AK25: 3.05 | AL25: 1.595360825 | AM25: 1.771428571 | AN25: 1.793587174 | AO25: 1.791710946 | AP25: 1.782608696 | AQ25: 1.764254386 | AT25: 3.05 | AU25: 1.55859375 | AV25: 1.752733389 | AW25: 1.78757515 | AX25: 1.78533475 | AY25: 1.774755169 | AZ25: 1.750823271
A26: 3 | B26: 1.795779019 | C26: 1.799500832 | D26: 1.798804781 | E26: 1.799575822 | F26: 1.800217155 | G26: 1.79868709 | J26: 3 | K26: 1.755444928 | L26: 1.797836938 | M26: 1.799601196 | N26: 1.799575822 | O26: 1.799131379 | P26: 1.795404814 | S26: 3 | T26: 1.700437774 | U26: 1.796003331 | V26: 1.798604187 | W26: 1.798515376 | X26: 1.796959826 | Y26: 1.788840263 | AB26: 3 | AC26: 1.628318584 | AD26: 1.782681099 | AE26: 1.796610169 | AF26: 1.79533404 | AG26: 1.790445168 | AH26: 1.776560789 | AK26: 3 | AL26: 1.572435897 | AM26: 1.76146789 | AN26: 1.790628116 | AO26: 1.790870488 | AP26: 1.781521739 | AQ26: 1.759868421 | AT26: 3 | AU26: 1.535667964 | AV26: 1.741019215 | AW26: 1.784431138 | AX26: 1.78343949 | AY26: 1.769565217 | AZ26: 1.744237102
A27: 2.95 | B27: 1.793378296 | C27: 1.79950495 | D27: 1.798810704 | E27: 1.798941799 | F27: 1.799349241 | G27: 1.799781182 | J27: 2.95 | K27: 1.740923077 | L27: 1.797854785 | M27: 1.799603175 | N27: 1.798941799 | O27: 1.798264642 | P27: 1.795404814 | S27: 2.95 | T27: 1.678018576 | U27: 1.793559042 | V27: 1.798611111 | W27: 1.796825397 | X27: 1.796095445 | Y27: 1.787746171 | AB27: 2.95 | AC27: 1.604519774 | AD27: 1.776859504 | AE27: 1.794642857 | AF27: 1.795550847 | AG27: 1.787418655 | AH27: 1.773274918 | AK27: 2.95 | AL27: 1.548469388 | AM27: 1.750827815 | AN27: 1.788480636 | AO27: 1.787076271 | AP27: 1.776330076 | AQ27: 1.754385965 | AT27: 2.95 | AU27: 1.514877102 | AV27: 1.725538972 | AW27: 1.779543198 | AX27: 1.778601695 | AY27: 1.765217391 | AZ27: 1.736553238 | BF27: 海底勾配1/15 （壁体前面） | BQ27: 海底勾配1/15 （5波高沖までのλoHdの最大値）
A28: 2.9 | B28: 1.790430042 | C28: 1.798855274 | D28: 1.799605133 | E28: 1.798310454 | F28: 1.799566631 | G28: 1.797814208 | J28: 2.9 | K28: 1.723067559 | L28: 1.79787234 | M28: 1.798617966 | N28: 1.800211416 | O28: 1.798483207 | P28: 1.794310722 | S28: 2.9 | T28: 1.655003069 | U28: 1.789689034 | V28: 1.7976308 | W28: 1.798097252 | X28: 1.794149512 | Y28: 1.785557987 | AB28: 2.9 | AC28: 1.580162196 | AD28: 1.768852459 | AE28: 1.792694965 | AF28: 1.792811839 | AG28: 1.787418655 | AH28: 1.768893757 | AK28: 2.9 | AL28: 1.527018436 | AM28: 1.736453202 | AN28: 1.78458498 | AO28: 1.783298097 | AP28: 1.772234273 | AQ28: 1.747807018 | AT28: 2.9 | AU28: 1.494512589 | AV28: 1.708641975 | AW28: 1.772727273 | AX28: 1.774603175 | AY28: 1.758957655 | AZ28: 1.728869374
A29: 2.85 | B29: 1.784688995 | C29: 1.799027553 | D29: 1.799607073 | E29: 1.798735511 | F29: 1.79978355 | G29: 1.797814208 | J29: 2.85 | K29: 1.702588802 | L29: 1.795786062 | M29: 1.798624754 | N29: 1.799578059 | O29: 1.797619048 | P29: 1.792349727 | S29: 2.85 | T29: 1.630553865 | U29: 1.785888078 | V29: 1.797642436 | W29: 1.797468354 | X29: 1.793290043 | Y29: 1.784463895 | AB29: 2.85 | AC29: 1.555831266 | AD29: 1.757108042 | AE29: 1.790766208 | AF29: 1.791139241 | AG29: 1.783315276 | AH29: 1.764512596 | AK29: 2.85 | AL29: 1.505389981 | AM29: 1.721271394 | AN29: 1.778761062 | AO29: 1.780359029 | AP29: 1.767063922 | AQ29: 1.74122807 | AT29: 2.85 | AU29: 1.475483871 | AV29: 1.690106296 | AW29: 1.766732283 | AX29: 1.767687434 | AY29: 1.751626898 | AZ29: 1.723076923
A30: 2.8 | B30: 1.776859504 | C30: 1.798555377 | D30: 1.798828125 | E30: 1.8 | F30: 1.8 | G30: 1.798907104 | J30: 2.8 | K30: 1.678975581 | L30: 1.79437751 | M30: 1.798631476 | N30: 1.798947368 | O30: 1.797837838 | P30: 1.792349727 | S30: 2.8 | T30: 1.605072464 | U30: 1.779742765 | V30: 1.796676442 | W30: 1.795789474 | X30: 1.792432432 | Y30: 1.782275711 | AB30: 2.8 | AC30: 1.532427424 | AD30: 1.743961353 | AE30: 1.787878788 | AF30: 1.788421053 | AG30: 1.78030303 | AH30: 1.760131435 | AK30: 2.8 | AL30: 1.484177215 | AM30: 1.702506063 | AN30: 1.772994129 | AO30: 1.775553214 | AP30: 1.762730228 | AQ30: 1.733552632 | AT30: 2.8 | AU30: 1.457069077 | AV30: 1.668831169 | AW30: 1.757100881 | AX30: 1.762658228 | AY30: 1.745119306 | AZ30: 1.713186813
A31: 2.75 | B31: 1.766317016 | C31: 1.799682035 | D31: 1.798833819 | E31: 1.799369748 | F31: 1.798274002 | G31: 1.798034934 | J31: 2.75 | K31: 1.654277286 | L31: 1.790937997 | M31: 1.799610895 | N31: 1.798319328 | O31: 1.796976242 | P31: 1.791256831 | S31: 2.75 | T31: 1.579484103 | U31: 1.771496815 | V31: 1.795719844 | W31: 1.795168067 | X31: 1.79049676 | Y31: 1.77704918 | AB31: 2.75 | AC31: 1.509236453 | AD31: 1.727853152 | AE31: 1.78307393 | AF31: 1.786540484 | AG31: 1.776216216 | AH31: 1.754654984 | AK31: 2.75 | AL31: 1.465189873 | AM31: 1.682182986 | AN31: 1.76436222 | AO31: 1.769716088 | AP31: 1.755411255 | AQ31: 1.727771679 | AT31: 2.75 | AU31: 1.439844761 | AV31: 1.647580645 | AW31: 1.747317073 | AX31: 1.753684211 | AY31: 1.735644637 | AZ31: 1.703296703
A32: 2.7 | B32: 1.752156412 | C32: 1.797955975 | D32: 1.799806576 | E32: 1.799790356 | F32: 1.798491379 | G32: 1.798034934 | J32: 2.7 | K32: 1.627703098 | L32: 1.786782061 | M32: 1.79787234 | N32: 1.79769392 | O32: 1.796116505 | P32: 1.788209607 | S32: 2.7 | T32: 1.553369112 | U32: 1.75965327 | V32: 1.793804453 | W32: 1.793501048 | X32: 1.788565264 | Y32: 1.773770492 | AB32: 2.7 | AC32: 1.488314883 | AD32: 1.711005542 | AE32: 1.778315586 | AF32: 1.782791186 | AG32: 1.771058315 | AH32: 1.746170678 | AK32: 2.7 | AL32: 1.446768061 | AM32: 1.659235669 | AN32: 1.756547042 | AO32: 1.764705882 | AP32: 1.747027027 | AQ32: 1.717892426 | AT32: 2.7 | AU32: 1.423476005 | AV32: 1.623397436 | AW32: 1.733980583 | AX32: 1.74553102 | AY32: 1.728060672 | AZ32: 1.694169417
A33: 2.65 | B33: 1.734809767 | C33: 1.79844358 | D33: 1.798076923 | E33: 1.800209205 | F33: 1.798708288 | G33: 1.797164667 | J33: 2.65 | K33: 1.60057971 | L33: 1.781152648 | M33: 1.797882579 | N33: 1.798117155 | O33: 1.794402583 | P33: 1.787117904 | S33: 2.65 | T33: 1.528503563 | U33: 1.7470726 | V33: 1.791145332 | W33: 1.791841004 | X33: 1.785560345 | Y33: 1.770491803 | AB33: 2.65 | AC33: 1.467117394 | AD33: 1.689952904 | AE33: 1.771676301 | AF33: 1.778010471 | AG33: 1.764832794 | AH33: 1.738512035 | AK33: 2.65 | AL33: 1.429479034 | AM33: 1.636867089 | AN33: 1.745173745 | AO33: 1.755765199 | AP33: 1.737580994 | AQ33: 1.708013172 | AT33: 2.65 | AU33: 1.408469055 | AV33: 1.599203187 | AW33: 1.721470019 | AX33: 1.735571878 | AY33: 1.716450216 | AZ33: 1.683168317
A34: 2.6 | B34: 1.712443946 | C34: 1.797692308 | D34: 1.799043062 | E34: 1.798748697 | F34: 1.8 | G34: 1.79825518 | J34: 2.6 | K34: 1.571921749 | L34: 1.771956857 | M34: 1.796172249 | N34: 1.797494781 | O34: 1.793548387 | P34: 1.782988004 | S34: 2.6 | T34: 1.504440497 | U34: 1.729520866 | V34: 1.788314176 | W34: 1.790187891 | X34: 1.780645161 | Y34: 1.76419214 | AB34: 2.6 | AC34: 1.448 | AD34: 1.66614786 | AE34: 1.764141898 | AF34: 1.772204807 | AG34: 1.75862069 | AH34: 1.730853392 | AK34: 2.6 | AL34: 1.414167198 | AM34: 1.61163522 | AN34: 1.731988473 | AO34: 1.746861925 | AP34: 1.730021598 | AQ34: 1.697036224 | AT34: 2.6 | AU34: 1.395150721 | AV34: 1.574940523 | AW34: 1.706165703 | AX34: 1.724318658 | AY34: 1.705627706 | AZ34: 1.671806167
A35: 2.55 | B35: 1.687707641 | C35: 1.796197719 | D35: 1.79923882 | E35: 1.799584631 | F35: 1.798283262 | G35: 1.796296296 | J35: 2.55 | K35: 1.545194508 | L35: 1.760091394 | M35: 1.794481446 | N35: 1.795430945 | O35: 1.792696026 | P35: 1.781897492 | S35: 2.55 | T35: 1.48108747 | U35: 1.710022953 | V35: 1.782857143 | W35: 1.786902287 | X35: 1.777658432 | Y35: 1.758733624 | AB35: 2.55 | AC35: 1.429981493 | AD35: 1.641698842 | AE35: 1.754770992 | AF35: 1.764828304 | AG35: 1.751345533 | AH35: 1.722100656 | AK35: 2.55 | AL35: 1.398973701 | AM35: 1.587177482 | AN35: 1.718660287 | AO35: 1.736183525 | AP35: 1.718446602 | AQ35: 1.687912088 | AT35: 2.55 | AU35: 1.381926121 | AV35: 1.550552923 | AW35: 1.689059501 | AX35: 1.711598746 | AY35: 1.693722944 | AZ35: 1.660418964
A36: 2.5 | B36: 1.658643326 | C36: 1.794139745 | D36: 1.798486282 | E36: 1.797729618 | F36: 1.799571275 | G36: 1.795429815 | J36: 2.5 | K36: 1.519088319 | L36: 1.746043708 | M36: 1.793560606 | N36: 1.794421488 | O36: 1.789924973 | P36: 1.776688453 | S36: 2.5 | T36: 1.459219858 | U36: 1.686363636 | V36: 1.776515152 | W36: 1.780991736 | X36: 1.77360515 | Y36: 1.751363141 | AB36: 2.5 | AC36: 1.413258984 | AD36: 1.615797546 | AE36: 1.742640076 | AF36: 1.754658385 | AG36: 1.741935484 | AH36: 1.712253829 | AK36: 2.5 | AL36: 1.385409942 | AM36: 1.561089494 | AN36: 1.70257388 | AO36: 1.720954357 | AP36: 1.707659115 | AQ36: 1.674725275 | AT36: 2.5 | AU36: 1.371257485 | AV36: 1.527186761 | AW36: 1.670813397 | AX36: 1.695109261 | AY36: 1.678918919 | AZ36: 1.64790287
A37: 2.45 | B37: 1.629669735 | C37: 1.790801187 | D37: 1.797932331 | E37: 1.798767967 | F37: 1.797860963 | G37: 1.794565217 | J37: 2.45 | K37: 1.494318182 | L37: 1.727272727 | M37: 1.789275635 | N37: 1.790554415 | O37: 1.786096257 | P37: 1.771490751 | S37: 2.45 | T37: 1.439905269 | U37: 1.661411411 | V37: 1.768361582 | W37: 1.775950668 | X37: 1.765524625 | Y37: 1.743729553 | AB37: 2.45 | AC37: 1.398753894 | AD37: 1.587966489 | AE37: 1.727101039 | AF37: 1.742533471 | AG37: 1.731471536 | AH37: 1.70131291 | AK37: 2.45 | AL37: 1.374348958 | AM37: 1.535658915 | AN37: 1.683111954 | AO37: 1.705578512 | AP37: 1.693965517 | AQ37: 1.663366337 | AT37: 2.45 | AU37: 1.360644728 | AV37: 1.503540519 | AW37: 1.650142993 | AX37: 1.678423237 | AY37: 1.666666667 | AZ37: 1.634254144
A38: 2.4 | B38: 1.598927614 | C38: 1.784040996 | D38: 1.798319328 | E38: 1.797959184 | F38: 1.797225187 | G38: 1.793702497 | J38: 2.4 | K38: 1.471323112 | L38: 1.70449521 | M38: 1.785046729 | N38: 1.788559755 | O38: 1.783119658 | P38: 1.766304348 | S38: 2.4 | T38: 1.421865716 | U38: 1.633928571 | V38: 1.759363296 | W38: 1.768916155 | X38: 1.759358289 | Y38: 1.734204793 | AB38: 2.4 | AC38: 1.385194479 | AD38: 1.560606061 | AE38: 1.711466165 | AF38: 1.729508197 | AG38: 1.719957082 | AH38: 1.689277899 | AK38: 2.4 | AL38: 1.363337714 | AM38: 1.510440835 | AN38: 1.664461248 | AO38: 1.688271605 | AP38: 1.681034483 | AQ38: 1.649779736 | AT38: 2.4 | AU38: 1.351424695 | AV38: 1.480345912 | AW38: 1.630228137 | AX38: 1.658057851 | AY38: 1.651515152 | AZ38: 1.619469027
A39: 2.35 | B39: 1.568085106 | C39: 1.776011561 | D39: 1.797961075 | E39: 1.797160243 | F39: 1.796592119 | G39: 1.79175705 | J39: 2.35 | K39: 1.45 | L39: 1.678571429 | M39: 1.779220779 | N39: 1.783756345 | O39: 1.778251599 | P39: 1.761956522 | S39: 2.35 | T39: 1.405970149 | U39: 1.606351551 | V39: 1.74535316 | W39: 1.758130081 | X39: 1.752136752 | Y39: 1.725490196 | AB39: 2.35 | AC39: 1.374050633 | AD39: 1.534339623 | AE39: 1.692523364 | AF39: 1.714285714 | AG39: 1.707395498 | AH39: 1.677984666 | AK39: 2.35 | AL39: 1.354581673 | AM39: 1.486862442 | AN39: 1.641580433 | AO39: 1.670769231 | AP39: 1.665948276 | AQ39: 1.636163175 | AT39: 2.35 | AU39: 1.34478022 | AV39: 1.459055118 | AW39: 1.607582938 | AX39: 1.639175258 | AY39: 1.634199134 | AZ39: 1.606430155
A40: 2.3 | B40: 1.538054968 | C40: 1.762651461 | D40: 1.796875 | E40: 1.796370968 | F40: 1.794899044 | G40: 1.789815818 | J40: 2.3 | K40: 1.430769231 | L40: 1.65007215 | M40: 1.771639042 | N40: 1.778002018 | O40: 1.772340426 | P40: 1.753528773 | S40: 2.3 | T40: 1.39266386 | U40: 1.576669112 | V40: 1.730378578 | W40: 1.746208291 | X40: 1.740938166 | Y40: 1.715686275 | AB40: 2.3 | AC40: 1.363578275 | AD40: 1.508283133 | AE40: 1.671003717 | AF40: 1.698170732 | AG40: 1.694533762 | AH40: 1.663745893 | AK40: 2.3 | AL40: 1.347446237 | AM40: 1.462905719 | AN40: 1.618556701 | AO40: 1.651329243 | AP40: 1.649784483 | AQ40: 1.620309051 | AT40: 2.3 | AU40: 1.337273992 | AV40: 1.43804262 | AW40: 1.584120983 | AX40: 1.618312757 | AY40: 1.618634886 | AZ40: 1.591111111
A41: 2.25 | B41: 1.51 | C41: 1.746132208 | D41: 1.795081967 | E41: 1.796593186 | F41: 1.794273595 | G41: 1.787878788 | J41: 2.25 | K41: 1.412707499 | L41: 1.620443174 | M41: 1.759817352 | N41: 1.769307924 | O41: 1.767268863 | P41: 1.745119306 | S41: 2.25 | T41: 1.378787879 | U41: 1.547045952 | V41: 1.71127406 | W41: 1.733400402 | X41: 1.73056443 | Y41: 1.701849837 | AB41: 2.25 | AC41: 1.354005168 | AD41: 1.483458647 | AE41: 1.646950092 | AF41: 1.679149798 | AG41: 1.678800857 | AH41: 1.650219298 | AK41: 2.25 | AL41: 1.340367597 | AM41: 1.442292796 | AN41: 1.595327103 | AO41: 1.629969419 | AP41: 1.634304207 | AQ41: 1.60441989 | AT41: 2.25 | AU41: 1.33145275 | AV41: 1.419175911 | AW41: 1.560377358 | AX41: 1.59650924 | AY41: 1.602605863 | AZ41: 1.575723831
A42: 2.2 | B42: 1.483193277 | C42: 1.723994452 | D42: 1.792418773 | E42: 1.794820717 | F42: 1.791974657 | G42: 1.784017279 | J42: 2.2 | K42: 1.397694524 | L42: 1.588944011 | M42: 1.74479638 | N42: 1.761477046 | O42: 1.757671958 | P42: 1.735644637 | S42: 2.2 | T42: 1.368034293 | U42: 1.519622093 | V42: 1.689717925 | W42: 1.717717718 | X42: 1.71656051 | Y42: 1.689880305 | AB42: 2.2 | AC42: 1.346204188 | AD42: 1.460496614 | AE42: 1.622815087 | AF42: 1.658266129 | AG42: 1.661324786 | AH42: 1.635565313 | AK42: 2.2 | AL42: 1.333333333 | AM42: 1.423794712 | AN42: 1.570363467 | AO42: 1.608341811 | AP42: 1.615301724 | AQ42: 1.589147287 | AT42: 2.2 | AU42: 1.326413744 | AV42: 1.402390438 | AW42: 1.536286522 | AX42: 1.575384615 | AY42: 1.583061889 | AZ42: 1.560893855
A43: 2.15 | B43: 1.459800315 | C43: 1.696990424 | D43: 1.789097408 | E43: 1.792284866 | F43: 1.790136411 | G43: 1.781014024 | J43: 2.15 | K43: 1.384079024 | L43: 1.55915493 | M43: 1.726457399 | N43: 1.749007937 | O43: 1.746315789 | P43: 1.725893824 | S43: 2.15 | T43: 1.358513932 | U43: 1.493836113 | V43: 1.665763324 | W43: 1.699203187 | X43: 1.700845666 | Y43: 1.675734494 | AB43: 2.15 | AC43: 1.339747843 | AD43: 1.439668175 | AE43: 1.597069597 | AF43: 1.63718593 | AG43: 1.641107561 | AH43: 1.618681319 | AK43: 2.15 | AL43: 1.328661528 | AM43: 1.406567631 | AN43: 1.543680297 | AO43: 1.586382114 | AP43: 1.594187298 | AQ43: 1.574444444 | AT43: 2.15 | AU43: 1.323144105 | AV43: 1.38875502 | AW43: 1.511299435 | AX43: 1.553846154 | AY43: 1.561822126 | AZ43: 1.544843049
A44: 2.1 | B44: 1.438125329 | C44: 1.668243243 | D44: 1.783377542 | E44: 1.789577188 | F44: 1.786235662 | G44: 1.775026911 | J44: 2.1 | K44: 1.372652582 | L44: 1.52908199 | M44: 1.704888889 | N44: 1.734714004 | O44: 1.731171548 | P44: 1.713203463 | S44: 2.1 | T44: 1.350690088 | U44: 1.468115942 | V44: 1.640035907 | W44: 1.679563492 | X44: 1.680336488 | Y44: 1.661220044 | AB44: 2.1 | AC44: 1.334006734 | AD44: 1.420454545 | AE44: 1.570255474 | AF44: 1.614844534 | AG44: 1.620616366 | AH44: 1.603524229 | AK44: 2.1 | AL44: 1.324074074 | AM44: 1.390551181 | AN44: 1.519034355 | AO44: 1.56504065 | AP44: 1.57311828 | AQ44: 1.556792873 | AT44: 2.1 | AU44: 1.319763138 | AV44: 1.375202593 | AW44: 1.488218662 | AX44: 1.531827515 | AY44: 1.541802389 | AZ44: 1.528683915
A45: 2.05 | B45: 1.418518519 | C45: 1.634846462 | D45: 1.773601399 | E45: 1.784179688 | F45: 1.78134715 | G45: 1.769892473 | J45: 2.05 | K45: 1.362232779 | L45: 1.5 | M45: 1.680176211 | N45: 1.718351325 | O45: 1.715920916 | P45: 1.698378378 | S45: 2.05 | T45: 1.342875318 | U45: 1.445170661 | V45: 1.611953613 | W45: 1.658102767 | X45: 1.661425577 | Y45: 1.644880174 | AB45: 2.05 | AC45: 1.329226557 | AD45: 1.402439024 | AE45: 1.54322111 | AF45: 1.590590591 | AG45: 1.598091198 | AH45: 1.584343991 | AK45: 2.05 | AL45: 1.321014493 | AM45: 1.376788553 | AN45: 1.49535316 | AO45: 1.541666667 | AP45: 1.550537634 | AQ45: 1.542505593 | AT45: 2.05 | AU45: 1.316503391 | AV45: 1.362817363 | AW45: 1.467863894 | AX45: 1.510288066 | AY45: 1.520652174 | AZ45: 1.514705882
A46: 2 | B46: 1.401704848 | C46: 1.599075297 | D46: 1.759930915 | E46: 1.776915616 | F46: 1.772633745 | G46: 1.761802575 | J46: 2 | K46: 1.353188929 | L46: 1.473133287 | M46: 1.652401747 | N46: 1.697560976 | O46: 1.697722567 | P46: 1.684324324 | S46: 2 | T46: 1.336563307 | U46: 1.423469388 | V46: 1.581560284 | W46: 1.63546798 | X46: 1.637787056 | Y46: 1.628135224 | AB46: 2 | AC46: 1.324286708 | AD46: 1.385560676 | AE46: 1.515894641 | AF46: 1.568568569 | AG46: 1.575211864 | AH46: 1.568584071 | AK46: 2 | AL46: 1.317343173 | AM46: 1.363855422 | AN46: 1.471627907 | AO46: 1.520366599 | AP46: 1.527956989 | AQ46: 1.524130191 | AT46: 2 | AU46: 1.313123561 | AV46: 1.351575456 | AW46: 1.44549763 | AX46: 1.491735537 | AY46: 1.5 | AZ46: 1.497727273
A47: 1.95 | B47: 1.387634409 | C47: 1.563850688 | D47: 1.742320819 | E47: 1.768046198 | F47: 1.764826176 | G47: 1.752136752 | J47: 1.95 | K47: 1.346764347 | L47: 1.447938505 | M47: 1.622183709 | N47: 1.676699029 | O47: 1.678350515 | P47: 1.667745415 | S47: 1.95 | T47: 1.333114323 | U47: 1.404988995 | V47: 1.553003534 | W47: 1.609421001 | X47: 1.615625 | Y47: 1.607843137 | AB47: 1.95 | AC47: 1.321757619 | AD47: 1.371605896 | AE47: 1.490463215 | AF47: 1.543 | AG47: 1.552966102 | AH47: 1.548172757 | AK47: 1.95 | AL47: 1.316027088 | AM47: 1.353132628 | AN47: 1.450046685 | AO47: 1.497959184 | AP47: 1.507543103 | AQ47: 1.505630631 | AT47: 1.95 | AU47: 1.312451057 | AV47: 1.342304458 | AW47: 1.426120114 | AX47: 1.469430052 | AY47: 1.479781421 | AZ47: 1.479452055
A48: 1.9 | B48: 1.376291463 | C48: 1.529947917 | D48: 1.719460826 | E48: 1.754770992 | F48: 1.751269036 | G48: 1.739915074 | J48: 1.9 | K48: 1.341191067 | L48: 1.424263675 | M48: 1.591222031 | N48: 1.650579151 | O48: 1.654358974 | P48: 1.645542427 | S48: 1.9 | T48: 1.328877005 | U48: 1.387573964 | V48: 1.522887324 | W48: 1.58374143 | X48: 1.592515593 | Y48: 1.584782609 | AB48: 1.9 | AC48: 1.320086705 | AD48: 1.358994501 | AE48: 1.464545455 | AF48: 1.51951952 | AG48: 1.529661017 | AH48: 1.527716186 | AK48: 1.9 | AL48: 1.31465848 | AM48: 1.342409241 | AN48: 1.428705441 | AO48: 1.475946776 | AP48: 1.486486486 | AQ48: 1.48700565 | AT48: 1.9 | AU48: 1.31254996 | AV48: 1.333902647 | AW48: 1.406909789 | AX48: 1.45 | AY48: 1.461538462 | AZ48: 1.461009174
A49: 1.85 | B49: 1.366189427 | C49: 1.498054475 | D49: 1.692756037 | E49: 1.737937559 | F49: 1.737638749 | G49: 1.723628692 | J49: 1.85 | K49: 1.335646688 | L49: 1.404375441 | M49: 1.558597092 | N49: 1.624399616 | O49: 1.630879346 | P49: 1.621390374 | S49: 1.85 | T49: 1.325613079 | U49: 1.372197309 | V49: 1.495162709 | W49: 1.555664062 | X49: 1.568016615 | Y49: 1.561346363 | AB49: 1.85 | AC49: 1.318584071 | AD49: 1.347929936 | AE49: 1.441605839 | AF49: 1.493987976 | AG49: 1.507430998 | AH49: 1.504994451 | AK49: 1.85 | AL49: 1.314263323 | AM49: 1.333612741 | AN49: 1.408876298 | AO49: 1.455761317 | AP49: 1.466883822 | AQ49: 1.467650397 | AT49: 1.85 | AU49: 1.311020408 | AV49: 1.326672459 | AW49: 1.390125847 | AX49: 1.43081761 | AY49: 1.443093923 | AZ49: 1.444059977
A50: 1.8 | B50: 1.357741755 | C50: 1.46761658 | D50: 1.659539474 | E50: 1.716963449 | F50: 1.720160481 | G50: 1.705450734 | J50: 1.8 | K50: 1.331619537 | L50: 1.387464387 | M50: 1.527706735 | N50: 1.594646272 | O50: 1.605504587 | P50: 1.597652081 | S50: 1.8 | T50: 1.32314107 | U50: 1.358547655 | V50: 1.468309859 | W50: 1.528780488 | X50: 1.543094496 | Y50: 1.537459283 | AB50: 1.8 | AC50: 1.317018072 | AD50: 1.338722716 | AE50: 1.419266055 | AF50: 1.471356784 | AG50: 1.486140725 | AH50: 1.4844098 | AK50: 1.8 | AL50: 1.314102564 | AM50: 1.327645051 | AN50: 1.39047619 | AO50: 1.434332989 | AP50: 1.448087432 | AQ50: 1.448118586 | AT50: 1.8 | AU50: 1.311352254 | AV50: 1.320070734 | AW50: 1.374755382 | AX50: 1.413319239 | AY50: 1.425389755 | AZ50: 1.427409988
A51: 1.75 | B51: 1.350568182 | C51: 1.440622972 | D51: 1.624898291 | E51: 1.690166976 | F51: 1.699900299 | G51: 1.686131387 | J51: 1.75 | K51: 1.32852459 | L51: 1.372210223 | M51: 1.495748299 | N51: 1.563273073 | O51: 1.581466395 | P51: 1.572949947 | S51: 1.75 | T51: 1.32079489 | U51: 1.348426708 | V51: 1.441306267 | W51: 1.501463415 | X51: 1.518711019 | Y51: 1.516866159 | AB51: 1.75 | AC51: 1.315627406 | AD51: 1.331414474 | AE51: 1.400555042 | AF51: 1.449494949 | AG51: 1.464668094 | AH51: 1.464205817 | AK51: 1.75 | AL51: 1.313114754 | AM51: 1.3214596 | AN51: 1.373435996 | AO51: 1.414583333 | AP51: 1.43061674 | AQ51: 1.43053961 | AT51: 1.75 | AU51: 1.311111111 | AV51: 1.315599639 | AW51: 1.359762141 | AX51: 1.395522388 | AY51: 1.410573678 | AZ51: 1.411007026
A52: 1.7 | B52: 1.345286293 | C52: 1.417482061 | D52: 1.587903226 | E52: 1.660845588 | F52: 1.675916749 | G52: 1.662863071 | J52: 1.7 | K52: 1.326188881 | L52: 1.359591539 | M52: 1.466382979 | N52: 1.534662868 | O52: 1.554425229 | P52: 1.549520767 | S52: 1.7 | T52: 1.319303338 | U52: 1.340359094 | V52: 1.41703638 | W52: 1.475073314 | X52: 1.495307612 | Y52: 1.494002181 | AB52: 1.7 | AC52: 1.315208826 | AD52: 1.325230511 | AE52: 1.380952381 | AF52: 1.426395939 | AG52: 1.445043103 | AH52: 1.445444319 | AK52: 1.7 | AL52: 1.3131822 | AM52: 1.316489362 | AN52: 1.358674464 | AO52: 1.397476341 | AP52: 1.413333333 | AQ52: 1.414831981 | AT52: 1.7 | AU52: 1.3117338 | AV52: 1.312442396 | AW52: 1.346733668 | AX52: 1.380798274 | AY52: 1.394318182 | AZ52: 1.396449704 | BF52: 海底勾配1/20 （壁体前面） | BQ52: 海底勾配1/20 （5波高沖までのλoHdの最大値）
A53: 1.65 | B53: 1.341779611 | C53: 1.397368421 | D53: 1.5496 | E53: 1.628415301 | F53: 1.647637795 | G53: 1.638429752 | J53: 1.65 | K53: 1.326488706 | L53: 1.349147517 | M53: 1.439419795 | N53: 1.503317536 | O53: 1.527975585 | P53: 1.525586354 | S53: 1.65 | T53: 1.319970304 | U53: 1.33227345 | V53: 1.3980322 | W53: 1.451422964 | X53: 1.471757322 | Y53: 1.472070099 | AB53: 1.65 | AC53: 1.317191283 | AD53: 1.319931565 | AE53: 1.366729679 | AF53: 1.407369498 | AG53: 1.425624321 | AH53: 1.427437642 | AK53: 1.65 | AL53: 1.313843508 | AM53: 1.313689937 | AN53: 1.347181009 | AO53: 1.380446334 | AP53: 1.396184063 | AQ53: 1.398830409 | AT53: 1.65 | AU53: 1.313285458 | AV53: 1.309142319 | AW53: 1.337078652 | AX53: 1.365720524 | AY53: 1.379310345 | AZ53: 1.383233533
A54: 1.6 | B54: 1.339747444 | C54: 1.380319149 | D54: 1.51433121 | E54: 1.592592593 | F54: 1.618395303 | G54: 1.612139918 | J54: 1.6 | K54: 1.326330532 | L54: 1.340120664 | M54: 1.416309013 | N54: 1.475332068 | O54: 1.50101833 | P54: 1.501068376 | S54: 1.6 | T54: 1.321673004 | U54: 1.326845093 | V54: 1.380650995 | W54: 1.427021696 | X54: 1.449001052 | Y54: 1.45154185 | AB54: 1.6 | AC54: 1.318444996 | AD54: 1.315559441 | AE54: 1.353787152 | AF54: 1.389865564 | AG54: 1.406352683 | AH54: 1.409610984 | AK54: 1.6 | AL54: 1.315696649 | AM54: 1.310760668 | AN54: 1.337022133 | AO54: 1.36598493 | AP54: 1.380249716 | AQ54: 1.384615385 | AT54: 1.6 | AU54: 1.315837937 | AV54: 1.306653809 | AW54: 1.328824142 | AX54: 1.352159468 | AY54: 1.365967366 | AZ54: 1.370145631
A55: 1.55 | B55: 1.338045482 | C55: 1.366149697 | D55: 1.47974583 | E55: 1.557450628 | F55: 1.58714703 | G55: 1.583589744 | J55: 1.55 | K55: 1.327833572 | L55: 1.333076923 | M55: 1.394463668 | N55: 1.448144624 | O55: 1.473469388 | P55: 1.476956056 | S55: 1.55 | T55: 1.323712949 | U55: 1.321458161 | V55: 1.364468864 | W55: 1.4055666 | X55: 1.427966102 | Y55: 1.431742508 | AB55: 1.55 | AC55: 1.320882852 | AD55: 1.313339302 | AE55: 1.342105263 | AF55: 1.371338912 | AG55: 1.389811739 | AH55: 1.394675926 | AK55: 1.55 | AL55: 1.31884058 | AM55: 1.308935361 | AN55: 1.327868852 | AO55: 1.353005464 | AP55: 1.36593786 | AQ55: 1.370503597 | AT55: 1.55 | AU55: 1.31758034 | AV55: 1.305637982 | AW55: 1.321656051 | AX55: 1.341216216 | AY55: 1.353846154 | AZ55: 1.358374384
A56: 1.5 | B56: 1.337106918 | C56: 1.354352296 | D56: 1.449482896 | E56: 1.521894549 | F56: 1.553294574 | G56: 1.556352459 | J56: 1.5 | K56: 1.327941176 | L56: 1.326787117 | M56: 1.376532399 | N56: 1.422966507 | O56: 1.447745902 | P56: 1.454741379 | S56: 1.5 | T56: 1.325060048 | U56: 1.318066158 | V56: 1.351627907 | W56: 1.385929648 | X56: 1.407051282 | Y56: 1.413213886 | AB56: 1.5 | AC56: 1.322580645 | AD56: 1.310091743 | AE56: 1.332671301 | AF56: 1.356687898 | AG56: 1.373318386 | AH56: 1.379835873 | AK56: 1.5 | AL56: 1.322160149 | AM56: 1.306042885 | AN56: 1.320083682 | AO56: 1.34 | AP56: 1.352803738 | AQ56: 1.358099878 | AT56: 1.5 | AU56: 1.320699708 | AV56: 1.304568528 | AW56: 1.314533623 | AX56: 1.330275229 | AY56: 1.342960289 | AZ56: 1.346683354
A57: 1.45 | B57: 1.337628866 | C57: 1.345670391 | D57: 1.42126299 | E57: 1.48706512 | F57: 1.519806763 | G57: 1.527123849 | J57: 1.45 | K57: 1.329056604 | L57: 1.323151125 | M57: 1.360568384 | N57: 1.3996139 | O57: 1.42371134 | P57: 1.431670282 | S57: 1.45 | T57: 1.326480263 | U57: 1.316521739 | V57: 1.339015152 | W57: 1.367243133 | X57: 1.388768898 | Y57: 1.393665158 | AB57: 1.45 | AC57: 1.32437276 | AD57: 1.309792844 | AE57: 1.323529412 | AF57: 1.343412527 | AG57: 1.359499431 | AH57: 1.364608076 | AK57: 1.45 | AL57: 1.323754789 | AM57: 1.30761523 | AN57: 1.314775161 | AO57: 1.328425821 | AP57: 1.342449465 | AQ57: 1.346534653 | AT57: 1.45 | AU57: 1.323 | AV57: 1.30480167 | AW57: 1.31 | AX57: 1.320843091 | AY57: 1.332107843 | AZ57: 1.336305732
A58: 1.4 | B58: 1.338177015 | C58: 1.339514979 | D58: 1.396774194 | E58: 1.453571429 | F58: 1.486486486 | G58: 1.497441146 | J58: 1.4 | K58: 1.332040341 | L58: 1.3215169 | M58: 1.345980126 | N58: 1.377929688 | O58: 1.402705515 | P58: 1.411378556 | S58: 1.4 | T58: 1.328825021 | U58: 1.314005352 | V58: 1.328502415 | W58: 1.351602896 | X58: 1.370897155 | Y58: 1.376861397 | AB58: 1.4 | AC58: 1.327490775 | AD58: 1.310745402 | AE58: 1.316390041 | AF58: 1.331133113 | AG58: 1.347222222 | AH58: 1.352657005 | AK58: 1.4 | AL58: 1.326108374 | AM58: 1.306900103 | AN58: 1.308114035 | AO58: 1.320601852 | AP58: 1.330508475 | AQ58: 1.335435057 | AT58: 1.4 | AU58: 1.326467559 | AV58: 1.306122449 | AW58: 1.304100228 | AX58: 1.313772455 | AY58: 1.3225 | AZ58: 1.325974026
A59: 1.35 | B59: 1.340338983 | C59: 1.333333333 | D59: 1.376326531 | E59: 1.423318386 | F59: 1.456479691 | G59: 1.468717949 | J59: 1.35 | K59: 1.334130781 | L59: 1.318950931 | M59: 1.335483871 | N59: 1.361386139 | O59: 1.38170347 | P59: 1.39159292 | S59: 1.35 | T59: 1.332463011 | U59: 1.313761468 | V59: 1.320158103 | W59: 1.34 | X59: 1.355555556 | Y59: 1.362790698 | AB59: 1.35 | AC59: 1.331749049 | AD59: 1.309760956 | AE59: 1.310638298 | AF59: 1.32247191 | AG59: 1.33490566 | AH59: 1.339066339 | AK59: 1.35 | AL59: 1.331300813 | AM59: 1.308917197 | AN59: 1.304054054 | AO59: 1.312426036 | AP59: 1.321782178 | AQ59: 1.326898327 | AT59: 1.35 | AU59: 1.33014862 | AV59: 1.306415929 | AW59: 1.300936768 | AX59: 1.30797546 | AY59: 1.314578005 | AZ59: 1.320053121
A60: 1.3 | B60: 1.343554007 | C60: 1.329094989 | D60: 1.35986733 | E60: 1.4 | F60: 1.427599611 | G60: 1.440782698 | J60: 1.3 | K60: 1.338259442 | L60: 1.317667537 | M60: 1.327049953 | N60: 1.346424975 | O60: 1.363927428 | P60: 1.372900336 | S60: 1.3 | T60: 1.337219731 | U60: 1.312559018 | V60: 1.315096251 | W60: 1.32867884 | X60: 1.341628959 | Y60: 1.348699764 | AB60: 1.3 | AC60: 1.33496572 | AD60: 1.310061602 | AE60: 1.307103825 | AF60: 1.315304948 | AG60: 1.324096386 | AH60: 1.328320802 | AK60: 1.3 | AL60: 1.335429769 | AM60: 1.307439825 | AN60: 1.302433372 | AO60: 1.307038835 | AP60: 1.312658228 | AQ60: 1.316688568 | AT60: 1.3 | AU60: 1.334063527 | AV60: 1.307077626 | AW60: 1.298795181 | AX60: 1.303526448 | AY60: 1.306684142 | AZ60: 1.3125
A61: 1.25 | B61: 1.345988539 | C61: 1.32718894 | D61: 1.3465765 | E61: 1.378205128 | F61: 1.401960784 | G61: 1.413471503 | J61: 1.25 | K61: 1.34179357 | L61: 1.317204301 | M61: 1.319806763 | N61: 1.335046249 | O61: 1.347448426 | P61: 1.357224118 | S61: 1.25 | T61: 1.341350601 | U61: 1.313534567 | V61: 1.311458333 | W61: 1.321232123 | X61: 1.327944573 | Y61: 1.336144578 | AB61: 1.25 | AC61: 1.339737108 | AD61: 1.311770944 | AE61: 1.303712036 | AF61: 1.309327037 | AG61: 1.313193588 | AH61: 1.320512821 | AK61: 1.25 | AL61: 1.33982684 | AM61: 1.30960452 | AN61: 1.299522673 | AO61: 1.303370787 | AP61: 1.303896104 | AQ61: 1.311320755 | AT61: 1.25 | AU61: 1.339366516 | AV61: 1.308962264 | AW61: 1.298136646 | AX61: 1.299222798 | AY61: 1.30013459 | AZ61: 1.305013928
A62: 1.2 | B62: 1.350553506 | C62: 1.328063241 | D62: 1.335350043 | E62: 1.359069767 | F62: 1.376984127 | G62: 1.391623037 | J62: 1.2 | K62: 1.346422339 | L62: 1.319778189 | M62: 1.314796425 | N62: 1.325263158 | O62: 1.333333333 | P62: 1.342989571 | S62: 1.2 | T62: 1.346704871 | U62: 1.316901408 | V62: 1.306538049 | W62: 1.312641084 | X62: 1.319148936 | Y62: 1.325123153 | AB62: 1.2 | AC62: 1.345872518 | AD62: 1.314348302 | AE62: 1.302784223 | AF62: 1.304981774 | AG62: 1.307594937 | AH62: 1.312746386 | AK62: 1.2 | AL62: 1.344519016 | AM62: 1.313084112 | AN62: 1.299630086 | AO62: 1.298200514 | AP62: 1.300400534 | AQ62: 1.30428769 | AT62: 1.2 | AU62: 1.343859649 | AV62: 1.313797314 | AW62: 1.297817715 | AX62: 1.29506008 | AY62: 1.296398892 | AZ62: 1.297567954
A63: 1.15 | B63: 1.354372624 | C63: 1.328175896 | D63: 1.328014184 | E63: 1.34345351 | F63: 1.358509567 | G63: 1.370488323 | J63: 1.15 | K63: 1.35166817 | L63: 1.322827125 | M63: 1.310838446 | N63: 1.316414687 | O63: 1.324263039 | P63: 1.328994083 | S63: 1.15 | T63: 1.350444225 | U63: 1.32049948 | V63: 1.305309735 | W63: 1.306620209 | X63: 1.311893204 | Y63: 1.313997478 | AB63: 1.15 | AC63: 1.35027027 | AD63: 1.318594104 | AE63: 1.302158273 | AF63: 1.299123905 | AG63: 1.302083333 | AH63: 1.303643725 | AK63: 1.15 | AL63: 1.349537037 | AM63: 1.317191283 | AN63: 1.298089172 | AO63: 1.294429708 | AP63: 1.297111417 | AQ63: 1.297297297 | AT63: 1.15 | AU63: 1.35030303 | AV63: 1.317319848 | AW63: 1.29747676 | AX63: 1.292413793 | AY63: 1.294285714 | AZ63: 1.293510324
A64: 1.1 | B64: 1.360282575 | C64: 1.329688814 | D64: 1.320875114 | E64: 1.330097087 | F64: 1.342915811 | G64: 1.352051836 | J64: 1.1 | K64: 1.35694315 | L64: 1.324110672 | M64: 1.308342133 | N64: 1.308888889 | O64: 1.315116279 | P64: 1.317575758 | S64: 1.1 | T64: 1.35648621 | U64: 1.323275862 | V64: 1.304347826 | W64: 1.301796407 | X64: 1.305867665 | Y64: 1.306095979 | AB64: 1.1 | AC64: 1.357222844 | AD64: 1.32079906 | AE64: 1.301488834 | AF64: 1.297542044 | AG64: 1.297986577 | AH64: 1.297222222 | AK64: 1.1 | AL64: 1.354916067 | AM64: 1.32160804 | AN64: 1.2998679 | AO64: 1.29532967 | AP64: 1.294034091 | AQ64: 1.293685756 | AT64: 1.1 | AU64: 1.35678392 | AV64: 1.320209974 | AW64: 1.298898072 | AX64: 1.292857143 | AY64: 1.292466765 | AZ64: 1.289193303
A65: 1.05 | B65: 1.366288493 | C65: 1.332173913 | D65: 1.318609023 | E65: 1.322033898 | F65: 1.331230284 | G65: 1.336273429 | J65: 1.05 | K65: 1.364864865 | L65: 1.327533265 | M65: 1.309289617 | N65: 1.306192661 | O65: 1.308982036 | P65: 1.308841843 | S65: 1.05 | T65: 1.364021164 | U65: 1.326256983 | V65: 1.30450237 | W65: 1.301115242 | X65: 1.301546392 | Y65: 1.300400534 | AB65: 1.05 | AC65: 1.363109049 | AD65: 1.324390244 | AE65: 1.302445302 | AF65: 1.296246649 | AG65: 1.295833333 | AH65: 1.294117647 | AK65: 1.05 | AL65: 1.36318408 | AM65: 1.32464146 | AN65: 1.301783265 | AO65: 1.293029872 | AP65: 1.291176471 | AQ65: 1.291350531 | AT65: 1.05 | AU65: 1.363754889 | AV65: 1.324693042 | AW65: 1.3018598 | AX65: 1.291851852 | AY65: 1.290519878 | AZ65: 1.288188976
A66: 1 | B66: 1.37300922 | C66: 1.334833483 | D66: 1.316812439 | E66: 1.315519013 | F66: 1.319654428 | G66: 1.323927765 | J66: 1 | K66: 1.372 | L66: 1.332624867 | M66: 1.309173273 | N66: 1.304038005 | O66: 1.302843016 | P66: 1.3042362 | S66: 1 | T66: 1.371020856 | U66: 1.332171893 | V66: 1.306273063 | W66: 1.299101412 | X66: 1.297333333 | Y66: 1.297931034 | AB66: 1 | AC66: 1.371084337 | AD66: 1.331218274 | AE66: 1.305220884 | AF66: 1.296244784 | AG66: 1.292086331 | AH66: 1.290801187 | AK66: 1 | AL66: 1.372574386 | AM66: 1.329715061 | AN66: 1.303851641 | AO66: 1.294378698 | AP66: 1.290076336 | AQ66: 1.289308176 | AT66: 1 | AU66: 1.371273713 | AV66: 1.329078014 | AW66: 1.303571429 | AX66: 1.292758089 | AY66: 1.287301587 | AZ66: 1.287581699
A67: 0.95 | B67: 1.379340278 | C67: 1.339869281 | D67: 1.315206445 | E67: 1.312433581 | F67: 1.310344828 | G67: 1.315911731 | J67: 0.95 | K67: 1.377593361 | L67: 1.338121547 | M67: 1.309776207 | N67: 1.301724138 | O67: 1.298335467 | P67: 1.300132802 | S67: 0.95 | T67: 1.378563284 | U67: 1.335748792 | V67: 1.307298335 | W67: 1.299065421 | X67: 1.294605809 | Y67: 1.294285714 | AB67: 0.95 | AC67: 1.378446115 | AD67: 1.335535007 | AE67: 1.306834031 | AF67: 1.296671491 | AG67: 1.291479821 | AH67: 1.289676425 | AK67: 0.95 | AL67: 1.379542396 | AM67: 1.335219236 | AN67: 1.306547619 | AO67: 1.295839753 | AP67: 1.288888889 | AQ67: 1.287581699 | AT67: 0.95 | AU67: 1.379407616 | AV67: 1.335798817 | AW67: 1.305900621 | AX67: 1.293739968 | AY67: 1.289256198 | AZ67: 1.285229202
A68: 0.9 | B68: 1.387589928 | C68: 1.345295829 | D68: 1.316945607 | E68: 1.308370044 | F68: 1.306098964 | G68: 1.308153477 | J68: 0.9 | K68: 1.386853448 | L68: 1.344073648 | M68: 1.31127451 | N68: 1.300896287 | O68: 1.29787234 | P68: 1.294360385 | S68: 0.9 | T68: 1.387900356 | U68: 1.343828715 | V68: 1.311081442 | W68: 1.300417246 | X68: 1.294964029 | Y68: 1.290801187 | AB68: 0.9 | AC68: 1.387222947 | AD68: 1.343448276 | AE68: 1.310043668 | AF68: 1.299093656 | AG68: 1.291277259 | AH68: 1.288924559 | AK68: 0.9 | AL68: 1.386554622 | AM68: 1.342688331 | AN68: 1.309006211 | AO68: 1.297427653 | AP68: 1.289735099 | AQ68: 1.285714286 | AT68: 0.9 | AU68: 1.387665198 | AV68: 1.343122102 | AW68: 1.310064935 | AX68: 1.296979866 | AY68: 1.289655172 | AZ68: 1.284955752
A69: 0.85 | B69: 1.396825397 | C69: 1.351160444 | D69: 1.319912949 | E69: 1.309278351 | F69: 1.303464755 | G69: 1.301863354 | J69: 0.85 | K69: 1.39573991 | L69: 1.350540216 | M69: 1.317541613 | N69: 1.304812834 | O69: 1.296398892 | P69: 1.293696275 | S69: 0.85 | T69: 1.39802225 | U69: 1.35 | V69: 1.317039106 | W69: 1.301886792 | X69: 1.295795796 | Y69: 1.291021672 | AB69: 0.85 | AC69: 1.397278912 | AD69: 1.34870317 | AE69: 1.315068493 | AF69: 1.301737757 | AG69: 1.293159609 | AH69: 1.289782245 | AK69: 0.85 | AL69: 1.397660819 | AM69: 1.349304482 | AN69: 1.313821138 | AO69: 1.301346801 | AP69: 1.292894281 | AQ69: 1.288256228 | AT69: 0.85 | AU69: 1.397239264 | AV69: 1.349514563 | AW69: 1.316326531 | AX69: 1.300527241 | AY69: 1.292418773 | AZ69: 1.287037037
A70: 0.8 | B70: 1.40543162 | C70: 1.357518402 | D70: 1.323863636 | E70: 1.309069212 | F70: 1.302238806 | G70: 1.298064516 | J70: 0.8 | K70: 1.404205607 | L70: 1.357590966 | M70: 1.319946452 | N70: 1.306293706 | O70: 1.296671491 | P70: 1.292974589 | S70: 0.8 | T70: 1.405927835 | U70: 1.356258597 | V70: 1.320175439 | W70: 1.305936073 | X70: 1.297169811 | Y70: 1.291262136 | AB70: 0.8 | AC70: 1.40625 | AD70: 1.358006042 | AE70: 1.319488818 | AF70: 1.302980132 | AG70: 1.295221843 | AH70: 1.29122807 | AK70: 0.8 | AL70: 1.406727829 | AM70: 1.358184765 | AN70: 1.321367521 | AO70: 1.303886926 | AP70: 1.294545455 | AQ70: 1.289179104 | AT70: 0.8 | AU70: 1.407704655 | AV70: 1.358234295 | AW70: 1.319642857 | AX70: 1.304428044 | AY70: 1.293560606 | AZ70: 1.289320388
A71: 0.75 | B71: 1.415741675 | C71: 1.367032967 | D71: 1.328180737 | E71: 1.309612984 | F71: 1.304291287 | G71: 1.299191375 | J71: 0.75 | K71: 1.417073171 | L71: 1.367936925 | M71: 1.325842697 | N71: 1.307917889 | O71: 1.300455235 | P71: 1.294209703 | S71: 0.75 | T71: 1.417227456 | U71: 1.366522367 | V71: 1.325652842 | W71: 1.308306709 | X71: 1.300330033 | Y71: 1.293718166 | AB71: 0.75 | AC71: 1.419019316 | AD71: 1.366085578 | AE71: 1.32605042 | AF71: 1.308362369 | AG71: 1.299820467 | AH71: 1.29281768 | AK71: 0.75 | AL71: 1.4192 | AM71: 1.36967632 | AN71: 1.325539568 | AO71: 1.30669145 | AP71: 1.298279159 | AQ71: 1.292156863 | AT71: 0.75 | AU71: 1.421848739 | AV71: 1.369642857 | AW71: 1.32518797 | AX71: 1.306796117 | AY71: 1.299401198 | AZ71: 1.292433538
A72: 0.7 | B72: 1.427970557 | C72: 1.375862069 | D72: 1.334164589 | E72: 1.317169069 | F72: 1.305177112 | G72: 1.297602257 | J72: 0.7 | K72: 1.429299363 | L72: 1.374655647 | M72: 1.334319527 | N72: 1.314814815 | O72: 1.305111821 | P72: 1.296052632 | S72: 0.7 | T72: 1.431593794 | U72: 1.376327769 | V72: 1.333333333 | W72: 1.314814815 | X72: 1.302083333 | Y72: 1.294642857 | AB72: 0.7 | AC72: 1.431464174 | AD72: 1.377295492 | AE72: 1.335106383 | AF72: 1.314338235 | AG72: 1.302457467 | AH72: 1.295145631 | AK72: 0.7 | AL72: 1.432885906 | AM72: 1.376344086 | AN72: 1.333965844 | AO72: 1.314341847 | AP72: 1.303030303 | AQ72: 1.296066253 | AT72: 0.7 | AU72: 1.433862434 | AV72: 1.377819549 | AW72: 1.333333333 | AX72: 1.316221766 | AY72: 1.303797468 | AZ72: 1.295896328
A73: 0.65 | B73: 1.438596491 | C73: 1.385542169 | D73: 1.342070773 | E73: 1.32137931 | F73: 1.308464849 | G73: 1.302670623 | J73: 0.65 | K73: 1.441333333 | L73: 1.385507246 | M73: 1.341653666 | N73: 1.320846906 | O73: 1.306913997 | P73: 1.300347222 | S73: 0.65 | T73: 1.443131462 | U73: 1.38658147 | V73: 1.341880342 | W73: 1.320284698 | X73: 1.306985294 | Y73: 1.3 | AB73: 0.65 | AC73: 1.446808511 | AD73: 1.389084507 | AE73: 1.343339587 | AF73: 1.321011673 | AG73: 1.308617234 | AH73: 1.299794661 | AK73: 0.65 | AL73: 1.446208113 | AM73: 1.390151515 | AN73: 1.344064386 | AO73: 1.320833333 | AP73: 1.308351178 | AQ73: 1.300438596 | AT73: 0.65 | AU73: 1.448979592 | AV73: 1.391650099 | AW73: 1.343157895 | AX73: 1.322440087 | AY73: 1.308724832 | AZ73: 1.302059497
A74: 0.6 | B74: 1.45412844 | C74: 1.397468354 | D74: 1.349930844 | E74: 1.327510917 | F74: 1.313161876 | G74: 1.305164319 | J74: 0.6 | K74: 1.455944056 | L74: 1.399082569 | M74: 1.349834983 | N74: 1.328151986 | O74: 1.314285714 | P74: 1.303308824 | S74: 0.6 | T74: 1.459627329 | U74: 1.400337838 | V74: 1.352087114 | W74: 1.328922495 | X74: 1.313840156 | Y74: 1.304609218 | AB74: 0.6 | AC74: 1.461273666 | AD74: 1.400372439 | AE74: 1.352589641 | AF74: 1.326446281 | AG74: 1.314893617 | AH74: 1.30349345 | AK74: 0.6 | AL74: 1.462825279 | AM74: 1.400801603 | AN74: 1.352564103 | AO74: 1.327433628 | AP74: 1.316628702 | AQ74: 1.303030303 | AT74: 0.6 | AU74: 1.465753425 | AV74: 1.402105263 | AW74: 1.351230425 | AX74: 1.328703704 | AY74: 1.316666667 | AZ74: 1.304136253
A75: 0.55 | B75: 1.466426859 | C75: 1.408 | D75: 1.359649123 | E75: 1.336419753 | F75: 1.321027287 | G75: 1.308457711 | J75: 0.55 | K75: 1.472058824 | L75: 1.412621359 | M75: 1.363157895 | N75: 1.335779817 | O75: 1.321292776 | P75: 1.311154599 | S75: 0.55 | T75: 1.475490196 | U75: 1.415026834 | V75: 1.364864865 | W75: 1.336016097 | X75: 1.322245322 | Y75: 1.311965812 | AB75: 0.55 | AC75: 1.479128857 | AD75: 1.415019763 | AE75: 1.365180467 | AF75: 1.337748344 | AG75: 1.322727273 | AH75: 1.312354312 | AK75: 0.55 | AL75: 1.480392157 | AM75: 1.417910448 | AN75: 1.364464692 | AO75: 1.338061466 | AP75: 1.323600973 | AQ75: 1.314214464 | AT75: 0.55 | AU75: 1.483471074 | AV75: 1.418344519 | AW75: 1.366028708 | AX75: 1.339108911 | AY75: 1.323155216 | AZ75: 1.3125
A76: 0.5 | B76: 1.483668342 | C76: 1.425352113 | D76: 1.372670807 | E76: 1.344262295 | F76: 1.32991453 | G76: 1.318021201 | J76: 0.5 | K76: 1.492260062 | L76: 1.428816467 | M76: 1.373831776 | N76: 1.347058824 | O76: 1.331300813 | P76: 1.320083682 | S76: 0.5 | T76: 1.496551724 | U76: 1.431558935 | V76: 1.377319588 | W76: 1.349137931 | X76: 1.331848552 | Y76: 1.320366133 | AB76: 0.5 | AC76: 1.498084291 | AD76: 1.433684211 | AE76: 1.377272727 | AF76: 1.34751773 | AG76: 1.331707317 | AH76: 1.32 | AK76: 0.5 | AL76: 1.502074689 | AM76: 1.434090909 | AN76: 1.378973105 | AO76: 1.347715736 | AP76: 1.335078534 | AQ76: 1.321715818 | AT76: 0.5 | AU76: 1.50547046 | AV76: 1.434367542 | AW76: 1.379487179 | AX76: 1.348404255 | AY76: 1.334246575 | AZ76: 1.322128852
A77: 0.45 | B77: 1.502638522 | C77: 1.439642325 | D77: 1.387417219 | E77: 1.355516637 | F77: 1.340036563 | G77: 1.325141777 | J77: 0.45 | K77: 1.510603589 | L77: 1.447080292 | M77: 1.388 | N77: 1.36 | O77: 1.34279476 | P77: 1.328089888 | S77: 0.45 | T77: 1.517304189 | U77: 1.447368421 | V77: 1.39159292 | W77: 1.361111111 | X77: 1.342925659 | Y77: 1.327586207 | AB77: 0.45 | AC77: 1.521298174 | AD77: 1.451685393 | AE77: 1.392682927 | AF77: 1.364795918 | AG77: 1.344736842 | AH77: 1.332432432 | AK77: 0.45 | AL77: 1.526431718 | AM77: 1.454987835 | AN77: 1.394736842 | AO77: 1.364383562 | AP77: 1.344632768 | AQ77: 1.333333333 | AT77: 0.45 | AU77: 1.526682135 | AV77: 1.455242967 | AW77: 1.395027624 | AX77: 1.364942529 | AY77: 1.346153846 | AZ77: 1.333333333 | BF77: 海底勾配1/30 （壁体前面） | BQ77: 海底勾配1/30 （5波高沖までのλoHdの最大値）
A78: 0.4 | B78: 1.525 | C78: 1.458860759 | D78: 1.401769912 | E78: 1.370300752 | F78: 1.351669941 | G78: 1.33808554 | J78: 0.4 | K78: 1.534482759 | L78: 1.464980545 | M78: 1.404301075 | N78: 1.375 | O78: 1.353773585 | P78: 1.340632603 | S78: 0.4 | T78: 1.540540541 | U78: 1.468546638 | V78: 1.408114558 | W78: 1.37593985 | X78: 1.355844156 | Y78: 1.342245989 | AB78: 0.4 | AC78: 1.547413793 | AD78: 1.472289157 | AE78: 1.408970976 | AF78: 1.375690608 | AG78: 1.357142857 | AH78: 1.343108504 | AK78: 0.4 | AL78: 1.549065421 | AM78: 1.475195822 | AN78: 1.413105413 | AO78: 1.37797619 | AP78: 1.36 | AQ78: 1.347003155 | AT78: 0.4 | AU78: 1.555555556 | AV78: 1.475274725 | AW78: 1.413173653 | AX78: 1.378125 | AY78: 1.361290323 | AZ78: 1.343234323
A79: 0.35 | B79: 1.546783626 | C79: 1.478114478 | D79: 1.420152091 | E79: 1.387423935 | F79: 1.368085106 | G79: 1.353200883 | J79: 0.35 | K79: 1.560218978 | L79: 1.4875 | M79: 1.425581395 | N79: 1.391625616 | O79: 1.372750643 | P79: 1.355437666 | S79: 0.35 | T79: 1.569672131 | U79: 1.493023256 | V79: 1.428940568 | W79: 1.396174863 | X79: 1.373937677 | Y79: 1.359649123 | AB79: 0.35 | AC79: 1.574370709 | AD79: 1.501298701 | AE79: 1.429799427 | AF79: 1.398791541 | AG79: 1.375 | AH79: 1.360128617 | AK79: 0.35 | AL79: 1.581047382 | AM79: 1.504225352 | AN79: 1.434782609 | AO79: 1.400651466 | AP79: 1.377104377 | AQ79: 1.359861592 | AT79: 0.35 | AU79: 1.584210526 | AV79: 1.504451039 | AW79: 1.437908497 | AX79: 1.400684932 | AY79: 1.379432624 | AZ79: 1.363636364
A80: 0.3 | B80: 1.574074074 | C80: 1.503597122 | D80: 1.439425051 | E80: 1.405286344 | F80: 1.384259259 | G80: 1.367788462 | J80: 0.3 | K80: 1.591085271 | L80: 1.515695067 | M80: 1.450632911 | N80: 1.412398922 | O80: 1.391549296 | P80: 1.376093294 | S80: 0.3 | T80: 1.59912854 | U80: 1.522613065 | V80: 1.450704225 | W80: 1.416167665 | X80: 1.396875 | Y80: 1.377419355 | AB80: 0.3 | AC80: 1.602439024 | AD80: 1.530898876 | AE80: 1.454545455 | AF80: 1.42192691 | AG80: 1.397923875 | AH80: 1.377224199 | AK80: 0.3 | AL80: 1.611702128 | AM80: 1.530487805 | AN80: 1.459183673 | AO80: 1.424460432 | AP80: 1.399253731 | AQ80: 1.384615385 | AT80: 0.3 | AU80: 1.612359551 | AV80: 1.538709677 | AW80: 1.462365591 | AX80: 1.428030303 | AY80: 1.4 | AZ80: 1.383064516
A81: 0.25 | B81: 1.599348534 | C81: 1.529865125 | D81: 1.46325167 | E81: 1.431325301 | F81: 1.406091371 | G81: 1.388888889 | J81: 0.25 | K81: 1.619341564 | L81: 1.54589372 | M81: 1.476454294 | N81: 1.43620178 | O81: 1.414330218 | P81: 1.398058252 | S81: 0.25 | T81: 1.631090487 | U81: 1.554347826 | V81: 1.482972136 | W81: 1.443708609 | X81: 1.420138889 | Y81: 1.402877698 | AB81: 0.25 | AC81: 1.638020833 | AD81: 1.56402439 | AE81: 1.487889273 | AF81: 1.450184502 | AG81: 1.419230769 | AH81: 1.402390438 | AK81: 0.25 | AL81: 1.646723647 | AM81: 1.571428571 | AN81: 1.492481203 | AO81: 1.452 | AP81: 1.425 | AQ81: 1.405172414 | AT81: 0.25 | AU81: 1.65060241 | AV81: 1.571929825 | AW81: 1.496031746 | AX81: 1.455696203 | AY81: 1.431718062 | AZ81: 1.409090909
A82: 0.2 | B82: 1.629310345 | C82: 1.563146998 | D82: 1.496350365 | E82: 1.458885942 | F82: 1.43258427 | G82: 1.414705882 | J82: 0.2 | K82: 1.649890591 | L82: 1.583769634 | M82: 1.509146341 | N82: 1.468646865 | O82: 1.442508711 | P82: 1.429090909 | S82: 0.2 | T82: 1.663366337 | U82: 1.594674556 | V82: 1.517123288 | W82: 1.477777778 | X82: 1.447470817 | Y82: 1.429149798 | AB82: 0.2 | AC82: 1.668523677 | AD82: 1.601328904 | AE82: 1.526923077 | AF82: 1.485477178 | AG82: 1.456521739 | AH82: 1.438914027 | AK82: 0.2 | AL82: 1.679878049 | AM82: 1.610909091 | AN82: 1.531380753 | AO82: 1.490990991 | AP82: 1.45754717 | AQ82: 1.441176471 | AT82: 0.2 | AU82: 1.683870968 | AV82: 1.615384615 | AW82: 1.530973451 | AX82: 1.495238095 | AY82: 1.465 | AZ82: 1.445595855
A83: 0.15 | B83: 1.660583942 | C83: 1.598214286 | D83: 1.532085561 | E83: 1.491176471 | F83: 1.465408805 | G83: 1.447019868 | J83: 0.15 | K83: 1.682983683 | L83: 1.623931624 | M83: 1.552542373 | N83: 1.507407407 | O83: 1.486166008 | P83: 1.458677686 | S83: 0.15 | T83: 1.693931398 | U83: 1.635483871 | V83: 1.567049808 | W83: 1.523012552 | X83: 1.493333333 | Y83: 1.469767442 | AB83: 0.15 | AC83: 1.707462687 | AD83: 1.643636364 | AE83: 1.573275862 | AF83: 1.525821596 | AG83: 1.497512438 | AH83: 1.479166667 | AK83: 0.15 | AL83: 1.715686275 | AM83: 1.653386454 | AN83: 1.58490566 | AO83: 1.533333333 | AP83: 1.505434783 | AQ83: 1.482954545 | AT83: 0.15 | AU83: 1.716262976 | AV83: 1.658227848 | AW83: 1.59 | AX83: 1.538043478 | AY83: 1.505747126 | AZ83: 1.48502994
A84: 0.1 | B84: 1.689189189 | C84: 1.637681159 | D84: 1.576923077 | E84: 1.534653465 | F84: 1.508896797 | G84: 1.490566038 | J84: 0.1 | K84: 1.717121588 | L84: 1.664596273 | M84: 1.602272727 | N84: 1.565400844 | O84: 1.529411765 | P84: 1.511961722 | S84: 0.1 | T84: 1.731638418 | U84: 1.67844523 | V84: 1.61637931 | W84: 1.574162679 | X84: 1.543589744 | Y84: 1.518918919 | AB84: 0.1 | AC84: 1.741214058 | AD84: 1.692 | AE84: 1.629268293 | AF84: 1.583783784 | AG84: 1.558139535 | AH84: 1.530487805 | AK84: 0.1 | AL84: 1.754385965 | AM84: 1.697368421 | AN84: 1.636363636 | AO84: 1.601190476 | AP84: 1.566878981 | AQ84: 1.543624161 | AT84: 0.1 | AU84: 1.758364312 | AV84: 1.710280374 | AW84: 1.642045455 | AX84: 1.597484277 | AY84: 1.574324324 | AZ84: 1.546099291
A85: 0.05 | B85: 1.721881391 | C85: 1.678010471 | D85: 1.625 | E85: 1.589552239 | F85: 1.567346939 | G85: 1.545851528 | J85: 0.05 | K85: 1.751322751 | L85: 1.708474576 | M85: 1.658119658 | N85: 1.626213592 | O85: 1.597883598 | P85: 1.576271186 | S85: 0.05 | T85: 1.765060241 | U85: 1.724806202 | V85: 1.673170732 | W85: 1.644444444 | X85: 1.608433735 | Y85: 1.593548387 | AB85: 0.05 | AC85: 1.780821918 | AD85: 1.735682819 | AE85: 1.688888889 | AF85: 1.658227848 | AG85: 1.634482759 | AH85: 1.610294118 | AK85: 0.05 | AL85: 1.789473684 | AM85: 1.752427184 | AN85: 1.705521472 | AO85: 1.666666667 | AP85: 1.643939394 | AQ85: 1.62601626 | AT85: 0.05 | AU85: 1.792828685 | AV85: 1.75257732 | AW85: 1.712418301 | AX85: 1.674074074 | AY85: 1.64516129 | AZ85: 1.629310345
A86: 0.01 | B86: 1.74732334 | C86: 1.712290503 | D86: 1.669064748 | E86: 1.639004149 | F86: 1.614678899 | G86: 1.60199005 | J86: 0.01 | K86: 1.777777778 | L86: 1.744525547 | M86: 1.702830189 | N86: 1.677595628 | O86: 1.65060241 | P86: 1.640522876 | S86: 0.01 | T86: 1.796825397 | U86: 1.765690377 | V86: 1.72826087 | W86: 1.698113208 | X86: 1.673611111 | Y86: 1.661654135 | AB86: 0.01 | AC86: 1.805755396 | AD86: 1.776190476 | AE86: 1.739130435 | AF86: 1.712230216 | AG86: 1.704 | AH86: 1.681034483 | AK86: 0.01 | AL86: 1.818181818 | AM86: 1.794736842 | AN86: 1.753424658 | AO86: 1.736 | AP86: 1.716814159 | AQ86: 1.701923077 | AT86: 0.01 | AU86: 1.823529412 | AV86: 1.793296089 | AW86: 1.759124088 | AX86: 1.743589744 | AY86: 1.716981132 | AZ86: 1.704081633
BF102: 海底勾配1/50 （壁体前面） | BQ102: 海底勾配1/50 （5波高沖までのλoHdの最大値）
BF127: 海底勾配1/100 （壁体前面） | BQ127: 海底勾配1/100 （5波高沖までのλoHdの最大値）
